{"text_format":"1","workbook":"xlsx","n_sheets":21,"sheets":["Veiledning","fylke","SørVaranger","Båtsfjord","UnjárgaNesseby","DeatnuTana","Berlevåg","Gamvik","Lebesby","KárásjohkaKarasjok","PorsangerPorsánguPorsanki","Nordkapp","Måsøy","Kvalsund","Hasvik","Loppa","Alta","GuovdageaidnuKautokeino","Hammerfest","Vadsø","Vardø"],"not_rendered":{"charts":0,"images":2,"macros":0,"external_links":0,"defined_names":58,"comments":0,"pivot_tables":0},"unopened":[],"bounds":{"document_bytes":16777216,"sheet_cells":100000,"rows_first":2000,"rows_last":500,"rows_between":2000,"halvings":0,"cell_chars":16384,"cell_head_chars":4096},"cells_cut":0,"cells_raw":0,"read":"whole","date_system":"1900"}

{"sheet":"Veiledning","index":0,"n_rows":4,"n_cols":2,"rows_kept":4,"cut":false,"hidden":false,"merged":[[1,1,2,11],[3,1,3,11]]}
[]
[null,"* Dersom man vil lage flere rader for å skrive mer under \"Annen\" i utdanningstype, velg da de to radene der det står \"Annen\" og en under, høyreklikk og velg \"ta frem\". Det vil da komme opp ekstra rader som vi har laget på forhånd. Vi ber om at dere ikke lager rader selv, da dette kan føre til eventuelle feil i kalkuleringen\n"]
[]
[null,"Klikk her for å gå tilbake til rapporteringskjema"]

{"sheet":"fylke","index":1,"n_rows":166,"n_cols":6,"rows_kept":166,"cut":false,"hidden":false,"merged":[[14,2,14,5],[3,2,3,3],[4,2,4,3],[11,1,11,5],[12,2,12,5],[13,2,13,5],[30,1,31,1],[30,2,30,3],[30,4,30,5],[15,2,15,5],[17,1,17,5],[18,2,18,5],[19,2,19,5],[20,2,20,5],[21,2,21,5],[22,2,22,5],[23,1,23,5],[24,1,26,5],[28,1,28,5],[29,1,29,5],[89,1,90,1],[89,2,89,3],[89,4,89,5],[40,1,40,5],[41,1,42,1],[41,2,41,3],[41,4,41,5],[55,1,55,5],[56,1,57,1],[56,2,56,3],[56,4,56,5],[71,1,71,5],[72,1,73,1],[72,2,72,3],[72,4,72,5],[88,1,88,5],[117,1,117,5],[96,1,96,5],[97,1,98,1],[97,2,97,3],[97,4,97,5],[109,1,109,5],[110,2,110,5],[111,2,111,5],[112,1,112,5],[113,1,113,5],[114,1,114,5],[115,1,115,5],[154,1,154,5],[124,1,124,5],[141,1,141,5],[142,1,142,5],[144,1,144,5],[145,2,145,5],[146,2,146,5],[147,2,147,5],[148,2,148,5],[149,2,149,5],[150,1,150,5],[151,1,153,5],[162,1,164,5],[165,1,165,5],[166,1,166,5],[155,1,155,5],[157,1,157,5],[158,2,158,5],[159,2,159,5],[160,2,160,5],[161,1,161,5]]}
[]
[]
[]
[null,"Dokumenttype","RAPPORTERINGSSKJEMA\nKompetanse og innovasjon",null,"Dato opprettet","2017-11-01"]
[null,"Ansvarlig avdeling i Helsedirektoratet","Utdanning og personellplanlegging",null,"Dato revidert","2018-01-31"]
[]
[null,"Rapportering fra Fylkesmannen til Helsedirektoratet  "]
[null," - Kap761, post 68 \" Kommunalt kompetanse- og innovasjonstilskudd"]
[null," - Kap761, post 78 \" Nasjonalt velferdsteknologiprogram - innføring av velferdsteknologiske løsninger"]
[null," - Kap 761, post 60 \"Kompetansehevingspott for sammenslåtte kommuner\""]
[]
[null,"1. Informasjon om Fylkesmannen"]
[null,"1.1.  Navn på fylkesmannsembetet \n         (Fylles ut av Helsedirektoratet)","Finnmark"]
[null,"1.2.  Kontaktperson"]
[null,"1.3.  E-post"]
[null,"1.4. Telefon"]
[]
[null,"2. Fullmakten til Kommunalt kompetanse- og innovasjonstilskudd "]
[null,"2.1. Beløp i fullmakten til fylkesmannsembetet i 2017\n        (Fylles ut av Helsedirektoratet)",7984600]
[null,"2.2. Antall kommuner som har mottatt tilskudd"]
[null,"2.3. Totalt søkt beløp (Automatisk kalkulering)",{"$f":"E109+E123+E141","v":0}]
[null,"2.4. Utbetalt beløp  (Automatisk kalkulering)",{"$f":"F109+F123+F141","v":0}]
[null,"2.5. Ubenyttet beløp  (Automatisk kalkulering)",{"$f":"C19-C22","v":7984600}]
[null,"*  Utfyllende forklaring om eventuelt ubenyttet beløp kan skrives nedenfor:"]
[]
[]
[]
[]
[null,"3. Kompetansetiltak (grunn-, videre- og etterutdanning)"]
[null,"3.1. Videregående skole, fag- og yrkesopplæring innen helse (fagbrev)"]
[null,"Utdanningstype","Måloppnåelse (antall ansatte)",null,"Tilskudd"]
[null,null,"Fullført utdanning","Samlet antall fullførte og under utdanning ","Søkt beløp","Utbetalt beløp"]
[null,"a. Helsefagarbeider",{"$f":"Vardø!C16+Vadsø!C16+Hammerfest!C16+GuovdageaidnuKautokeino!C16+Alta!C16+Loppa!C16+Hasvik!C16+Kvalsund!C16+Måsøy!C16+Nordkapp!C16+PorsangerPorsánguPorsanki!C16+KárásjohkaKarasjok!C16+Lebesby!C16+Gamvik!C16+Berlevåg!C16+DeatnuTana!C16+UnjárgaNesseby!C16+Båtsfjord!C16+SørVaranger!C16","v":0},{"$f":"Vardø!D16+Vadsø!D16+Hammerfest!D16+GuovdageaidnuKautokeino!D16+Alta!D16+Loppa!D16+Hasvik!D16+Kvalsund!D16+Måsøy!D16+Nordkapp!D16+PorsangerPorsánguPorsanki!D16+KárásjohkaKarasjok!D16+Lebesby!D16+Gamvik!D16+Berlevåg!D16+DeatnuTana!D16+UnjárgaNesseby!D16+Båtsfjord!D16+SørVaranger!D16","v":0}]
[null,"b. Annen utdanning på videregående skolenivå ",{"$f":"Vardø!C17+Vadsø!C17+Hammerfest!C17+GuovdageaidnuKautokeino!C17+Alta!C17+Loppa!C17+Hasvik!C17+Kvalsund!C17+Måsøy!C17+Nordkapp!C17+PorsangerPorsánguPorsanki!C17+KárásjohkaKarasjok!C17+Lebesby!C17+Gamvik!C17+Berlevåg!C17+DeatnuTana!C17+UnjárgaNesseby!C17+Båtsfjord!C17+SørVaranger!C17","v":0},{"$f":"Vardø!D17+Vadsø!D17+Hammerfest!D17+GuovdageaidnuKautokeino!D17+Alta!D17+Loppa!D17+Hasvik!D17+Kvalsund!D17+Måsøy!D17+Nordkapp!D17+PorsangerPorsánguPorsanki!D17+KárásjohkaKarasjok!D17+Lebesby!D17+Gamvik!D17+Berlevåg!D17+DeatnuTana!D17+UnjárgaNesseby!D17+Båtsfjord!D17+SørVaranger!D17","v":0}]
[]
[]
[]
[]
[]
[null,"Sum :",{"$f":"SUM(C33:C39)","v":0},{"$f":"SUM(D33:D39)","v":0},{"$f":"SUM(E33:E39)","v":0},{"$f":"SUM(F33:F39)","v":0}]
[null,"3.2. Fagskoleutdanning"]
[null,"Utdanningstype","Måloppnåelse (antall ansatte)",null,"Tilskudd"]
[null,null,"Fullført utdanning","Samlet antall fullførte og under utdanning ","Søkt beløp","Utbetalt beløp"]
[null,"a. Psykisk helsearbeid og rusarbeid",{"$f":"Vardø!C22+Vadsø!C22+Hammerfest!C22+GuovdageaidnuKautokeino!C22+Alta!C22+Loppa!C22+Hasvik!C22+Kvalsund!C22+Måsøy!C22+Nordkapp!C22+PorsangerPorsánguPorsanki!C22+KárásjohkaKarasjok!C22+Lebesby!C22+Gamvik!C22+Berlevåg!C22+DeatnuTana!C22+UnjárgaNesseby!C22+Båtsfjord!C22+SørVaranger!C22","v":0},{"$f":"Vardø!D22+Vadsø!D22+Hammerfest!D22+GuovdageaidnuKautokeino!D22+Alta!D22+Loppa!D22+Hasvik!D22+Kvalsund!D22+Måsøy!D22+Nordkapp!D22+PorsangerPorsánguPorsanki!D22+KárásjohkaKarasjok!D22+Lebesby!D22+Gamvik!D22+Berlevåg!D22+DeatnuTana!D22+UnjárgaNesseby!D22+Båtsfjord!D22+SørVaranger!D22","v":0}]
[null,"b. Eldreomsorg/demens",{"$f":"Vardø!C23+Vadsø!C23+Hammerfest!C23+GuovdageaidnuKautokeino!C23+Alta!C23+Loppa!C23+Hasvik!C23+Kvalsund!C23+Måsøy!C23+Nordkapp!C23+PorsangerPorsánguPorsanki!C23+KárásjohkaKarasjok!C23+Lebesby!C23+Gamvik!C23+Berlevåg!C23+DeatnuTana!C23+UnjárgaNesseby!C23+Båtsfjord!C23+SørVaranger!C23","v":0},{"$f":"Vardø!D23+Vadsø!D23+Hammerfest!D23+GuovdageaidnuKautokeino!D23+Alta!D23+Loppa!D23+Hasvik!D23+Kvalsund!D23+Måsøy!D23+Nordkapp!D23+PorsangerPorsánguPorsanki!D23+KárásjohkaKarasjok!D23+Lebesby!D23+Gamvik!D23+Berlevåg!D23+DeatnuTana!D23+UnjárgaNesseby!D23+Båtsfjord!D23+SørVaranger!D23","v":0}]
[null,"c. Habilitering/rehabilitering",{"$f":"Vardø!C24+Vadsø!C24+Hammerfest!C24+GuovdageaidnuKautokeino!C24+Alta!C24+Loppa!C24+Hasvik!C24+Kvalsund!C24+Måsøy!C24+Nordkapp!C24+PorsangerPorsánguPorsanki!C24+KárásjohkaKarasjok!C24+Lebesby!C24+Gamvik!C24+Berlevåg!C24+DeatnuTana!C24+UnjárgaNesseby!C24+Båtsfjord!C24+SørVaranger!C24","v":0},{"$f":"Vardø!D24+Vadsø!D24+Hammerfest!D24+GuovdageaidnuKautokeino!D24+Alta!D24+Loppa!D24+Hasvik!D24+Kvalsund!D24+Måsøy!D24+Nordkapp!D24+PorsangerPorsánguPorsanki!D24+KárásjohkaKarasjok!D24+Lebesby!D24+Gamvik!D24+Berlevåg!D24+DeatnuTana!D24+UnjárgaNesseby!D24+Båtsfjord!D24+SørVaranger!D24","v":0}]
[null,"d. Kreftomsorg/lindrende behandling",{"$f":"Vardø!C25+Vadsø!C25+Hammerfest!C25+GuovdageaidnuKautokeino!C25+Alta!C25+Loppa!C25+Hasvik!C25+Kvalsund!C25+Måsøy!C25+Nordkapp!C25+PorsangerPorsánguPorsanki!C25+KárásjohkaKarasjok!C25+Lebesby!C25+Gamvik!C25+Berlevåg!C25+DeatnuTana!C25+UnjárgaNesseby!C25+Båtsfjord!C25+SørVaranger!C25","v":0},{"$f":"Vardø!D25+Vadsø!D25+Hammerfest!D25+GuovdageaidnuKautokeino!D25+Alta!D25+Loppa!D25+Hasvik!D25+Kvalsund!D25+Måsøy!D25+Nordkapp!D25+PorsangerPorsánguPorsanki!D25+KárásjohkaKarasjok!D25+Lebesby!D25+Gamvik!D25+Berlevåg!D25+DeatnuTana!D25+UnjárgaNesseby!D25+Båtsfjord!D25+SørVaranger!D25","v":0}]
[null,"e. Veiledning",{"$f":"Vardø!C26+Vadsø!C26+Hammerfest!C26+GuovdageaidnuKautokeino!C26+Alta!C26+Loppa!C26+Hasvik!C26+Kvalsund!C26+Måsøy!C26+Nordkapp!C26+PorsangerPorsánguPorsanki!C26+KárásjohkaKarasjok!C26+Lebesby!C26+Gamvik!C26+Berlevåg!C26+DeatnuTana!C26+UnjárgaNesseby!C26+Båtsfjord!C26+SørVaranger!C26","v":0},{"$f":"Vardø!D26+Vadsø!D26+Hammerfest!D26+GuovdageaidnuKautokeino!D26+Alta!D26+Loppa!D26+Hasvik!D26+Kvalsund!D26+Måsøy!D26+Nordkapp!D26+PorsangerPorsánguPorsanki!D26+KárásjohkaKarasjok!D26+Lebesby!D26+Gamvik!D26+Berlevåg!D26+DeatnuTana!D26+UnjárgaNesseby!D26+Båtsfjord!D26+SørVaranger!D26","v":0}]
[null,"f. Annen fagskoleutdanning ",{"$f":"Vardø!C27+Vadsø!C27+Hammerfest!C27+GuovdageaidnuKautokeino!C27+Alta!C27+Loppa!C27+Hasvik!C27+Kvalsund!C27+Måsøy!C27+Nordkapp!C27+PorsangerPorsánguPorsanki!C27+KárásjohkaKarasjok!C27+Lebesby!C27+Gamvik!C27+Berlevåg!C27+DeatnuTana!C27+UnjárgaNesseby!C27+Båtsfjord!C27+SørVaranger!C27","v":0},{"$f":"Vardø!D27+Vadsø!D27+Hammerfest!D27+GuovdageaidnuKautokeino!D27+Alta!D27+Loppa!D27+Hasvik!D27+Kvalsund!D27+Måsøy!D27+Nordkapp!D27+PorsangerPorsánguPorsanki!D27+KárásjohkaKarasjok!D27+Lebesby!D27+Gamvik!D27+Berlevåg!D27+DeatnuTana!D27+UnjárgaNesseby!D27+Båtsfjord!D27+SørVaranger!D27","v":0}]
[]
[]
[]
[]
[]
[null,"Sum :",{"$f":"SUM(C44:C54)","v":0},{"$f":"SUM(D44:D54)","v":0},{"$f":"SUM(E44:E54)","v":0},{"$f":"SUM(F44:F54)","v":0}]
[null,"3.3. Bachelorutdanning helse- og sosialfag"]
[null,"Utdanningstype","Måloppnåelse (antall ansatte)",null,"Tilskudd"]
[null,null,"Fullført utdanning","Samlet antall fullførte og under utdanning ","Søkt beløp","Utbetalt beløp"]
[null,"a. Sykepleie",{"$f":"Vardø!C32+Vadsø!C32+Hammerfest!C32+GuovdageaidnuKautokeino!C32+Alta!C32+Loppa!C32+Hasvik!C32+Kvalsund!C32+Måsøy!C32+Nordkapp!C32+PorsangerPorsánguPorsanki!C32+KárásjohkaKarasjok!C32+Lebesby!C32+Gamvik!C32+Berlevåg!C32+DeatnuTana!C32+UnjárgaNesseby!C32+Båtsfjord!C32+SørVaranger!C32","v":0},{"$f":"Vardø!D32+Vadsø!D32+Hammerfest!D32+GuovdageaidnuKautokeino!D32+Alta!D32+Loppa!D32+Hasvik!D32+Kvalsund!D32+Måsøy!D32+Nordkapp!D32+PorsangerPorsánguPorsanki!D32+KárásjohkaKarasjok!D32+Lebesby!D32+Gamvik!D32+Berlevåg!D32+DeatnuTana!D32+UnjárgaNesseby!D32+Båtsfjord!D32+SørVaranger!D32","v":0}]
[null,"b. Vernepleie",{"$f":"Vardø!C33+Vadsø!C33+Hammerfest!C33+GuovdageaidnuKautokeino!C33+Alta!C33+Loppa!C33+Hasvik!C33+Kvalsund!C33+Måsøy!C33+Nordkapp!C33+PorsangerPorsánguPorsanki!C33+KárásjohkaKarasjok!C33+Lebesby!C33+Gamvik!C33+Berlevåg!C33+DeatnuTana!C33+UnjárgaNesseby!C33+Båtsfjord!C33+SørVaranger!C33","v":0},{"$f":"Vardø!D33+Vadsø!D33+Hammerfest!D33+GuovdageaidnuKautokeino!D33+Alta!D33+Loppa!D33+Hasvik!D33+Kvalsund!D33+Måsøy!D33+Nordkapp!D33+PorsangerPorsánguPorsanki!D33+KárásjohkaKarasjok!D33+Lebesby!D33+Gamvik!D33+Berlevåg!D33+DeatnuTana!D33+UnjárgaNesseby!D33+Båtsfjord!D33+SørVaranger!D33","v":0}]
[null,"c. Fysioterapi",{"$f":"Vardø!C34+Vadsø!C34+Hammerfest!C34+GuovdageaidnuKautokeino!C34+Alta!C34+Loppa!C34+Hasvik!C34+Kvalsund!C34+Måsøy!C34+Nordkapp!C34+PorsangerPorsánguPorsanki!C34+KárásjohkaKarasjok!C34+Lebesby!C34+Gamvik!C34+Berlevåg!C34+DeatnuTana!C34+UnjárgaNesseby!C34+Båtsfjord!C34+SørVaranger!C34","v":0},{"$f":"Vardø!D34+Vadsø!D34+Hammerfest!D34+GuovdageaidnuKautokeino!D34+Alta!D34+Loppa!D34+Hasvik!D34+Kvalsund!D34+Måsøy!D34+Nordkapp!D34+PorsangerPorsánguPorsanki!D34+KárásjohkaKarasjok!D34+Lebesby!D34+Gamvik!D34+Berlevåg!D34+DeatnuTana!D34+UnjárgaNesseby!D34+Båtsfjord!D34+SørVaranger!D34","v":0}]
[null,"d. Ergoterapi",{"$f":"Vardø!C35+Vadsø!C35+Hammerfest!C35+GuovdageaidnuKautokeino!C35+Alta!C35+Loppa!C35+Hasvik!C35+Kvalsund!C35+Måsøy!C35+Nordkapp!C35+PorsangerPorsánguPorsanki!C35+KárásjohkaKarasjok!C35+Lebesby!C35+Gamvik!C35+Berlevåg!C35+DeatnuTana!C35+UnjárgaNesseby!C35+Båtsfjord!C35+SørVaranger!C35","v":0},{"$f":"Vardø!D35+Vadsø!D35+Hammerfest!D35+GuovdageaidnuKautokeino!D35+Alta!D35+Loppa!D35+Hasvik!D35+Kvalsund!D35+Måsøy!D35+Nordkapp!D35+PorsangerPorsánguPorsanki!D35+KárásjohkaKarasjok!D35+Lebesby!D35+Gamvik!D35+Berlevåg!D35+DeatnuTana!D35+UnjárgaNesseby!D35+Båtsfjord!D35+SørVaranger!D35","v":0}]
[null,"e. Sosial arbeid (sosionom)",{"$f":"Vardø!C36+Vadsø!C36+Hammerfest!C36+GuovdageaidnuKautokeino!C36+Alta!C36+Loppa!C36+Hasvik!C36+Kvalsund!C36+Måsøy!C36+Nordkapp!C36+PorsangerPorsánguPorsanki!C36+KárásjohkaKarasjok!C36+Lebesby!C36+Gamvik!C36+Berlevåg!C36+DeatnuTana!C36+UnjárgaNesseby!C36+Båtsfjord!C36+SørVaranger!C36","v":0},{"$f":"Vardø!D36+Vadsø!D36+Hammerfest!D36+GuovdageaidnuKautokeino!D36+Alta!D36+Loppa!D36+Hasvik!D36+Kvalsund!D36+Måsøy!D36+Nordkapp!D36+PorsangerPorsánguPorsanki!D36+KárásjohkaKarasjok!D36+Lebesby!D36+Gamvik!D36+Berlevåg!D36+DeatnuTana!D36+UnjárgaNesseby!D36+Båtsfjord!D36+SørVaranger!D36","v":0}]
[null,"f. Barnevernspedagogikk",{"$f":"Vardø!C37+Vadsø!C37+Hammerfest!C37+GuovdageaidnuKautokeino!C37+Alta!C37+Loppa!C37+Hasvik!C37+Kvalsund!C37+Måsøy!C37+Nordkapp!C37+PorsangerPorsánguPorsanki!C37+KárásjohkaKarasjok!C37+Lebesby!C37+Gamvik!C37+Berlevåg!C37+DeatnuTana!C37+UnjárgaNesseby!C37+Båtsfjord!C37+SørVaranger!C37","v":0},{"$f":"Vardø!D37+Vadsø!D37+Hammerfest!D37+GuovdageaidnuKautokeino!D37+Alta!D37+Loppa!D37+Hasvik!D37+Kvalsund!D37+Måsøy!D37+Nordkapp!D37+PorsangerPorsánguPorsanki!D37+KárásjohkaKarasjok!D37+Lebesby!D37+Gamvik!D37+Berlevåg!D37+DeatnuTana!D37+UnjárgaNesseby!D37+Båtsfjord!D37+SørVaranger!D37","v":0}]
[null,"g. Anne bachelorutdanning",{"$f":"Vardø!C38+Vadsø!C38+Hammerfest!C38+GuovdageaidnuKautokeino!C38+Alta!C38+Loppa!C38+Hasvik!C38+Kvalsund!C38+Måsøy!C38+Nordkapp!C38+PorsangerPorsánguPorsanki!C38+KárásjohkaKarasjok!C38+Lebesby!C38+Gamvik!C38+Berlevåg!C38+DeatnuTana!C38+UnjárgaNesseby!C38+Båtsfjord!C38+SørVaranger!C38","v":0},{"$f":"Vardø!D38+Vadsø!D38+Hammerfest!D38+GuovdageaidnuKautokeino!D38+Alta!D38+Loppa!D38+Hasvik!D38+Kvalsund!D38+Måsøy!D38+Nordkapp!D38+PorsangerPorsánguPorsanki!D38+KárásjohkaKarasjok!D38+Lebesby!D38+Gamvik!D38+Berlevåg!D38+DeatnuTana!D38+UnjárgaNesseby!D38+Båtsfjord!D38+SørVaranger!D38","v":0}]
[]
[]
[]
[]
[]
[null,"Sum :",{"$f":"SUM(C59:C65)","v":0},{"$f":"SUM(D59:D65)","v":0},{"$f":"SUM(E59:E70)","v":0},{"$f":"SUM(F59:F70)","v":0}]
[null,"3.4. Videreutdanning og mastergradutdanning (påbygg bachelorutdanning)"]
[null,"Utdanningstype","Måloppnåelse (antall ansatte)",null,"Tilskudd"]
[null,null,"Fullført utdanning","Samlet antall fullførte og under utdanning ","Søkt beløp","Utbetalt beløp"]
[null,"a. Psykisk helsearbeid og rusarbeid",{"$f":"Vardø!C43+Vadsø!C43+Hammerfest!C43+GuovdageaidnuKautokeino!C43+Alta!C43+Loppa!C43+Hasvik!C43+Kvalsund!C43+Måsøy!C43+Nordkapp!C43+PorsangerPorsánguPorsanki!C43+KárásjohkaKarasjok!C43+Lebesby!C43+Gamvik!C43+Berlevåg!C43+DeatnuTana!C43+UnjárgaNesseby!C43+Båtsfjord!C43+SørVaranger!C43","v":0},{"$f":"Vardø!D43+Vadsø!D43+Hammerfest!D43+GuovdageaidnuKautokeino!D43+Alta!D43+Loppa!D43+Hasvik!D43+Kvalsund!D43+Måsøy!D43+Nordkapp!D43+PorsangerPorsánguPorsanki!D43+KárásjohkaKarasjok!D43+Lebesby!D43+Gamvik!D43+Berlevåg!D43+DeatnuTana!D43+UnjárgaNesseby!D43+Båtsfjord!D43+SørVaranger!D43","v":0}]
[null,"b. Tverrfaglig videreutdanning \n     i psykososialt arbeid med barn og unge",{"$f":"Vardø!C44+Vadsø!C44+Hammerfest!C44+GuovdageaidnuKautokeino!C44+Alta!C44+Loppa!C44+Hasvik!C44+Kvalsund!C44+Måsøy!C44+Nordkapp!C44+PorsangerPorsánguPorsanki!C44+KárásjohkaKarasjok!C44+Lebesby!C44+Gamvik!C44+Berlevåg!C44+DeatnuTana!C44+UnjárgaNesseby!C44+Båtsfjord!C44+SørVaranger!C44","v":0},{"$f":"Vardø!D44+Vadsø!D44+Hammerfest!D44+GuovdageaidnuKautokeino!D44+Alta!D44+Loppa!D44+Hasvik!D44+Kvalsund!D44+Måsøy!D44+Nordkapp!D44+PorsangerPorsánguPorsanki!D44+KárásjohkaKarasjok!D44+Lebesby!D44+Gamvik!D44+Berlevåg!D44+DeatnuTana!D44+UnjárgaNesseby!D44+Båtsfjord!D44+SørVaranger!D44","v":0}]
[null,"c. Eldreomsorg/demens",{"$f":"Vardø!C45+Vadsø!C45+Hammerfest!C45+GuovdageaidnuKautokeino!C45+Alta!C45+Loppa!C45+Hasvik!C45+Kvalsund!C45+Måsøy!C45+Nordkapp!C45+PorsangerPorsánguPorsanki!C45+KárásjohkaKarasjok!C45+Lebesby!C45+Gamvik!C45+Berlevåg!C45+DeatnuTana!C45+UnjárgaNesseby!C45+Båtsfjord!C45+SørVaranger!C45","v":0},{"$f":"Vardø!D45+Vadsø!D45+Hammerfest!D45+GuovdageaidnuKautokeino!D45+Alta!D45+Loppa!D45+Hasvik!D45+Kvalsund!D45+Måsøy!D45+Nordkapp!D45+PorsangerPorsánguPorsanki!D45+KárásjohkaKarasjok!D45+Lebesby!D45+Gamvik!D45+Berlevåg!D45+DeatnuTana!D45+UnjárgaNesseby!D45+Båtsfjord!D45+SørVaranger!D45","v":0}]
[null,"d. Kreftomsorg/lindrende pleie",{"$f":"Vardø!C46+Vadsø!C46+Hammerfest!C46+GuovdageaidnuKautokeino!C46+Alta!C46+Loppa!C46+Hasvik!C46+Kvalsund!C46+Måsøy!C46+Nordkapp!C46+PorsangerPorsánguPorsanki!C46+KárásjohkaKarasjok!C46+Lebesby!C46+Gamvik!C46+Berlevåg!C46+DeatnuTana!C46+UnjárgaNesseby!C46+Båtsfjord!C46+SørVaranger!C46","v":0},{"$f":"Vardø!D46+Vadsø!D46+Hammerfest!D46+GuovdageaidnuKautokeino!D46+Alta!D46+Loppa!D46+Hasvik!D46+Kvalsund!D46+Måsøy!D46+Nordkapp!D46+PorsangerPorsánguPorsanki!D46+KárásjohkaKarasjok!D46+Lebesby!D46+Gamvik!D46+Berlevåg!D46+DeatnuTana!D46+UnjárgaNesseby!D46+Båtsfjord!D46+SørVaranger!D46","v":0}]
[null,"e. Habilitering/rehabilitering",{"$f":"Vardø!C47+Vadsø!C47+Hammerfest!C47+GuovdageaidnuKautokeino!C47+Alta!C47+Loppa!C47+Hasvik!C47+Kvalsund!C47+Måsøy!C47+Nordkapp!C47+PorsangerPorsánguPorsanki!C47+KárásjohkaKarasjok!C47+Lebesby!C47+Gamvik!C47+Berlevåg!C47+DeatnuTana!C47+UnjárgaNesseby!C47+Båtsfjord!C47+SørVaranger!C47","v":0},{"$f":"Vardø!D47+Vadsø!D47+Hammerfest!D47+GuovdageaidnuKautokeino!D47+Alta!D47+Loppa!D47+Hasvik!D47+Kvalsund!D47+Måsøy!D47+Nordkapp!D47+PorsangerPorsánguPorsanki!D47+KárásjohkaKarasjok!D47+Lebesby!D47+Gamvik!D47+Berlevåg!D47+DeatnuTana!D47+UnjárgaNesseby!D47+Båtsfjord!D47+SørVaranger!D47","v":0}]
[null,"f. Veiledning",{"$f":"Vardø!C48+Vadsø!C48+Hammerfest!C48+GuovdageaidnuKautokeino!C48+Alta!C48+Loppa!C48+Hasvik!C48+Kvalsund!C48+Måsøy!C48+Nordkapp!C48+PorsangerPorsánguPorsanki!C48+KárásjohkaKarasjok!C48+Lebesby!C48+Gamvik!C48+Berlevåg!C48+DeatnuTana!C48+UnjárgaNesseby!C48+Båtsfjord!C48+SørVaranger!C48","v":0},{"$f":"Vardø!D48+Vadsø!D48+Hammerfest!D48+GuovdageaidnuKautokeino!D48+Alta!D48+Loppa!D48+Hasvik!D48+Kvalsund!D48+Måsøy!D48+Nordkapp!D48+PorsangerPorsánguPorsanki!D48+KárásjohkaKarasjok!D48+Lebesby!D48+Gamvik!D48+Berlevåg!D48+DeatnuTana!D48+UnjárgaNesseby!D48+Båtsfjord!D48+SørVaranger!D48","v":0}]
[null,"g. Lederutdanning",{"$f":"Vardø!C49+Vadsø!C49+Hammerfest!C49+GuovdageaidnuKautokeino!C49+Alta!C49+Loppa!C49+Hasvik!C49+Kvalsund!C49+Måsøy!C49+Nordkapp!C49+PorsangerPorsánguPorsanki!C49+KárásjohkaKarasjok!C49+Lebesby!C49+Gamvik!C49+Berlevåg!C49+DeatnuTana!C49+UnjárgaNesseby!C49+Båtsfjord!C49+SørVaranger!C49","v":0},{"$f":"Vardø!D49+Vadsø!D49+Hammerfest!D49+GuovdageaidnuKautokeino!D49+Alta!D49+Loppa!D49+Hasvik!D49+Kvalsund!D49+Måsøy!D49+Nordkapp!D49+PorsangerPorsánguPorsanki!D49+KárásjohkaKarasjok!D49+Lebesby!D49+Gamvik!D49+Berlevåg!D49+DeatnuTana!D49+UnjárgaNesseby!D49+Båtsfjord!D49+SørVaranger!D49","v":0}]
[null,"h. Annen videreutdanning og/eller masterutdanning ",{"$f":"Vardø!C50+Vadsø!C50+Hammerfest!C50+GuovdageaidnuKautokeino!C50+Alta!C50+Loppa!C50+Hasvik!C50+Kvalsund!C50+Måsøy!C50+Nordkapp!C50+PorsangerPorsánguPorsanki!C50+KárásjohkaKarasjok!C50+Lebesby!C50+Gamvik!C50+Berlevåg!C50+DeatnuTana!C50+UnjárgaNesseby!C50+Båtsfjord!C50+SørVaranger!C50","v":0},{"$f":"Vardø!D50+Vadsø!D50+Hammerfest!D50+GuovdageaidnuKautokeino!D50+Alta!D50+Loppa!D50+Hasvik!D50+Kvalsund!D50+Måsøy!D50+Nordkapp!D50+PorsangerPorsánguPorsanki!D50+KárásjohkaKarasjok!D50+Lebesby!D50+Gamvik!D50+Berlevåg!D50+DeatnuTana!D50+UnjárgaNesseby!D50+Båtsfjord!D50+SørVaranger!D50","v":0}]
[]
[]
[]
[]
[]
[null,"Sum :",{"$f":"SUM(C75:C82)","v":0},{"$f":"SUM(D75:D87)","v":0},{"$f":"SUM(E75:E87)","v":0},{"$f":"SUM(F75:F87)","v":0}]
[null,"3.5. ABC-opplæring"]
[null,"Opplæringstype","Måloppnåelse (antall ansatte)",null,"Tilskudd"]
[null,null,"Fullført opplæring ","Samlet antall fullførte og under opplæring ","Søkt beløp","Utbetalt beløp"]
[null,"a. Demensomsorgens ABC",{"$f":"Vardø!C55+Vadsø!C55+Hammerfest!C55+GuovdageaidnuKautokeino!C55+Alta!C55+Loppa!C55+Hasvik!C55+Kvalsund!C55+Måsøy!C55+Nordkapp!C55+PorsangerPorsánguPorsanki!C55+KárásjohkaKarasjok!C55+Lebesby!C55+Gamvik!C55+Berlevåg!C55+DeatnuTana!C55+UnjárgaNesseby!C55+Båtsfjord!C55+SørVaranger!C55","v":0},{"$f":"Vardø!D55+Vadsø!D55+Hammerfest!D55+GuovdageaidnuKautokeino!D55+Alta!D55+Loppa!D55+Hasvik!D55+Kvalsund!D55+Måsøy!D55+Nordkapp!D55+PorsangerPorsánguPorsanki!D55+KárásjohkaKarasjok!D55+Lebesby!D55+Gamvik!D55+Berlevåg!D55+DeatnuTana!D55+UnjárgaNesseby!D55+Båtsfjord!D55+SørVaranger!D55","v":0}]
[null,"b. Eldreomsorgens ABC",{"$f":"Vardø!C56+Vadsø!C56+Hammerfest!C56+GuovdageaidnuKautokeino!C56+Alta!C56+Loppa!C56+Hasvik!C56+Kvalsund!C56+Måsøy!C56+Nordkapp!C56+PorsangerPorsánguPorsanki!C56+KárásjohkaKarasjok!C56+Lebesby!C56+Gamvik!C56+Berlevåg!C56+DeatnuTana!C56+UnjárgaNesseby!C56+Båtsfjord!C56+SørVaranger!C56","v":0},{"$f":"Vardø!D56+Vadsø!D56+Hammerfest!D56+GuovdageaidnuKautokeino!D56+Alta!D56+Loppa!D56+Hasvik!D56+Kvalsund!D56+Måsøy!D56+Nordkapp!D56+PorsangerPorsánguPorsanki!D56+KárásjohkaKarasjok!D56+Lebesby!D56+Gamvik!D56+Berlevåg!D56+DeatnuTana!D56+UnjárgaNesseby!D56+Båtsfjord!D56+SørVaranger!D56","v":0}]
[null,"c. Mitt livs ABC",{"$f":"Vardø!C57+Vadsø!C57+Hammerfest!C57+GuovdageaidnuKautokeino!C57+Alta!C57+Loppa!C57+Hasvik!C57+Kvalsund!C57+Måsøy!C57+Nordkapp!C57+PorsangerPorsánguPorsanki!C57+KárásjohkaKarasjok!C57+Lebesby!C57+Gamvik!C57+Berlevåg!C57+DeatnuTana!C57+UnjárgaNesseby!C57+Båtsfjord!C57+SørVaranger!C57","v":0},{"$f":"Vardø!D57+Vadsø!D57+Hammerfest!D57+GuovdageaidnuKautokeino!D57+Alta!D57+Loppa!D57+Hasvik!D57+Kvalsund!D57+Måsøy!D57+Nordkapp!D57+PorsangerPorsánguPorsanki!D57+KárásjohkaKarasjok!D57+Lebesby!D57+Gamvik!D57+Berlevåg!D57+DeatnuTana!D57+UnjárgaNesseby!D57+Båtsfjord!D57+SørVaranger!D57","v":0}]
[null,"d. Velferdsteknologien ABC",{"$f":"Vardø!C58+Vadsø!C58+Hammerfest!C58+GuovdageaidnuKautokeino!C58+Alta!C58+Loppa!C58+Hasvik!C58+Kvalsund!C58+Måsøy!C58+Nordkapp!C58+PorsangerPorsánguPorsanki!C58+KárásjohkaKarasjok!C58+Lebesby!C58+Gamvik!C58+Berlevåg!C58+DeatnuTana!C58+UnjárgaNesseby!C58+Båtsfjord!C58+SørVaranger!C58","v":0},{"$f":"Vardø!D58+Vadsø!D58+Hammerfest!D58+GuovdageaidnuKautokeino!D58+Alta!D58+Loppa!D58+Hasvik!D58+Kvalsund!D58+Måsøy!D58+Nordkapp!D58+PorsangerPorsánguPorsanki!D58+KárásjohkaKarasjok!D58+Lebesby!D58+Gamvik!D58+Berlevåg!D58+DeatnuTana!D58+UnjárgaNesseby!D58+Båtsfjord!D58+SørVaranger!D58","v":0}]
[null,"Sum :",{"$f":"SUM(C92:C95)","v":0},{"$f":"SUM(D92:D95)","v":0},{"$f":"SUM(E92:E95)","v":0},{"$f":"SUM(F92:F95)","v":0}]
[null,"3.6. Annen internopplæring / korte etterutdanninger /kurs mv. "]
[null,"Opplæringstype","Måloppnåelse (antall ansatte)",null,"Tilskudd"]
[null,null,"Fullført opplæring ","Samlet antall fullførte og under opplæring ","Søkt beløp","Utbetalt beløp"]
[null,"a.  Innen psykisk helsearbeid og rusfeltet",{"$f":"UnjárgaNesseby!C65+Båtsfjord!C64+SørVaranger!C63","v":0},{"$f":"Vardø!D63+Vadsø!D63+Hammerfest!D63+GuovdageaidnuKautokeino!D63+Alta!D63+Loppa!D63+Hasvik!D63+Kvalsund!D63+Måsøy!D63+Nordkapp!D63+PorsangerPorsánguPorsanki!D63+KárásjohkaKarasjok!D63+Lebesby!D63+Gamvik!D63+Berlevåg!D63+DeatnuTana!D63+UnjárgaNesseby!D63+Båtsfjord!D63+SørVaranger!D63","v":0}]
[null,"b. Innen eldreomsorg og demens",{"$f":"Båtsfjord!C65+SørVaranger!C64","v":0},{"$f":"Vardø!D64+Vadsø!D64+Hammerfest!D64+GuovdageaidnuKautokeino!D64+Alta!D64+Loppa!D64+Hasvik!D64+Kvalsund!D64+Måsøy!D64+Nordkapp!D64+PorsangerPorsánguPorsanki!D64+KárásjohkaKarasjok!D64+Lebesby!D64+Gamvik!D64+Berlevåg!D64+DeatnuTana!D64+UnjárgaNesseby!D64+Båtsfjord!D64+SørVaranger!D64","v":0}]
[null,"c. Annet",{"$f":"SørVaranger!C65","v":0},{"$f":"Vardø!D65+Vadsø!D65+Hammerfest!D65+GuovdageaidnuKautokeino!D65+Alta!D65+Loppa!D65+Hasvik!D65+Kvalsund!D65+Måsøy!D65+Nordkapp!D65+PorsangerPorsánguPorsanki!D65+KárásjohkaKarasjok!D65+Lebesby!D65+Gamvik!D65+Berlevåg!D65+DeatnuTana!D65+UnjárgaNesseby!D65+Båtsfjord!D65+SørVaranger!D65","v":0}]
[]
[]
[]
[]
[]
[null,"Sum :",{"$f":"SUM(C100:C107)","v":0},{"$f":"SUM(D100:D107)","v":0},{"$f":"SUM(E100:E107)","v":0},{"$f":"SUM(F100:F107)","v":0}]
[null,"Totalt (Inkludert 3.7.) :",{"$f":"C40+C55+C71+C88+C96+C108","v":0},{"$f":"D40+D55+D71+D88+D96+D108","v":0},{"$f":"E40+E55+E71+E88+E96+E108+C111","v":0},{"$f":"F40+F55+F71+F88+F96+F108+C112","v":0}]
[null,"3.7. Andre kompetansehevende tiltak"]
[null,"a. Søkt beløp"]
[null,"b. Utbetalt beløp"]
[null,"   c. Beskrivelse av ulike tiltak som tilskuddet har gått til"]
[]
[null,"3.8. Fylkesmannens vurdering om måloppnåelse for kompetanseheving og kompetansesituasjonen  \n        for grunn-, videre- og etterutdanning i kommunene i fylket  (kan sendes som eget vedlegg)"]
[]
[]
[null,"4. Opplæringstilskudd BPA (brukerstyrt personlig assistanse)"]
[null,null,"Antall  personer søkt ","Antall personer innvilget","Søkt beløp","Utbetalt beløp"]
[null,"a. Arbeidsledere som har fått tilskudd til opplæring"]
[null,"b. Saksbehandlere som har fått tilskudd til opplæring"]
[null,"c. Assistenter som har fått tilskudd til opplæring"]
[null,"Totalt :",{"$f":"SUM(C120:C122)","v":0},{"$f":"SUM(D120:D122)","v":0},{"$f":"SUM(E120:E122)","v":0},{"$f":"SUM(F120:F122)","v":0}]
[]
[null,"5. Innovasjonsprosjekter"]
[null,"5.1. Prosjekterstype","Antall søknader","Antall søknader innvilget","Søkt beløp","Utbetalt beløp"]
[null,"a. Forebygging,  tidlig innsats og egenmestring"]
[null,"b. Habilitering og rehabilitering, \n     herunder hverdagsrehabilitering"]
[null,"c. Velferdsteknologiske løsninger\n\n(Dette punktet gjelder ikke for øremerkede midler til \"Nasjonalt velferdsteknologiprogram- innføring av velferdsteknologiskeløsninger (Omsorg 2020)\"\nRapporteringen for velferdsteknologiprogram skal gjøres under punkt 6) \n"]
[null,"d. Samspill med pårørende og frivillige \n     i omsorgssektoren generelt \n     og demensomsorgen spesielt"]
[null,"e. Legemiddelhåndtering"]
[null,"f. Ernæring"]
[null,"g. Fritidsaktivitet med assistanse"]
[null,"h. Kulturopplevelser"]
[null,"i. Annet"]
[]
[]
[]
[]
[]
[null,"Totalt :",{"$f":"SUM(C127:C140)","v":0},{"$f":"SUM(D127:D140)","v":0},{"$f":"SUM(E127:E140)","v":0},{"$f":"SUM(F127:F140)","v":0}]
[null,"5.2. Fylkesmannens vurdering av innovasjonsprosjektene i kommunene i fylket\n(kan sendes som eget vedlegg)"]
[]
[]
[null,"6. Nasjonalt velferdsteknologiprogram - innføring av velferdsteknologiske løsninger"]
[null,"6.1. Beløp i fullmakten til fylkesmannsembetet i 2017\n        (Fylles ut av Helsedirektoratet)",609800]
[null,"6.2. Antall kommuner som har mottat tilskudd"]
[null,"6.3. Totalt søkt beløp "]
[null,"6.4. Utbetalt beløp"]
[null,"6.5. Ubenyttet beløp"]
[null,"*  Utfyllende forklaring om eventuelt ubenyttet beløp kan skrives nedenfor:"]
[]
[]
[]
[null,"6.6. Fylkesmannens samlet vurdering av prosjektene på det øremerkede midlene til Nasjonalt velferdsteknologiprogram - innføring av \n         velferdsteknologiske løsninger  (kan sendes som eget vedlegg)"]
[]
[]
[null,"7. Kompetansehevingspott for sammenslåtte kommuner "]
[null,"7.1. Beløp i fullmakten til fylkesmannsembetet i 2017\n        (Fylles ut av Helsedirektoratet)",247934]
[null,"7.2. Antall kommuner som har mottatt tilskudd"]
[null,"7.3. Ubenyttet beløp  "]
[null,"*  Utfyllende forklaring om eventuelt ubenyttet beløp kan skrives nedenfor:"]
[]
[]
[]
[null,"7.4. Beskriv hvilke kommuner og hvordan kompetansehevingspotten for sammenslåtte kommuner er benyttet\n(kan sendes som eget vedlegg)"]

{"sheet":"SørVaranger","index":2,"n_rows":177,"n_cols":9,"rows_kept":177,"cut":false,"hidden":false,"merged":[[12,1,12,8],[13,1,14,1],[13,2,13,3],[13,4,13,7],[13,8,14,8],[15,8,17,8],[1,1,1,8],[2,2,2,8],[3,2,3,8],[4,2,4,8],[5,2,5,8],[11,1,11,8],[28,1,28,8],[29,1,30,1],[29,2,29,3],[29,4,29,7],[29,8,30,8],[31,8,38,8],[18,1,18,8],[19,1,20,1],[19,2,19,3],[19,4,19,7],[19,8,20,8],[21,8,27,8],[51,1,51,8],[52,1,53,1],[52,2,52,3],[52,4,52,7],[52,8,53,8],[54,8,58,8],[39,1,39,8],[40,1,41,1],[40,2,40,3],[40,4,40,7],[40,8,41,8],[42,8,50,8],[67,1,67,8],[68,2,68,7],[68,8,71,8],[69,2,69,7],[70,2,70,7],[71,2,71,7],[59,1,59,8],[60,1,61,1],[60,2,60,3],[60,4,60,7],[60,8,61,8],[62,8,66,8],[83,1,83,8],[84,1,84,8],[85,1,85,2],[85,4,85,8],[86,1,86,2],[86,4,86,8],[72,1,72,8],[73,1,73,8],[75,1,75,8],[76,1,77,1],[76,2,76,4],[76,5,76,8],[90,1,90,2],[90,4,90,8],[91,1,91,2],[91,4,91,8],[92,1,92,2],[92,4,92,8],[87,1,87,2],[87,4,87,8],[88,1,88,2],[88,4,88,8],[89,1,89,2],[89,4,89,8],[98,1,98,8],[99,1,99,8],[100,1,100,8],[101,1,101,8],[102,1,102,8],[103,1,103,8],[93,1,93,2],[93,4,93,8],[94,1,94,8],[95,1,95,8],[96,1,96,8],[97,1,97,8],[112,1,112,2],[113,1,113,2],[114,1,114,2],[115,1,115,2],[116,1,116,2],[117,1,117,2],[104,1,104,8],[105,1,105,8],[106,1,106,3],[106,4,106,8],[107,1,107,2],[107,4,118,8],[108,1,108,3],[109,1,109,2],[110,1,110,2],[111,1,111,2],[122,1,122,8],[123,1,123,2],[123,3,123,8],[124,1,124,2],[124,3,124,8],[126,1,126,7],[118,1,118,2],[119,1,119,8],[120,1,120,2],[120,4,120,8],[121,1,121,2],[121,4,121,8],[137,1,137,8],[138,1,140,8],[141,1,141,8],[142,1,144,8],[145,1,145,8],[146,1,148,8],[127,1,127,8],[128,1,129,8],[130,1,130,8],[131,1,132,8],[133,1,133,8],[134,1,136,8],[157,1,157,2],[158,1,158,2],[159,1,159,2],[160,1,160,2],[161,1,161,2],[162,1,162,2],[149,1,149,8],[150,1,150,3],[150,4,150,8],[151,1,151,2],[151,4,162,8],[152,1,152,3],[153,1,153,2],[154,1,154,2],[155,1,155,2],[156,1,156,2],[167,1,167,2],[167,3,167,8],[168,1,168,2],[168,3,168,8],[163,1,163,8],[164,1,164,2],[164,4,164,8],[165,1,165,2],[165,4,165,8],[166,1,166,8]]}
[]
[null,"1. Informasjon om kommunen "]
[null,"1.1. Navn på kommunen"]
[null,"1.2. Kontaktperson"]
[null,"1.3. E-post"]
[null,"1.4. Telefon"]
[]
[null,"Rapportering fra kommunen til Fylkesmannen"]
[null," - Kap761, post 68 \" Kommunalt kompetanse- og innovasjonstilskudd\""]
[null," - Kap761, post 78 \" Nasjonalt velferdsteknologiprogram - innføring av velferdsteknologiske løsninger\""]
[]
[null,"2. Kompetansetiltak (grunn-, videre- og etterutdanning)"]
[null,"2.1. Videregående skole, fag- og yrkesopplæring innen helse (fagbrev)"]
[null,"Utdanningstype","Måloppnåelse (antall ansatte)",null,"Økonomirapportering",null,null,null,"Merknader\n(nærmere om hvilken annen utdanning)"]
[null,null,"Fullført utdanning\n","Samlet antall fullførte og under utdanning ","Søkt beløp","Innvilget beløp ","Ubrukt \nønkes overført","Ubrukt\nbetales tilbake"]
[null,"a. Helsefagarbeider",0,0,0,0,0,0]
[null,"b. Annen utdanning på videregående skolenivå",0,0,0,0,0,0]
[null,"Sum :",{"$f":"SUM(C16:C17)","v":0},{"$f":"SUM(D16:D17)","v":0},{"$f":"SUM(E16:E17)","v":0},{"$f":"SUM(F16:F17)","v":0},{"$f":"SUM(G16:G17)","v":0},0]
[null,"2.2. Fagskoleutdanning"]
[null,"Utdanningstype","Måloppnåelse (antall ansatte)",null,"Økonomirapportering",null,null,null,"Merknader\n(nærmere om hvilken annen utdanning)"]
[null,null,"Fullført utdanning\n","Samlet antall fullførte og under utdanning","Søkt beløp","Innvilget beløp ","Ubrukt \nønkes overført","Ubrukt\nbetales tilbake"]
[null,"a. Psykisk helsearbeid og rusarbeid",0,0,0,0,0,0]
[null,"b. Eldreomsorg/demens",0,0,0,0,0,0]
[null,"c. Habilitering/rehabilitering",0,0,0,0,0,0]
[null,"d. Kreftomsorg/lindrende behandling",0,0,0,0,0,0]
[null,"e. Veiledning",0,0,0,0,0,0]
[null,"f. Annen fagskoleutdanning",0,0,0,0,0,0]
[null,"Sum :",{"$f":"SUM(C22:C27)","v":0},{"$f":"SUM(D22:D27)","v":0},{"$f":"SUM(E22:E27)","v":0},{"$f":"SUM(F22:F27)","v":0},0,0]
[null,"  2.3. Bachelorutdanning helse- og sosialfag"]
[null,"Utdanningstype","Måloppnåelse (antall ansatte)",null,"Økonomirapportering",null,null,null,"Merknader\n(nærmere om hvilken annen utdanning)"]
[null,null,"Fullført utdanning\n","Samlet antall fullførte og under utdanning","Søkt beløp","Innvilget beløp ","Ubrukt \nønkes overført","Ubrukt\nbetales tilbake"]
[null,"a. Sykepleie",0,0,0,0,0,0]
[null,"b. Vernepleie",0,0,0,0,0,0]
[null,"c. Fysioterapi",0,0,0,0,0,0]
[null,"d. Ergoterapi",0,0,0,0,0,0]
[null,"e. Sosial arbeid (sosionom)",0,0,0,0,0,0]
[null,"f. Barnevernspedagogikk",0,0,0,0,0,0]
[null,"g. Annen bachelorutdanning",0,0,0,0,0,0]
[null,"Sum :",{"$f":"SUM(C32:C38)","v":0},{"$f":"SUM(D32:D38)","v":0},{"$f":"SUM(E32:E38)","v":0},{"$f":"SUM(F32:F38)","v":0},0,0]
[null,"  2.4. Videreutdanning og mastergradutdanning (påbygg bachelorutdanning)"]
[null,"Utdanningstype","Måloppnåelse (antall ansatte)",null,"Økonomirapportering",null,null,null,"Merknader\n(nærmere om hvilken annen utdanning)"]
[null,null,"Fullført utdanning\n","Samlet antall fullførte og under utdanning","Søkt beløp","Innvilget beløp ","Ubrukt \nønkes overført","Ubrukt\nbetales tilbake"]
[null,"a. Psykisk helsearbeid og rusarbeid",0,0,0,0,0,0]
[null,"b. Tverrfaglig videreutdanning \n     i psykososialt arbeid med barn og unge",0,0,0,0,0,0]
[null,"c. Eldreomsorg/demens",0,0,0,0,0,0]
[null,"d. Kreftomsorg/lindrende pleie",0,0,0,0,0,0]
[null,"e. Habilitering/rehabilitering",0,0,0,0,0,0]
[null,"f. Veiledning",0,0,0,0,0,0]
[null,"g. Lederutdanning",0,0,0,0,0,0]
[null,"h. Annen videreutdanning og/eller masterutdanning",0,0,0,0,0,0]
[null,"Sum :",{"$f":"SUM(C43:C50)","v":0},{"$f":"SUM(D43:D50)","v":0},{"$f":"SUM(E43:E50)","v":0},{"$f":"SUM(F43:F50)","v":0},0,0]
[null,"2.5. ABC-opplæring"]
[null,"Opplæringstype","Måloppnåelse (antall ansatte)",null,"Økonomirapportering",null,null,null,"Merknader"]
[null,null,"Fullført opplæring ","Samlet antall fullførte og under opplæring ","Søkt beløp","Innvilget beløp ","Ubrukt \nønkes overført","Ubrukt\nbetales tilbake"]
[null,"a. Demensomsorgens ABC",0,0,0,0,0,0]
[null,"b. Eldreomsorgens ABC",0,0,0,0,0,0]
[null,"c. Mitt livs ABC",0,0,0,0,0,0]
[null,"d. Velferdsteknologien ABC",0,0,0,0,0,0]
[null,"Sum :",{"$f":"SUM(C55:C58)","v":0},{"$f":"SUM(D55:D58)","v":0},{"$f":"SUM(E55:E58)","v":0},{"$f":"SUM(F55:F58)","v":0},{"$f":"SUM(G55:G58)","v":0},{"$f":"SUM(H55:H58)","v":0}]
[null,"2.6. Annen internopplæring / korte etterutdanninger /kurs mv."]
[null,"Opplæringstype","Måloppnåelse (antall ansatte)",null,"Økonomirapportering",null,null,null,"Merknader\n(nærmere om hvilken annen opplæring)"]
[null,null,"Fullført utdanning\n/ opplæring ","Samlet antall fullførte og under utdanning / opplæring ","Søkt beløp","Innvilget beløp ","Ubrukt \nønkes overført","Ubrukt\nbetales tilbake"]
[null,"a.  Innen psykisk helsearbeid og rusfeltet",0,0,0,0,0,0]
[null,"b. Innen eldreomsorg og demensfeltet",0,0,0,0,0,0]
[null,"c. Annet",0,0,0,0,0,0]
[null,"Sum :",{"$f":"SUM(C63:C65)","v":0},0,{"$f":"SUM(E63:E65)","v":0},{"$f":"SUM(F63:F65)","v":0},{"$f":"SUM(G63:G65)","v":0},{"$f":"SUM(H63:H65)","v":0}]
[null,"Total sum (inkludert 2.7.) :",{"$f":"C18+C28+C39+C51+C59+C66","v":0},{"$f":"D18+D28+D39+D51+D59+D66","v":0},{"$f":"E18+E28+E39+E51+E59+E66+C69","v":0},{"$f":"F18+F28+F39+F51+F59+F66+C70","v":0},{"$f":"G18+G28+G39+G51+G59+G66+C71","v":0},{"$f":"H18+H28+H39+H51+H59+H66+C72","v":0}]
[null,"2.7. Andre kompetansehevende tiltak"]
[null,"a. Søkt beløp"]
[null,"b. Innvilget beløp "]
[null,"c. Ubrukt, ønkes overført"]
[null,"d. Ubrukt, betales tilbake"]
[null,"e. Beskrivelse av tiltaket og hva tilskuddet har gått til."]
[]
[]
[null,"3. Opplæringstilskudd BPA (brukerstyrt personlig assistanse)"]
[null,null,"Måloppnåelse (antall personer)",null,null,"Økonomirapportering"]
[null,null,"Søkt ","Innvilget","Gjennomført","Søkt beløp","Utbetalt beløp","Ubrukt \nønkes overført","Ubrukt\nbetales tilbake"]
[null,"a. Arbeidsledere som har fått tilskudd til opplæring",0,0,0,0,0,0,0]
[null,"b. Saksbehandlere som har fått tilskudd til opplæring",0,0,0,0,0,0,0]
[null,"c. Assistenter som har fått tilskudd til opplæring",0,0,0,0,0,0,0]
[null,"Sum :",{"$f":"SUM(C79:C81)","v":0},{"$f":"SUM(D79:D81)","v":0},0,0,0,0,0]
[]
[null,"4. Innovasjonsprosjekter"]
[null,"4.1. Tema for prosjektene det rapporteres på"]
[null,"Tema ",null,"Antall prosjekter","Tittel på prosjekt/merknader"]
[null,"a. Velferdsteknologiske løsninger"]
[null,"b. Samspill med pårørende og frivillige i omsorgssektoren generelt og  \n    demensomsorgen spesielt."]
[null,"c. Legemiddelhåndtering"]
[null,"d. Ernæring"]
[null,"e. Fritidsaktivitet med assistanse"]
[null,"f. Kulturopplevelser"]
[null,"g. Annet"]
[null,"Sum :",null,{"$f":"SUM(D87:D93)","v":0}]
[null,"4.2. Rapportering på kriterier for måloppnåelse \n * Forskningsrapporter og annen dokumentasjon fra innovasjonsprosjekter under denne tilskuddsordningen skal i tillegg sendes Senter for Omsorgsforskning, \n     postmottak@hig.no, Høgskolen i Gjøvik, Postboks 191, 2802 Gjøvik."]
[null,"a. Beskrivelse av brukernes erfaringer og opplevd nytte"]
[]
[null,"b. I hvilken grad har behovet for kompenserende tjenester blitt redusert/vise til redusert behov for kompenserende tjenester?"]
[]
[null,"c. I hvilken grad har nye løsninger gitt kvalitative og økonomiske gevinster for brukerne og kommunen?"]
[]
[null,"d. I hvilken grad har tiltaket overføringsverdi til andre kommuner og betydning for praksis?"]
[]
[null,"e. I hvilken grad og hvordan har innovasjonsmetodikk blitt benyttet i prosjektet?"]
[]
[null,"4.3. Regnskap for innovasjonsprosjekt"]
[null,"Inntektekter",null,null,"Merknader"]
[null,"a. Tilskuddsbeløp fra Fylkesmannen",null,0]
[null,"Utgifter"]
[null,"b. Lønnsutgifter med sosiale utgifter ",null,0]
[null,"c. Reiseutgifter, arrangement, møter, konferanser",null,0]
[null,"d. Konsulenttjenester",null,0]
[null,"e. Trykking, publikasjoner, kunngjøringer, utsending og distribusjonskostnader ",null,0]
[null,"f. Investeringer/ inventar/ utstyr",null,0]
[null,"g. Driftsutgifter, forbruksmateriell og kontortjenester inkludert lokaler og energi",null,0]
[null,"h. Andre utgifter (spesifiser i merknadsteltet)",null,0]
[null,"Sum utgifter",null,{"$f":"SUM(D110:D116)","v":0}]
[null,"Ubrukt tilskudd på rapporteringstidspunktet",null,{"$f":"SUM(D108-D117)","v":0}]
[null,"Søkes overført",null,0]
[null,"4.4. Informasjon om inntekter fra andre kilder"]
[null,"a. Inntekter fra andre kilder/statlige prosjekt",null,0]
[null,"b. Egenfinansiering",null,0]
[null,"4.5. Revisoruttalelse"]
[null,"a. Revisoruttalelse (velg ett alternativ fra nedtrekksliste i neste rute)"]
[null,"b. Kommentarer til revisoruttalelse"]
[]
[null,"5. Nasjonalt velferdsteknologiprogram - innføring av velferdsteknologiske løsninger\n    * Rapportering for punktene ( fra 5.1. til 5.6.) kan sendes som eget vedlegg"]
[null,"5.1. Følges oppgitt fremdriftsplan i prosjektet?  (Inntil 300 ord)"]
[]
[]
[null,"5.2. Hvem er samarbeidspartnere i prosjektet og hvordan er status med tanke på samarbeid? (Inntil 300 ord)"]
[]
[]
[null,"5.3. Hva er status for implementering av velferdsteknologi i kommunene etter fastsatte måltall, hvilke tjenesteinnovasjoner som er gjennomført og   hvilke endringer dette har resultert i? \n      (Inntil 600 ord)"]
[]
[]
[]
[null,"5.4. Hva er forventede og realiserte gevinster av prosjektet for kommunen (spart tid, unngåtte kostnader, økt kvalitet)?  (Inntil 600 ord)"]
[]
[]
[]
[null,"5.5. Hvordan er kommunens planer for skalering av løsningene og overgang til løpende driftsfase, herunder planer for investering og drift av løsninger? (Inntil 600 ord)"]
[]
[]
[]
[null,"5.6. Hvordan er brukermedvirkning sikret i prosjektet? Angi på hvilken måte pasienter, brukere og pårørende er involvert? Hva er resultater for brukerne?(Inntil 600 ord)"]
[]
[]
[]
[null,"5.7. Regnskap for nasjonalt velferdsteknologiprogram - innføring av velferdsteknologiske løsninger"]
[null,"Inntektekter",null,null,"Merknader"]
[null,"a. Tilskuddsbeløp fra Fylkesmannen",null,0]
[null,"Utgifter"]
[null,"b. Lønnsutgifter med sosiale utgifter ",null,0]
[null,"c. Reiseutgifter, arrangement, møter, konferanser",null,0]
[null,"d. Konsulenttjenester",null,0]
[null,"e. Trykking, publikasjoner, kunngjøringer, utsending og distribusjonskostnader ",null,0]
[null,"f. Investeringer/ inventar/ utstyr",null,0]
[null,"g. Driftsutgifter, forbruksmateriell og kontortjenester inkludert lokaler og energi",null,0]
[null,"h. Andre utgifter (spesifiser i merknadsteltet)",null,0]
[null,"Sum utgifter",null,{"$f":"SUM(D154:D160)","v":0}]
[null,"Ubrukt tilskudd på rapporteringstidspunktet",null,{"$f":"SUM(D152-D161)","v":0}]
[null,"Søkes overført",null,0]
[null,"5.8. Informasjon om inntekter fra andre kilder"]
[null,"a. Inntekter fra andre kilder/statlige prosjekt",null,0]
[null,"b. Egenfinansiering",null,0]
[null,"5.9. Revisoruttalelse"]
[null,"a. Revisoruttalelse (velg ett alternativ fra nedtrekksliste i neste rute)"]
[null,"b. Kommentarer til revisoruttalelse"]
[]
[]
[null,null,null,"Dette er styringsarket. Det kan skjules."]
[null,null,null,"Revisoruttalelse"]
[null,null,null,"Revisoruttalelse foreligger uten merknader"]
[null,null,null,"Revisoruttalelse foreligger med merknader"]
[null,null,null,"I tilskuddsbrevet er det ikke krav til revisoruttalelse"]
[null,null,null,"Revisoruttalelse mangler (rapportering ufullstendig)"]

{"sheet":"Båtsfjord","index":3,"n_rows":177,"n_cols":9,"rows_kept":177,"cut":false,"hidden":false,"merged":[[12,1,12,8],[13,1,14,1],[13,2,13,3],[13,4,13,7],[13,8,14,8],[15,8,17,8],[1,1,1,8],[2,2,2,8],[3,2,3,8],[4,2,4,8],[5,2,5,8],[11,1,11,8],[28,1,28,8],[29,1,30,1],[29,2,29,3],[29,4,29,7],[29,8,30,8],[31,8,38,8],[18,1,18,8],[19,1,20,1],[19,2,19,3],[19,4,19,7],[19,8,20,8],[21,8,27,8],[51,1,51,8],[52,1,53,1],[52,2,52,3],[52,4,52,7],[52,8,53,8],[54,8,58,8],[39,1,39,8],[40,1,41,1],[40,2,40,3],[40,4,40,7],[40,8,41,8],[42,8,50,8],[67,1,67,8],[68,2,68,7],[68,8,71,8],[69,2,69,7],[70,2,70,7],[71,2,71,7],[59,1,59,8],[60,1,61,1],[60,2,60,3],[60,4,60,7],[60,8,61,8],[62,8,66,8],[83,1,83,8],[84,1,84,8],[85,1,85,2],[85,4,85,8],[86,1,86,2],[86,4,86,8],[72,1,72,8],[73,1,73,8],[75,1,75,8],[76,1,77,1],[76,2,76,4],[76,5,76,8],[90,1,90,2],[90,4,90,8],[91,1,91,2],[91,4,91,8],[92,1,92,2],[92,4,92,8],[87,1,87,2],[87,4,87,8],[88,1,88,2],[88,4,88,8],[89,1,89,2],[89,4,89,8],[98,1,98,8],[99,1,99,8],[100,1,100,8],[101,1,101,8],[102,1,102,8],[103,1,103,8],[93,1,93,2],[93,4,93,8],[94,1,94,8],[95,1,95,8],[96,1,96,8],[97,1,97,8],[112,1,112,2],[113,1,113,2],[114,1,114,2],[115,1,115,2],[116,1,116,2],[117,1,117,2],[104,1,104,8],[105,1,105,8],[106,1,106,3],[106,4,106,8],[107,1,107,2],[107,4,118,8],[108,1,108,3],[109,1,109,2],[110,1,110,2],[111,1,111,2],[122,1,122,8],[123,1,123,2],[123,3,123,8],[124,1,124,2],[124,3,124,8],[126,1,126,7],[118,1,118,2],[119,1,119,8],[120,1,120,2],[120,4,120,8],[121,1,121,2],[121,4,121,8],[137,1,137,8],[138,1,140,8],[141,1,141,8],[142,1,144,8],[145,1,145,8],[146,1,148,8],[127,1,127,8],[128,1,129,8],[130,1,130,8],[131,1,132,8],[133,1,133,8],[134,1,136,8],[157,1,157,2],[158,1,158,2],[159,1,159,2],[160,1,160,2],[161,1,161,2],[162,1,162,2],[149,1,149,8],[150,1,150,3],[150,4,150,8],[151,1,151,2],[151,4,162,8],[152,1,152,3],[153,1,153,2],[154,1,154,2],[155,1,155,2],[156,1,156,2],[167,1,167,2],[167,3,167,8],[168,1,168,2],[168,3,168,8],[163,1,163,8],[164,1,164,2],[164,4,164,8],[165,1,165,2],[165,4,165,8],[166,1,166,8]]}
[]
[null,"1. Informasjon om kommunen "]
[null,"1.1. Navn på kommunen"]
[null,"1.2. Kontaktperson"]
[null,"1.3. E-post"]
[null,"1.4. Telefon"]
[]
[null,"Rapportering fra kommunen til Fylkesmannen"]
[null," - Kap761, post 68 \" Kommunalt kompetanse- og innovasjonstilskudd\""]
[null," - Kap761, post 78 \" Nasjonalt velferdsteknologiprogram - innføring av velferdsteknologiske løsninger\""]
[]
[null,"2. Kompetansetiltak (grunn-, videre- og etterutdanning)"]
[null,"2.1. Videregående skole, fag- og yrkesopplæring innen helse (fagbrev)"]
[null,"Utdanningstype","Måloppnåelse (antall ansatte)",null,"Økonomirapportering",null,null,null,"Merknader\n(nærmere om hvilken annen utdanning)"]
[null,null,"Fullført utdanning\n","Samlet antall fullførte og under utdanning ","Søkt beløp","Innvilget beløp ","Ubrukt \nønkes overført","Ubrukt\nbetales tilbake"]
[null,"a. Helsefagarbeider",0,0,0,0,0,0]
[null,"b. Annen utdanning på videregående skolenivå",0,0,0,0,0,0]
[null,"Sum :",{"$f":"SUM(C16:C17)","v":0},{"$f":"SUM(D16:D17)","v":0},{"$f":"SUM(E16:E17)","v":0},{"$f":"SUM(F16:F17)","v":0},{"$f":"SUM(G16:G17)","v":0},0]
[null,"2.2. Fagskoleutdanning"]
[null,"Utdanningstype","Måloppnåelse (antall ansatte)",null,"Økonomirapportering",null,null,null,"Merknader\n(nærmere om hvilken annen utdanning)"]
[null,null,"Fullført utdanning\n","Samlet antall fullførte og under utdanning","Søkt beløp","Innvilget beløp ","Ubrukt \nønkes overført","Ubrukt\nbetales tilbake"]
[null,"a. Psykisk helsearbeid og rusarbeid",0,0,0,0,0,0]
[null,"b. Eldreomsorg/demens",0,0,0,0,0,0]
[null,"c. Habilitering/rehabilitering",0,0,0,0,0,0]
[null,"d. Kreftomsorg/lindrende behandling",0,0,0,0,0,0]
[null,"e. Veiledning",0,0,0,0,0,0]
[null,"f. Annen fagskoleutdanning",0,0,0,0,0,0]
[null,"Sum :",{"$f":"SUM(C22:C27)","v":0},{"$f":"SUM(D22:D27)","v":0},{"$f":"SUM(E22:E27)","v":0},{"$f":"SUM(F22:F27)","v":0},0,0]
[null,"  2.3. Bachelorutdanning helse- og sosialfag"]
[null,"Utdanningstype","Måloppnåelse (antall ansatte)",null,"Økonomirapportering",null,null,null,"Merknader\n(nærmere om hvilken annen utdanning)"]
[null,null,"Fullført utdanning\n","Samlet antall fullførte og under utdanning","Søkt beløp","Innvilget beløp ","Ubrukt \nønkes overført","Ubrukt\nbetales tilbake"]
[null,"a. Sykepleie",0,0,0,0,0,0]
[null,"b. Vernepleie",0,0,0,0,0,0]
[null,"c. Fysioterapi",0,0,0,0,0,0]
[null,"d. Ergoterapi",0,0,0,0,0,0]
[null,"e. Sosial arbeid (sosionom)",0,0,0,0,0,0]
[null,"f. Barnevernspedagogikk",0,0,0,0,0,0]
[null,"g. Annen bachelorutdanning",0,0,0,0,0,0]
[null,"Sum :",{"$f":"SUM(C32:C38)","v":0},{"$f":"SUM(D32:D38)","v":0},{"$f":"SUM(E32:E38)","v":0},{"$f":"SUM(F32:F38)","v":0},0,0]
[null,"  2.4. Videreutdanning og mastergradutdanning (påbygg bachelorutdanning)"]
[null,"Utdanningstype","Måloppnåelse (antall ansatte)",null,"Økonomirapportering",null,null,null,"Merknader\n(nærmere om hvilken annen utdanning)"]
[null,null,"Fullført utdanning\n","Samlet antall fullførte og under utdanning","Søkt beløp","Innvilget beløp ","Ubrukt \nønkes overført","Ubrukt\nbetales tilbake"]
[null,"a. Psykisk helsearbeid og rusarbeid",0,0,0,0,0,0]
[null,"b. Tverrfaglig videreutdanning \n     i psykososialt arbeid med barn og unge",0,0,0,0,0,0]
[null,"c. Eldreomsorg/demens",0,0,0,0,0,0]
[null,"d. Kreftomsorg/lindrende pleie",0,0,0,0,0,0]
[null,"e. Habilitering/rehabilitering",0,0,0,0,0,0]
[null,"f. Veiledning",0,0,0,0,0,0]
[null,"g. Lederutdanning",0,0,0,0,0,0]
[null,"h. Annen videreutdanning og/eller masterutdanning",0,0,0,0,0,0]
[null,"Sum :",{"$f":"SUM(C43:C50)","v":0},{"$f":"SUM(D43:D50)","v":0},{"$f":"SUM(E43:E50)","v":0},{"$f":"SUM(F43:F50)","v":0},0,0]
[null,"2.5. ABC-opplæring"]
[null,"Opplæringstype","Måloppnåelse (antall ansatte)",null,"Økonomirapportering",null,null,null,"Merknader"]
[null,null,"Fullført opplæring ","Samlet antall fullførte og under opplæring ","Søkt beløp","Innvilget beløp ","Ubrukt \nønkes overført","Ubrukt\nbetales tilbake"]
[null,"a. Demensomsorgens ABC",0,0,0,0,0,0]
[null,"b. Eldreomsorgens ABC",0,0,0,0,0,0]
[null,"c. Mitt livs ABC",0,0,0,0,0,0]
[null,"d. Velferdsteknologien ABC",0,0,0,0,0,0]
[null,"Sum :",{"$f":"SUM(C55:C58)","v":0},{"$f":"SUM(D55:D58)","v":0},{"$f":"SUM(E55:E58)","v":0},{"$f":"SUM(F55:F58)","v":0},{"$f":"SUM(G55:G58)","v":0},{"$f":"SUM(H55:H58)","v":0}]
[null,"2.6. Annen internopplæring / korte etterutdanninger /kurs mv."]
[null,"Opplæringstype","Måloppnåelse (antall ansatte)",null,"Økonomirapportering",null,null,null,"Merknader\n(nærmere om hvilken annen opplæring)"]
[null,null,"Fullført utdanning\n/ opplæring ","Samlet antall fullførte og under utdanning / opplæring ","Søkt beløp","Innvilget beløp ","Ubrukt \nønkes overført","Ubrukt\nbetales tilbake"]
[null,"a.  Innen psykisk helsearbeid og rusfeltet",0,0,0,0,0,0]
[null,"b. Innen eldreomsorg og demensfeltet",0,0,0,0,0,0]
[null,"c. Annet",0,0,0,0,0,0]
[null,"Sum :",{"$f":"SUM(C63:C65)","v":0},0,{"$f":"SUM(E63:E65)","v":0},{"$f":"SUM(F63:F65)","v":0},{"$f":"SUM(G63:G65)","v":0},{"$f":"SUM(H63:H65)","v":0}]
[null,"Total sum (inkludert 2.7.) :",{"$f":"C18+C28+C39+C51+C59+C66","v":0},{"$f":"D18+D28+D39+D51+D59+D66","v":0},{"$f":"E18+E28+E39+E51+E59+E66+C69","v":0},{"$f":"F18+F28+F39+F51+F59+F66+C70","v":0},{"$f":"G18+G28+G39+G51+G59+G66+C71","v":0},{"$f":"H18+H28+H39+H51+H59+H66+C72","v":0}]
[null,"2.7. Andre kompetansehevende tiltak"]
[null,"a. Søkt beløp"]
[null,"b. Innvilget beløp "]
[null,"c. Ubrukt, ønkes overført"]
[null,"d. Ubrukt, betales tilbake"]
[null,"e. Beskrivelse av tiltaket og hva tilskuddet har gått til."]
[]
[]
[null,"3. Opplæringstilskudd BPA (brukerstyrt personlig assistanse)"]
[null,null,"Måloppnåelse (antall personer)",null,null,"Økonomirapportering"]
[null,null,"Søkt ","Innvilget","Gjennomført","Søkt beløp","Utbetalt beløp","Ubrukt \nønkes overført","Ubrukt\nbetales tilbake"]
[null,"a. Arbeidsledere som har fått tilskudd til opplæring",0,0,0,0,0,0,0]
[null,"b. Saksbehandlere som har fått tilskudd til opplæring",0,0,0,0,0,0,0]
[null,"c. Assistenter som har fått tilskudd til opplæring",0,0,0,0,0,0,0]
[null,"Sum :",{"$f":"SUM(C79:C81)","v":0},{"$f":"SUM(D79:D81)","v":0},0,0,0,0,0]
[]
[null,"4. Innovasjonsprosjekter"]
[null,"4.1. Tema for prosjektene det rapporteres på"]
[null,"Tema ",null,"Antall prosjekter","Tittel på prosjekt/merknader"]
[null,"a. Velferdsteknologiske løsninger"]
[null,"b. Samspill med pårørende og frivillige i omsorgssektoren generelt og  \n    demensomsorgen spesielt."]
[null,"c. Legemiddelhåndtering"]
[null,"d. Ernæring"]
[null,"e. Fritidsaktivitet med assistanse"]
[null,"f. Kulturopplevelser"]
[null,"g. Annet"]
[null,"Sum :",null,{"$f":"SUM(D87:D93)","v":0}]
[null,"4.2. Rapportering på kriterier for måloppnåelse \n * Forskningsrapporter og annen dokumentasjon fra innovasjonsprosjekter under denne tilskuddsordningen skal i tillegg sendes Senter for Omsorgsforskning, \n     postmottak@hig.no, Høgskolen i Gjøvik, Postboks 191, 2802 Gjøvik."]
[null,"a. Beskrivelse av brukernes erfaringer og opplevd nytte"]
[]
[null,"b. I hvilken grad har behovet for kompenserende tjenester blitt redusert/vise til redusert behov for kompenserende tjenester?"]
[]
[null,"c. I hvilken grad har nye løsninger gitt kvalitative og økonomiske gevinster for brukerne og kommunen?"]
[]
[null,"d. I hvilken grad har tiltaket overføringsverdi til andre kommuner og betydning for praksis?"]
[]
[null,"e. I hvilken grad og hvordan har innovasjonsmetodikk blitt benyttet i prosjektet?"]
[]
[null,"4.3. Regnskap for innovasjonsprosjekt"]
[null,"Inntektekter",null,null,"Merknader"]
[null,"a. Tilskuddsbeløp fra Fylkesmannen",null,0]
[null,"Utgifter"]
[null,"b. Lønnsutgifter med sosiale utgifter ",null,0]
[null,"c. Reiseutgifter, arrangement, møter, konferanser",null,0]
[null,"d. Konsulenttjenester",null,0]
[null,"e. Trykking, publikasjoner, kunngjøringer, utsending og distribusjonskostnader ",null,0]
[null,"f. Investeringer/ inventar/ utstyr",null,0]
[null,"g. Driftsutgifter, forbruksmateriell og kontortjenester inkludert lokaler og energi",null,0]
[null,"h. Andre utgifter (spesifiser i merknadsteltet)",null,0]
[null,"Sum utgifter",null,{"$f":"SUM(D110:D116)","v":0}]
[null,"Ubrukt tilskudd på rapporteringstidspunktet",null,{"$f":"SUM(D108-D117)","v":0}]
[null,"Søkes overført",null,0]
[null,"4.4. Informasjon om inntekter fra andre kilder"]
[null,"a. Inntekter fra andre kilder/statlige prosjekt",null,0]
[null,"b. Egenfinansiering",null,0]
[null,"4.5. Revisoruttalelse"]
[null,"a. Revisoruttalelse (velg ett alternativ fra nedtrekksliste i neste rute)"]
[null,"b. Kommentarer til revisoruttalelse"]
[]
[null,"5. Nasjonalt velferdsteknologiprogram - innføring av velferdsteknologiske løsninger\n    * Rapportering for punktene ( fra 5.1. til 5.6.) kan sendes som eget vedlegg"]
[null,"5.1. Følges oppgitt fremdriftsplan i prosjektet?  (Inntil 300 ord)"]
[]
[]
[null,"5.2. Hvem er samarbeidspartnere i prosjektet og hvordan er status med tanke på samarbeid? (Inntil 300 ord)"]
[]
[]
[null,"5.3. Hva er status for implementering av velferdsteknologi i kommunene etter fastsatte måltall, hvilke tjenesteinnovasjoner som er gjennomført og   hvilke endringer dette har resultert i? \n      (Inntil 600 ord)"]
[]
[]
[]
[null,"5.4. Hva er forventede og realiserte gevinster av prosjektet for kommunen (spart tid, unngåtte kostnader, økt kvalitet)?  (Inntil 600 ord)"]
[]
[]
[]
[null,"5.5. Hvordan er kommunens planer for skalering av løsningene og overgang til løpende driftsfase, herunder planer for investering og drift av løsninger? (Inntil 600 ord)"]
[]
[]
[]
[null,"5.6. Hvordan er brukermedvirkning sikret i prosjektet? Angi på hvilken måte pasienter, brukere og pårørende er involvert? Hva er resultater for brukerne?(Inntil 600 ord)"]
[]
[]
[]
[null,"5.7. Regnskap for nasjonalt velferdsteknologiprogram - innføring av velferdsteknologiske løsninger"]
[null,"Inntektekter",null,null,"Merknader"]
[null,"a. Tilskuddsbeløp fra Fylkesmannen",null,0]
[null,"Utgifter"]
[null,"b. Lønnsutgifter med sosiale utgifter ",null,0]
[null,"c. Reiseutgifter, arrangement, møter, konferanser",null,0]
[null,"d. Konsulenttjenester",null,0]
[null,"e. Trykking, publikasjoner, kunngjøringer, utsending og distribusjonskostnader ",null,0]
[null,"f. Investeringer/ inventar/ utstyr",null,0]
[null,"g. Driftsutgifter, forbruksmateriell og kontortjenester inkludert lokaler og energi",null,0]
[null,"h. Andre utgifter (spesifiser i merknadsteltet)",null,0]
[null,"Sum utgifter",null,{"$f":"SUM(D154:D160)","v":0}]
[null,"Ubrukt tilskudd på rapporteringstidspunktet",null,{"$f":"SUM(D152-D161)","v":0}]
[null,"Søkes overført",null,0]
[null,"5.8. Informasjon om inntekter fra andre kilder"]
[null,"a. Inntekter fra andre kilder/statlige prosjekt",null,0]
[null,"b. Egenfinansiering",null,0]
[null,"5.9. Revisoruttalelse"]
[null,"a. Revisoruttalelse (velg ett alternativ fra nedtrekksliste i neste rute)"]
[null,"b. Kommentarer til revisoruttalelse"]
[]
[]
[null,null,null,"Dette er styringsarket. Det kan skjules."]
[null,null,null,"Revisoruttalelse"]
[null,null,null,"Revisoruttalelse foreligger uten merknader"]
[null,null,null,"Revisoruttalelse foreligger med merknader"]
[null,null,null,"I tilskuddsbrevet er det ikke krav til revisoruttalelse"]
[null,null,null,"Revisoruttalelse mangler (rapportering ufullstendig)"]

{"sheet":"UnjárgaNesseby","index":4,"n_rows":177,"n_cols":9,"rows_kept":177,"cut":false,"hidden":false,"merged":[[12,1,12,8],[13,1,14,1],[13,2,13,3],[13,4,13,7],[13,8,14,8],[15,8,17,8],[1,1,1,8],[2,2,2,8],[3,2,3,8],[4,2,4,8],[5,2,5,8],[11,1,11,8],[28,1,28,8],[29,1,30,1],[29,2,29,3],[29,4,29,7],[29,8,30,8],[31,8,38,8],[18,1,18,8],[19,1,20,1],[19,2,19,3],[19,4,19,7],[19,8,20,8],[21,8,27,8],[51,1,51,8],[52,1,53,1],[52,2,52,3],[52,4,52,7],[52,8,53,8],[54,8,58,8],[39,1,39,8],[40,1,41,1],[40,2,40,3],[40,4,40,7],[40,8,41,8],[42,8,50,8],[67,1,67,8],[68,2,68,7],[68,8,71,8],[69,2,69,7],[70,2,70,7],[71,2,71,7],[59,1,59,8],[60,1,61,1],[60,2,60,3],[60,4,60,7],[60,8,61,8],[62,8,66,8],[83,1,83,8],[84,1,84,8],[85,1,85,2],[85,4,85,8],[86,1,86,2],[86,4,86,8],[72,1,72,8],[73,1,73,8],[75,1,75,8],[76,1,77,1],[76,2,76,4],[76,5,76,8],[90,1,90,2],[90,4,90,8],[91,1,91,2],[91,4,91,8],[92,1,92,2],[92,4,92,8],[87,1,87,2],[87,4,87,8],[88,1,88,2],[88,4,88,8],[89,1,89,2],[89,4,89,8],[98,1,98,8],[99,1,99,8],[100,1,100,8],[101,1,101,8],[102,1,102,8],[103,1,103,8],[93,1,93,2],[93,4,93,8],[94,1,94,8],[95,1,95,8],[96,1,96,8],[97,1,97,8],[112,1,112,2],[113,1,113,2],[114,1,114,2],[115,1,115,2],[116,1,116,2],[117,1,117,2],[104,1,104,8],[105,1,105,8],[106,1,106,3],[106,4,106,8],[107,1,107,2],[107,4,118,8],[108,1,108,3],[109,1,109,2],[110,1,110,2],[111,1,111,2],[122,1,122,8],[123,1,123,2],[123,3,123,8],[124,1,124,2],[124,3,124,8],[126,1,126,7],[118,1,118,2],[119,1,119,8],[120,1,120,2],[120,4,120,8],[121,1,121,2],[121,4,121,8],[137,1,137,8],[138,1,140,8],[141,1,141,8],[142,1,144,8],[145,1,145,8],[146,1,148,8],[127,1,127,8],[128,1,129,8],[130,1,130,8],[131,1,132,8],[133,1,133,8],[134,1,136,8],[157,1,157,2],[158,1,158,2],[159,1,159,2],[160,1,160,2],[161,1,161,2],[162,1,162,2],[149,1,149,8],[150,1,150,3],[150,4,150,8],[151,1,151,2],[151,4,162,8],[152,1,152,3],[153,1,153,2],[154,1,154,2],[155,1,155,2],[156,1,156,2],[167,1,167,2],[167,3,167,8],[168,1,168,2],[168,3,168,8],[163,1,163,8],[164,1,164,2],[164,4,164,8],[165,1,165,2],[165,4,165,8],[166,1,166,8]]}
[]
[null,"1. Informasjon om kommunen "]
[null,"1.1. Navn på kommunen"]
[null,"1.2. Kontaktperson"]
[null,"1.3. E-post"]
[null,"1.4. Telefon"]
[]
[null,"Rapportering fra kommunen til Fylkesmannen"]
[null," - Kap761, post 68 \" Kommunalt kompetanse- og innovasjonstilskudd\""]
[null," - Kap761, post 78 \" Nasjonalt velferdsteknologiprogram - innføring av velferdsteknologiske løsninger\""]
[]
[null,"2. Kompetansetiltak (grunn-, videre- og etterutdanning)"]
[null,"2.1. Videregående skole, fag- og yrkesopplæring innen helse (fagbrev)"]
[null,"Utdanningstype","Måloppnåelse (antall ansatte)",null,"Økonomirapportering",null,null,null,"Merknader\n(nærmere om hvilken annen utdanning)"]
[null,null,"Fullført utdanning\n","Samlet antall fullførte og under utdanning ","Søkt beløp","Innvilget beløp ","Ubrukt \nønkes overført","Ubrukt\nbetales tilbake"]
[null,"a. Helsefagarbeider",0,0,0,0,0,0]
[null,"b. Annen utdanning på videregående skolenivå",0,0,0,0,0,0]
[null,"Sum :",{"$f":"SUM(C16:C17)","v":0},{"$f":"SUM(D16:D17)","v":0},{"$f":"SUM(E16:E17)","v":0},{"$f":"SUM(F16:F17)","v":0},{"$f":"SUM(G16:G17)","v":0},0]
[null,"2.2. Fagskoleutdanning"]
[null,"Utdanningstype","Måloppnåelse (antall ansatte)",null,"Økonomirapportering",null,null,null,"Merknader\n(nærmere om hvilken annen utdanning)"]
[null,null,"Fullført utdanning\n","Samlet antall fullførte og under utdanning","Søkt beløp","Innvilget beløp ","Ubrukt \nønkes overført","Ubrukt\nbetales tilbake"]
[null,"a. Psykisk helsearbeid og rusarbeid",0,0,0,0,0,0]
[null,"b. Eldreomsorg/demens",0,0,0,0,0,0]
[null,"c. Habilitering/rehabilitering",0,0,0,0,0,0]
[null,"d. Kreftomsorg/lindrende behandling",0,0,0,0,0,0]
[null,"e. Veiledning",0,0,0,0,0,0]
[null,"f. Annen fagskoleutdanning",0,0,0,0,0,0]
[null,"Sum :",{"$f":"SUM(C22:C27)","v":0},{"$f":"SUM(D22:D27)","v":0},{"$f":"SUM(E22:E27)","v":0},{"$f":"SUM(F22:F27)","v":0},0,0]
[null,"  2.3. Bachelorutdanning helse- og sosialfag"]
[null,"Utdanningstype","Måloppnåelse (antall ansatte)",null,"Økonomirapportering",null,null,null,"Merknader\n(nærmere om hvilken annen utdanning)"]
[null,null,"Fullført utdanning\n","Samlet antall fullførte og under utdanning","Søkt beløp","Innvilget beløp ","Ubrukt \nønkes overført","Ubrukt\nbetales tilbake"]
[null,"a. Sykepleie",0,0,0,0,0,0]
[null,"b. Vernepleie",0,0,0,0,0,0]
[null,"c. Fysioterapi",0,0,0,0,0,0]
[null,"d. Ergoterapi",0,0,0,0,0,0]
[null,"e. Sosial arbeid (sosionom)",0,0,0,0,0,0]
[null,"f. Barnevernspedagogikk",0,0,0,0,0,0]
[null,"g. Annen bachelorutdanning",0,0,0,0,0,0]
[null,"Sum :",{"$f":"SUM(C32:C38)","v":0},{"$f":"SUM(D32:D38)","v":0},{"$f":"SUM(E32:E38)","v":0},{"$f":"SUM(F32:F38)","v":0},0,0]
[null,"  2.4. Videreutdanning og mastergradutdanning (påbygg bachelorutdanning)"]
[null,"Utdanningstype","Måloppnåelse (antall ansatte)",null,"Økonomirapportering",null,null,null,"Merknader\n(nærmere om hvilken annen utdanning)"]
[null,null,"Fullført utdanning\n","Samlet antall fullførte og under utdanning","Søkt beløp","Innvilget beløp ","Ubrukt \nønkes overført","Ubrukt\nbetales tilbake"]
[null,"a. Psykisk helsearbeid og rusarbeid",0,0,0,0,0,0]
[null,"b. Tverrfaglig videreutdanning \n     i psykososialt arbeid med barn og unge",0,0,0,0,0,0]
[null,"c. Eldreomsorg/demens",0,0,0,0,0,0]
[null,"d. Kreftomsorg/lindrende pleie",0,0,0,0,0,0]
[null,"e. Habilitering/rehabilitering",0,0,0,0,0,0]
[null,"f. Veiledning",0,0,0,0,0,0]
[null,"g. Lederutdanning",0,0,0,0,0,0]
[null,"h. Annen videreutdanning og/eller masterutdanning",0,0,0,0,0,0]
[null,"Sum :",{"$f":"SUM(C43:C50)","v":0},{"$f":"SUM(D43:D50)","v":0},{"$f":"SUM(E43:E50)","v":0},{"$f":"SUM(F43:F50)","v":0},0,0]
[null,"2.5. ABC-opplæring"]
[null,"Opplæringstype","Måloppnåelse (antall ansatte)",null,"Økonomirapportering",null,null,null,"Merknader"]
[null,null,"Fullført opplæring ","Samlet antall fullførte og under opplæring ","Søkt beløp","Innvilget beløp ","Ubrukt \nønkes overført","Ubrukt\nbetales tilbake"]
[null,"a. Demensomsorgens ABC",0,0,0,0,0,0]
[null,"b. Eldreomsorgens ABC",0,0,0,0,0,0]
[null,"c. Mitt livs ABC",0,0,0,0,0,0]
[null,"d. Velferdsteknologien ABC",0,0,0,0,0,0]
[null,"Sum :",{"$f":"SUM(C55:C58)","v":0},{"$f":"SUM(D55:D58)","v":0},{"$f":"SUM(E55:E58)","v":0},{"$f":"SUM(F55:F58)","v":0},{"$f":"SUM(G55:G58)","v":0},{"$f":"SUM(H55:H58)","v":0}]
[null,"2.6. Annen internopplæring / korte etterutdanninger /kurs mv."]
[null,"Opplæringstype","Måloppnåelse (antall ansatte)",null,"Økonomirapportering",null,null,null,"Merknader\n(nærmere om hvilken annen opplæring)"]
[null,null,"Fullført utdanning\n/ opplæring ","Samlet antall fullførte og under utdanning / opplæring ","Søkt beløp","Innvilget beløp ","Ubrukt \nønkes overført","Ubrukt\nbetales tilbake"]
[null,"a.  Innen psykisk helsearbeid og rusfeltet",0,0,0,0,0,0]
[null,"b. Innen eldreomsorg og demensfeltet",0,0,0,0,0,0]
[null,"c. Annet",0,0,0,0,0,0]
[null,"Sum :",{"$f":"SUM(C63:C65)","v":0},0,{"$f":"SUM(E63:E65)","v":0},{"$f":"SUM(F63:F65)","v":0},{"$f":"SUM(G63:G65)","v":0},{"$f":"SUM(H63:H65)","v":0}]
[null,"Total sum (inkludert 2.7.) :",{"$f":"C18+C28+C39+C51+C59+C66","v":0},{"$f":"D18+D28+D39+D51+D59+D66","v":0},{"$f":"E18+E28+E39+E51+E59+E66+C69","v":0},{"$f":"F18+F28+F39+F51+F59+F66+C70","v":0},{"$f":"G18+G28+G39+G51+G59+G66+C71","v":0},{"$f":"H18+H28+H39+H51+H59+H66+C72","v":0}]
[null,"2.7. Andre kompetansehevende tiltak"]
[null,"a. Søkt beløp"]
[null,"b. Innvilget beløp "]
[null,"c. Ubrukt, ønkes overført"]
[null,"d. Ubrukt, betales tilbake"]
[null,"e. Beskrivelse av tiltaket og hva tilskuddet har gått til."]
[]
[]
[null,"3. Opplæringstilskudd BPA (brukerstyrt personlig assistanse)"]
[null,null,"Måloppnåelse (antall personer)",null,null,"Økonomirapportering"]
[null,null,"Søkt ","Innvilget","Gjennomført","Søkt beløp","Utbetalt beløp","Ubrukt \nønkes overført","Ubrukt\nbetales tilbake"]
[null,"a. Arbeidsledere som har fått tilskudd til opplæring",0,0,0,0,0,0,0]
[null,"b. Saksbehandlere som har fått tilskudd til opplæring",0,0,0,0,0,0,0]
[null,"c. Assistenter som har fått tilskudd til opplæring",0,0,0,0,0,0,0]
[null,"Sum :",{"$f":"SUM(C79:C81)","v":0},{"$f":"SUM(D79:D81)","v":0},0,0,0,0,0]
[]
[null,"4. Innovasjonsprosjekter"]
[null,"4.1. Tema for prosjektene det rapporteres på"]
[null,"Tema ",null,"Antall prosjekter","Tittel på prosjekt/merknader"]
[null,"a. Velferdsteknologiske løsninger"]
[null,"b. Samspill med pårørende og frivillige i omsorgssektoren generelt og  \n    demensomsorgen spesielt."]
[null,"c. Legemiddelhåndtering"]
[null,"d. Ernæring"]
[null,"e. Fritidsaktivitet med assistanse"]
[null,"f. Kulturopplevelser"]
[null,"g. Annet"]
[null,"Sum :",null,{"$f":"SUM(D87:D93)","v":0}]
[null,"4.2. Rapportering på kriterier for måloppnåelse \n * Forskningsrapporter og annen dokumentasjon fra innovasjonsprosjekter under denne tilskuddsordningen skal i tillegg sendes Senter for Omsorgsforskning, \n     postmottak@hig.no, Høgskolen i Gjøvik, Postboks 191, 2802 Gjøvik."]
[null,"a. Beskrivelse av brukernes erfaringer og opplevd nytte"]
[]
[null,"b. I hvilken grad har behovet for kompenserende tjenester blitt redusert/vise til redusert behov for kompenserende tjenester?"]
[]
[null,"c. I hvilken grad har nye løsninger gitt kvalitative og økonomiske gevinster for brukerne og kommunen?"]
[]
[null,"d. I hvilken grad har tiltaket overføringsverdi til andre kommuner og betydning for praksis?"]
[]
[null,"e. I hvilken grad og hvordan har innovasjonsmetodikk blitt benyttet i prosjektet?"]
[]
[null,"4.3. Regnskap for innovasjonsprosjekt"]
[null,"Inntektekter",null,null,"Merknader"]
[null,"a. Tilskuddsbeløp fra Fylkesmannen",null,0]
[null,"Utgifter"]
[null,"b. Lønnsutgifter med sosiale utgifter ",null,0]
[null,"c. Reiseutgifter, arrangement, møter, konferanser",null,0]
[null,"d. Konsulenttjenester",null,0]
[null,"e. Trykking, publikasjoner, kunngjøringer, utsending og distribusjonskostnader ",null,0]
[null,"f. Investeringer/ inventar/ utstyr",null,0]
[null,"g. Driftsutgifter, forbruksmateriell og kontortjenester inkludert lokaler og energi",null,0]
[null,"h. Andre utgifter (spesifiser i merknadsteltet)",null,0]
[null,"Sum utgifter",null,{"$f":"SUM(D110:D116)","v":0}]
[null,"Ubrukt tilskudd på rapporteringstidspunktet",null,{"$f":"SUM(D108-D117)","v":0}]
[null,"Søkes overført",null,0]
[null,"4.4. Informasjon om inntekter fra andre kilder"]
[null,"a. Inntekter fra andre kilder/statlige prosjekt",null,0]
[null,"b. Egenfinansiering",null,0]
[null,"4.5. Revisoruttalelse"]
[null,"a. Revisoruttalelse (velg ett alternativ fra nedtrekksliste i neste rute)"]
[null,"b. Kommentarer til revisoruttalelse"]
[]
[null,"5. Nasjonalt velferdsteknologiprogram - innføring av velferdsteknologiske løsninger\n    * Rapportering for punktene ( fra 5.1. til 5.6.) kan sendes som eget vedlegg"]
[null,"5.1. Følges oppgitt fremdriftsplan i prosjektet?  (Inntil 300 ord)"]
[]
[]
[null,"5.2. Hvem er samarbeidspartnere i prosjektet og hvordan er status med tanke på samarbeid? (Inntil 300 ord)"]
[]
[]
[null,"5.3. Hva er status for implementering av velferdsteknologi i kommunene etter fastsatte måltall, hvilke tjenesteinnovasjoner som er gjennomført og   hvilke endringer dette har resultert i? \n      (Inntil 600 ord)"]
[]
[]
[]
[null,"5.4. Hva er forventede og realiserte gevinster av prosjektet for kommunen (spart tid, unngåtte kostnader, økt kvalitet)?  (Inntil 600 ord)"]
[]
[]
[]
[null,"5.5. Hvordan er kommunens planer for skalering av løsningene og overgang til løpende driftsfase, herunder planer for investering og drift av løsninger? (Inntil 600 ord)"]
[]
[]
[]
[null,"5.6. Hvordan er brukermedvirkning sikret i prosjektet? Angi på hvilken måte pasienter, brukere og pårørende er involvert? Hva er resultater for brukerne?(Inntil 600 ord)"]
[]
[]
[]
[null,"5.7. Regnskap for nasjonalt velferdsteknologiprogram - innføring av velferdsteknologiske løsninger"]
[null,"Inntektekter",null,null,"Merknader"]
[null,"a. Tilskuddsbeløp fra Fylkesmannen",null,0]
[null,"Utgifter"]
[null,"b. Lønnsutgifter med sosiale utgifter ",null,0]
[null,"c. Reiseutgifter, arrangement, møter, konferanser",null,0]
[null,"d. Konsulenttjenester",null,0]
[null,"e. Trykking, publikasjoner, kunngjøringer, utsending og distribusjonskostnader ",null,0]
[null,"f. Investeringer/ inventar/ utstyr",null,0]
[null,"g. Driftsutgifter, forbruksmateriell og kontortjenester inkludert lokaler og energi",null,0]
[null,"h. Andre utgifter (spesifiser i merknadsteltet)",null,0]
[null,"Sum utgifter",null,{"$f":"SUM(D154:D160)","v":0}]
[null,"Ubrukt tilskudd på rapporteringstidspunktet",null,{"$f":"SUM(D152-D161)","v":0}]
[null,"Søkes overført",null,0]
[null,"5.8. Informasjon om inntekter fra andre kilder"]
[null,"a. Inntekter fra andre kilder/statlige prosjekt",null,0]
[null,"b. Egenfinansiering",null,0]
[null,"5.9. Revisoruttalelse"]
[null,"a. Revisoruttalelse (velg ett alternativ fra nedtrekksliste i neste rute)"]
[null,"b. Kommentarer til revisoruttalelse"]
[]
[]
[null,null,null,"Dette er styringsarket. Det kan skjules."]
[null,null,null,"Revisoruttalelse"]
[null,null,null,"Revisoruttalelse foreligger uten merknader"]
[null,null,null,"Revisoruttalelse foreligger med merknader"]
[null,null,null,"I tilskuddsbrevet er det ikke krav til revisoruttalelse"]
[null,null,null,"Revisoruttalelse mangler (rapportering ufullstendig)"]

{"sheet":"DeatnuTana","index":5,"n_rows":177,"n_cols":9,"rows_kept":177,"cut":false,"hidden":false,"merged":[[12,1,12,8],[13,1,14,1],[13,2,13,3],[13,4,13,7],[13,8,14,8],[15,8,17,8],[1,1,1,8],[2,2,2,8],[3,2,3,8],[4,2,4,8],[5,2,5,8],[11,1,11,8],[28,1,28,8],[29,1,30,1],[29,2,29,3],[29,4,29,7],[29,8,30,8],[31,8,38,8],[18,1,18,8],[19,1,20,1],[19,2,19,3],[19,4,19,7],[19,8,20,8],[21,8,27,8],[51,1,51,8],[52,1,53,1],[52,2,52,3],[52,4,52,7],[52,8,53,8],[54,8,58,8],[39,1,39,8],[40,1,41,1],[40,2,40,3],[40,4,40,7],[40,8,41,8],[42,8,50,8],[67,1,67,8],[68,2,68,7],[68,8,71,8],[69,2,69,7],[70,2,70,7],[71,2,71,7],[59,1,59,8],[60,1,61,1],[60,2,60,3],[60,4,60,7],[60,8,61,8],[62,8,66,8],[83,1,83,8],[84,1,84,8],[85,1,85,2],[85,4,85,8],[86,1,86,2],[86,4,86,8],[72,1,72,8],[73,1,73,8],[75,1,75,8],[76,1,77,1],[76,2,76,4],[76,5,76,8],[90,1,90,2],[90,4,90,8],[91,1,91,2],[91,4,91,8],[92,1,92,2],[92,4,92,8],[87,1,87,2],[87,4,87,8],[88,1,88,2],[88,4,88,8],[89,1,89,2],[89,4,89,8],[98,1,98,8],[99,1,99,8],[100,1,100,8],[101,1,101,8],[102,1,102,8],[103,1,103,8],[93,1,93,2],[93,4,93,8],[94,1,94,8],[95,1,95,8],[96,1,96,8],[97,1,97,8],[112,1,112,2],[113,1,113,2],[114,1,114,2],[115,1,115,2],[116,1,116,2],[117,1,117,2],[104,1,104,8],[105,1,105,8],[106,1,106,3],[106,4,106,8],[107,1,107,2],[107,4,118,8],[108,1,108,3],[109,1,109,2],[110,1,110,2],[111,1,111,2],[122,1,122,8],[123,1,123,2],[123,3,123,8],[124,1,124,2],[124,3,124,8],[126,1,126,7],[118,1,118,2],[119,1,119,8],[120,1,120,2],[120,4,120,8],[121,1,121,2],[121,4,121,8],[137,1,137,8],[138,1,140,8],[141,1,141,8],[142,1,144,8],[145,1,145,8],[146,1,148,8],[127,1,127,8],[128,1,129,8],[130,1,130,8],[131,1,132,8],[133,1,133,8],[134,1,136,8],[157,1,157,2],[158,1,158,2],[159,1,159,2],[160,1,160,2],[161,1,161,2],[162,1,162,2],[149,1,149,8],[150,1,150,3],[150,4,150,8],[151,1,151,2],[151,4,162,8],[152,1,152,3],[153,1,153,2],[154,1,154,2],[155,1,155,2],[156,1,156,2],[167,1,167,2],[167,3,167,8],[168,1,168,2],[168,3,168,8],[163,1,163,8],[164,1,164,2],[164,4,164,8],[165,1,165,2],[165,4,165,8],[166,1,166,8]]}
[]
[null,"1. Informasjon om kommunen "]
[null,"1.1. Navn på kommunen"]
[null,"1.2. Kontaktperson"]
[null,"1.3. E-post"]
[null,"1.4. Telefon"]
[]
[null,"Rapportering fra kommunen til Fylkesmannen"]
[null," - Kap761, post 68 \" Kommunalt kompetanse- og innovasjonstilskudd\""]
[null," - Kap761, post 78 \" Nasjonalt velferdsteknologiprogram - innføring av velferdsteknologiske løsninger\""]
[]
[null,"2. Kompetansetiltak (grunn-, videre- og etterutdanning)"]
[null,"2.1. Videregående skole, fag- og yrkesopplæring innen helse (fagbrev)"]
[null,"Utdanningstype","Måloppnåelse (antall ansatte)",null,"Økonomirapportering",null,null,null,"Merknader\n(nærmere om hvilken annen utdanning)"]
[null,null,"Fullført utdanning\n","Samlet antall fullførte og under utdanning ","Søkt beløp","Innvilget beløp ","Ubrukt \nønkes overført","Ubrukt\nbetales tilbake"]
[null,"a. Helsefagarbeider",0,0,0,0,0,0]
[null,"b. Annen utdanning på videregående skolenivå",0,0,0,0,0,0]
[null,"Sum :",{"$f":"SUM(C16:C17)","v":0},{"$f":"SUM(D16:D17)","v":0},{"$f":"SUM(E16:E17)","v":0},{"$f":"SUM(F16:F17)","v":0},{"$f":"SUM(G16:G17)","v":0},0]
[null,"2.2. Fagskoleutdanning"]
[null,"Utdanningstype","Måloppnåelse (antall ansatte)",null,"Økonomirapportering",null,null,null,"Merknader\n(nærmere om hvilken annen utdanning)"]
[null,null,"Fullført utdanning\n","Samlet antall fullførte og under utdanning","Søkt beløp","Innvilget beløp ","Ubrukt \nønkes overført","Ubrukt\nbetales tilbake"]
[null,"a. Psykisk helsearbeid og rusarbeid",0,0,0,0,0,0]
[null,"b. Eldreomsorg/demens",0,0,0,0,0,0]
[null,"c. Habilitering/rehabilitering",0,0,0,0,0,0]
[null,"d. Kreftomsorg/lindrende behandling",0,0,0,0,0,0]
[null,"e. Veiledning",0,0,0,0,0,0]
[null,"f. Annen fagskoleutdanning",0,0,0,0,0,0]
[null,"Sum :",{"$f":"SUM(C22:C27)","v":0},{"$f":"SUM(D22:D27)","v":0},{"$f":"SUM(E22:E27)","v":0},{"$f":"SUM(F22:F27)","v":0},0,0]
[null,"  2.3. Bachelorutdanning helse- og sosialfag"]
[null,"Utdanningstype","Måloppnåelse (antall ansatte)",null,"Økonomirapportering",null,null,null,"Merknader\n(nærmere om hvilken annen utdanning)"]
[null,null,"Fullført utdanning\n","Samlet antall fullførte og under utdanning","Søkt beløp","Innvilget beløp ","Ubrukt \nønkes overført","Ubrukt\nbetales tilbake"]
[null,"a. Sykepleie",0,0,0,0,0,0]
[null,"b. Vernepleie",0,0,0,0,0,0]
[null,"c. Fysioterapi",0,0,0,0,0,0]
[null,"d. Ergoterapi",0,0,0,0,0,0]
[null,"e. Sosial arbeid (sosionom)",0,0,0,0,0,0]
[null,"f. Barnevernspedagogikk",0,0,0,0,0,0]
[null,"g. Annen bachelorutdanning",0,0,0,0,0,0]
[null,"Sum :",{"$f":"SUM(C32:C38)","v":0},{"$f":"SUM(D32:D38)","v":0},{"$f":"SUM(E32:E38)","v":0},{"$f":"SUM(F32:F38)","v":0},0,0]
[null,"  2.4. Videreutdanning og mastergradutdanning (påbygg bachelorutdanning)"]
[null,"Utdanningstype","Måloppnåelse (antall ansatte)",null,"Økonomirapportering",null,null,null,"Merknader\n(nærmere om hvilken annen utdanning)"]
[null,null,"Fullført utdanning\n","Samlet antall fullførte og under utdanning","Søkt beløp","Innvilget beløp ","Ubrukt \nønkes overført","Ubrukt\nbetales tilbake"]
[null,"a. Psykisk helsearbeid og rusarbeid",0,0,0,0,0,0]
[null,"b. Tverrfaglig videreutdanning \n     i psykososialt arbeid med barn og unge",0,0,0,0,0,0]
[null,"c. Eldreomsorg/demens",0,0,0,0,0,0]
[null,"d. Kreftomsorg/lindrende pleie",0,0,0,0,0,0]
[null,"e. Habilitering/rehabilitering",0,0,0,0,0,0]
[null,"f. Veiledning",0,0,0,0,0,0]
[null,"g. Lederutdanning",0,0,0,0,0,0]
[null,"h. Annen videreutdanning og/eller masterutdanning",0,0,0,0,0,0]
[null,"Sum :",{"$f":"SUM(C43:C50)","v":0},{"$f":"SUM(D43:D50)","v":0},{"$f":"SUM(E43:E50)","v":0},{"$f":"SUM(F43:F50)","v":0},0,0]
[null,"2.5. ABC-opplæring"]
[null,"Opplæringstype","Måloppnåelse (antall ansatte)",null,"Økonomirapportering",null,null,null,"Merknader"]
[null,null,"Fullført opplæring ","Samlet antall fullførte og under opplæring ","Søkt beløp","Innvilget beløp ","Ubrukt \nønkes overført","Ubrukt\nbetales tilbake"]
[null,"a. Demensomsorgens ABC",0,0,0,0,0,0]
[null,"b. Eldreomsorgens ABC",0,0,0,0,0,0]
[null,"c. Mitt livs ABC",0,0,0,0,0,0]
[null,"d. Velferdsteknologien ABC",0,0,0,0,0,0]
[null,"Sum :",{"$f":"SUM(C55:C58)","v":0},{"$f":"SUM(D55:D58)","v":0},{"$f":"SUM(E55:E58)","v":0},{"$f":"SUM(F55:F58)","v":0},{"$f":"SUM(G55:G58)","v":0},{"$f":"SUM(H55:H58)","v":0}]
[null,"2.6. Annen internopplæring / korte etterutdanninger /kurs mv."]
[null,"Opplæringstype","Måloppnåelse (antall ansatte)",null,"Økonomirapportering",null,null,null,"Merknader\n(nærmere om hvilken annen opplæring)"]
[null,null,"Fullført utdanning\n/ opplæring ","Samlet antall fullførte og under utdanning / opplæring ","Søkt beløp","Innvilget beløp ","Ubrukt \nønkes overført","Ubrukt\nbetales tilbake"]
[null,"a.  Innen psykisk helsearbeid og rusfeltet",0,0,0,0,0,0]
[null,"b. Innen eldreomsorg og demensfeltet",0,0,0,0,0,0]
[null,"c. Annet",0,0,0,0,0,0]
[null,"Sum :",{"$f":"SUM(C63:C65)","v":0},0,{"$f":"SUM(E63:E65)","v":0},{"$f":"SUM(F63:F65)","v":0},{"$f":"SUM(G63:G65)","v":0},{"$f":"SUM(H63:H65)","v":0}]
[null,"Total sum (inkludert 2.7.) :",{"$f":"C18+C28+C39+C51+C59+C66","v":0},{"$f":"D18+D28+D39+D51+D59+D66","v":0},{"$f":"E18+E28+E39+E51+E59+E66+C69","v":0},{"$f":"F18+F28+F39+F51+F59+F66+C70","v":0},{"$f":"G18+G28+G39+G51+G59+G66+C71","v":0},{"$f":"H18+H28+H39+H51+H59+H66+C72","v":0}]
[null,"2.7. Andre kompetansehevende tiltak"]
[null,"a. Søkt beløp"]
[null,"b. Innvilget beløp "]
[null,"c. Ubrukt, ønkes overført"]
[null,"d. Ubrukt, betales tilbake"]
[null,"e. Beskrivelse av tiltaket og hva tilskuddet har gått til."]
[]
[]
[null,"3. Opplæringstilskudd BPA (brukerstyrt personlig assistanse)"]
[null,null,"Måloppnåelse (antall personer)",null,null,"Økonomirapportering"]
[null,null,"Søkt ","Innvilget","Gjennomført","Søkt beløp","Utbetalt beløp","Ubrukt \nønkes overført","Ubrukt\nbetales tilbake"]
[null,"a. Arbeidsledere som har fått tilskudd til opplæring",0,0,0,0,0,0,0]
[null,"b. Saksbehandlere som har fått tilskudd til opplæring",0,0,0,0,0,0,0]
[null,"c. Assistenter som har fått tilskudd til opplæring",0,0,0,0,0,0,0]
[null,"Sum :",{"$f":"SUM(C79:C81)","v":0},{"$f":"SUM(D79:D81)","v":0},0,0,0,0,0]
[]
[null,"4. Innovasjonsprosjekter"]
[null,"4.1. Tema for prosjektene det rapporteres på"]
[null,"Tema ",null,"Antall prosjekter","Tittel på prosjekt/merknader"]
[null,"a. Velferdsteknologiske løsninger"]
[null,"b. Samspill med pårørende og frivillige i omsorgssektoren generelt og  \n    demensomsorgen spesielt."]
[null,"c. Legemiddelhåndtering"]
[null,"d. Ernæring"]
[null,"e. Fritidsaktivitet med assistanse"]
[null,"f. Kulturopplevelser"]
[null,"g. Annet"]
[null,"Sum :",null,{"$f":"SUM(D87:D93)","v":0}]
[null,"4.2. Rapportering på kriterier for måloppnåelse \n * Forskningsrapporter og annen dokumentasjon fra innovasjonsprosjekter under denne tilskuddsordningen skal i tillegg sendes Senter for Omsorgsforskning, \n     postmottak@hig.no, Høgskolen i Gjøvik, Postboks 191, 2802 Gjøvik."]
[null,"a. Beskrivelse av brukernes erfaringer og opplevd nytte"]
[]
[null,"b. I hvilken grad har behovet for kompenserende tjenester blitt redusert/vise til redusert behov for kompenserende tjenester?"]
[]
[null,"c. I hvilken grad har nye løsninger gitt kvalitative og økonomiske gevinster for brukerne og kommunen?"]
[]
[null,"d. I hvilken grad har tiltaket overføringsverdi til andre kommuner og betydning for praksis?"]
[]
[null,"e. I hvilken grad og hvordan har innovasjonsmetodikk blitt benyttet i prosjektet?"]
[]
[null,"4.3. Regnskap for innovasjonsprosjekt"]
[null,"Inntektekter",null,null,"Merknader"]
[null,"a. Tilskuddsbeløp fra Fylkesmannen",null,0]
[null,"Utgifter"]
[null,"b. Lønnsutgifter med sosiale utgifter ",null,0]
[null,"c. Reiseutgifter, arrangement, møter, konferanser",null,0]
[null,"d. Konsulenttjenester",null,0]
[null,"e. Trykking, publikasjoner, kunngjøringer, utsending og distribusjonskostnader ",null,0]
[null,"f. Investeringer/ inventar/ utstyr",null,0]
[null,"g. Driftsutgifter, forbruksmateriell og kontortjenester inkludert lokaler og energi",null,0]
[null,"h. Andre utgifter (spesifiser i merknadsteltet)",null,0]
[null,"Sum utgifter",null,{"$f":"SUM(D110:D116)","v":0}]
[null,"Ubrukt tilskudd på rapporteringstidspunktet",null,{"$f":"SUM(D108-D117)","v":0}]
[null,"Søkes overført",null,0]
[null,"4.4. Informasjon om inntekter fra andre kilder"]
[null,"a. Inntekter fra andre kilder/statlige prosjekt",null,0]
[null,"b. Egenfinansiering",null,0]
[null,"4.5. Revisoruttalelse"]
[null,"a. Revisoruttalelse (velg ett alternativ fra nedtrekksliste i neste rute)"]
[null,"b. Kommentarer til revisoruttalelse"]
[]
[null,"5. Nasjonalt velferdsteknologiprogram - innføring av velferdsteknologiske løsninger\n    * Rapportering for punktene ( fra 5.1. til 5.6.) kan sendes som eget vedlegg"]
[null,"5.1. Følges oppgitt fremdriftsplan i prosjektet?  (Inntil 300 ord)"]
[]
[]
[null,"5.2. Hvem er samarbeidspartnere i prosjektet og hvordan er status med tanke på samarbeid? (Inntil 300 ord)"]
[]
[]
[null,"5.3. Hva er status for implementering av velferdsteknologi i kommunene etter fastsatte måltall, hvilke tjenesteinnovasjoner som er gjennomført og   hvilke endringer dette har resultert i? \n      (Inntil 600 ord)"]
[]
[]
[]
[null,"5.4. Hva er forventede og realiserte gevinster av prosjektet for kommunen (spart tid, unngåtte kostnader, økt kvalitet)?  (Inntil 600 ord)"]
[]
[]
[]
[null,"5.5. Hvordan er kommunens planer for skalering av løsningene og overgang til løpende driftsfase, herunder planer for investering og drift av løsninger? (Inntil 600 ord)"]
[]
[]
[]
[null,"5.6. Hvordan er brukermedvirkning sikret i prosjektet? Angi på hvilken måte pasienter, brukere og pårørende er involvert? Hva er resultater for brukerne?(Inntil 600 ord)"]
[]
[]
[]
[null,"5.7. Regnskap for nasjonalt velferdsteknologiprogram - innføring av velferdsteknologiske løsninger"]
[null,"Inntektekter",null,null,"Merknader"]
[null,"a. Tilskuddsbeløp fra Fylkesmannen",null,0]
[null,"Utgifter"]
[null,"b. Lønnsutgifter med sosiale utgifter ",null,0]
[null,"c. Reiseutgifter, arrangement, møter, konferanser",null,0]
[null,"d. Konsulenttjenester",null,0]
[null,"e. Trykking, publikasjoner, kunngjøringer, utsending og distribusjonskostnader ",null,0]
[null,"f. Investeringer/ inventar/ utstyr",null,0]
[null,"g. Driftsutgifter, forbruksmateriell og kontortjenester inkludert lokaler og energi",null,0]
[null,"h. Andre utgifter (spesifiser i merknadsteltet)",null,0]
[null,"Sum utgifter",null,{"$f":"SUM(D154:D160)","v":0}]
[null,"Ubrukt tilskudd på rapporteringstidspunktet",null,{"$f":"SUM(D152-D161)","v":0}]
[null,"Søkes overført",null,0]
[null,"5.8. Informasjon om inntekter fra andre kilder"]
[null,"a. Inntekter fra andre kilder/statlige prosjekt",null,0]
[null,"b. Egenfinansiering",null,0]
[null,"5.9. Revisoruttalelse"]
[null,"a. Revisoruttalelse (velg ett alternativ fra nedtrekksliste i neste rute)"]
[null,"b. Kommentarer til revisoruttalelse"]
[]
[]
[null,null,null,"Dette er styringsarket. Det kan skjules."]
[null,null,null,"Revisoruttalelse"]
[null,null,null,"Revisoruttalelse foreligger uten merknader"]
[null,null,null,"Revisoruttalelse foreligger med merknader"]
[null,null,null,"I tilskuddsbrevet er det ikke krav til revisoruttalelse"]
[null,null,null,"Revisoruttalelse mangler (rapportering ufullstendig)"]

{"sheet":"Berlevåg","index":6,"n_rows":177,"n_cols":9,"rows_kept":177,"cut":false,"hidden":false,"merged":[[12,1,12,8],[13,1,14,1],[13,2,13,3],[13,4,13,7],[13,8,14,8],[15,8,17,8],[1,1,1,8],[2,2,2,8],[3,2,3,8],[4,2,4,8],[5,2,5,8],[11,1,11,8],[28,1,28,8],[29,1,30,1],[29,2,29,3],[29,4,29,7],[29,8,30,8],[31,8,38,8],[18,1,18,8],[19,1,20,1],[19,2,19,3],[19,4,19,7],[19,8,20,8],[21,8,27,8],[51,1,51,8],[52,1,53,1],[52,2,52,3],[52,4,52,7],[52,8,53,8],[54,8,58,8],[39,1,39,8],[40,1,41,1],[40,2,40,3],[40,4,40,7],[40,8,41,8],[42,8,50,8],[67,1,67,8],[68,2,68,7],[68,8,71,8],[69,2,69,7],[70,2,70,7],[71,2,71,7],[59,1,59,8],[60,1,61,1],[60,2,60,3],[60,4,60,7],[60,8,61,8],[62,8,66,8],[83,1,83,8],[84,1,84,8],[85,1,85,2],[85,4,85,8],[86,1,86,2],[86,4,86,8],[72,1,72,8],[73,1,73,8],[75,1,75,8],[76,1,77,1],[76,2,76,4],[76,5,76,8],[90,1,90,2],[90,4,90,8],[91,1,91,2],[91,4,91,8],[92,1,92,2],[92,4,92,8],[87,1,87,2],[87,4,87,8],[88,1,88,2],[88,4,88,8],[89,1,89,2],[89,4,89,8],[98,1,98,8],[99,1,99,8],[100,1,100,8],[101,1,101,8],[102,1,102,8],[103,1,103,8],[93,1,93,2],[93,4,93,8],[94,1,94,8],[95,1,95,8],[96,1,96,8],[97,1,97,8],[112,1,112,2],[113,1,113,2],[114,1,114,2],[115,1,115,2],[116,1,116,2],[117,1,117,2],[104,1,104,8],[105,1,105,8],[106,1,106,3],[106,4,106,8],[107,1,107,2],[107,4,118,8],[108,1,108,3],[109,1,109,2],[110,1,110,2],[111,1,111,2],[122,1,122,8],[123,1,123,2],[123,3,123,8],[124,1,124,2],[124,3,124,8],[126,1,126,7],[118,1,118,2],[119,1,119,8],[120,1,120,2],[120,4,120,8],[121,1,121,2],[121,4,121,8],[137,1,137,8],[138,1,140,8],[141,1,141,8],[142,1,144,8],[145,1,145,8],[146,1,148,8],[127,1,127,8],[128,1,129,8],[130,1,130,8],[131,1,132,8],[133,1,133,8],[134,1,136,8],[157,1,157,2],[158,1,158,2],[159,1,159,2],[160,1,160,2],[161,1,161,2],[162,1,162,2],[149,1,149,8],[150,1,150,3],[150,4,150,8],[151,1,151,2],[151,4,162,8],[152,1,152,3],[153,1,153,2],[154,1,154,2],[155,1,155,2],[156,1,156,2],[167,1,167,2],[167,3,167,8],[168,1,168,2],[168,3,168,8],[163,1,163,8],[164,1,164,2],[164,4,164,8],[165,1,165,2],[165,4,165,8],[166,1,166,8]]}
[]
[null,"1. Informasjon om kommunen "]
[null,"1.1. Navn på kommunen"]
[null,"1.2. Kontaktperson"]
[null,"1.3. E-post"]
[null,"1.4. Telefon"]
[]
[null,"Rapportering fra kommunen til Fylkesmannen"]
[null," - Kap761, post 68 \" Kommunalt kompetanse- og innovasjonstilskudd\""]
[null," - Kap761, post 78 \" Nasjonalt velferdsteknologiprogram - innføring av velferdsteknologiske løsninger\""]
[]
[null,"2. Kompetansetiltak (grunn-, videre- og etterutdanning)"]
[null,"2.1. Videregående skole, fag- og yrkesopplæring innen helse (fagbrev)"]
[null,"Utdanningstype","Måloppnåelse (antall ansatte)",null,"Økonomirapportering",null,null,null,"Merknader\n(nærmere om hvilken annen utdanning)"]
[null,null,"Fullført utdanning\n","Samlet antall fullførte og under utdanning ","Søkt beløp","Innvilget beløp ","Ubrukt \nønkes overført","Ubrukt\nbetales tilbake"]
[null,"a. Helsefagarbeider",0,0,0,0,0,0]
[null,"b. Annen utdanning på videregående skolenivå",0,0,0,0,0,0]
[null,"Sum :",{"$f":"SUM(C16:C17)","v":0},{"$f":"SUM(D16:D17)","v":0},{"$f":"SUM(E16:E17)","v":0},{"$f":"SUM(F16:F17)","v":0},{"$f":"SUM(G16:G17)","v":0},0]
[null,"2.2. Fagskoleutdanning"]
[null,"Utdanningstype","Måloppnåelse (antall ansatte)",null,"Økonomirapportering",null,null,null,"Merknader\n(nærmere om hvilken annen utdanning)"]
[null,null,"Fullført utdanning\n","Samlet antall fullførte og under utdanning","Søkt beløp","Innvilget beløp ","Ubrukt \nønkes overført","Ubrukt\nbetales tilbake"]
[null,"a. Psykisk helsearbeid og rusarbeid",0,0,0,0,0,0]
[null,"b. Eldreomsorg/demens",0,0,0,0,0,0]
[null,"c. Habilitering/rehabilitering",0,0,0,0,0,0]
[null,"d. Kreftomsorg/lindrende behandling",0,0,0,0,0,0]
[null,"e. Veiledning",0,0,0,0,0,0]
[null,"f. Annen fagskoleutdanning",0,0,0,0,0,0]
[null,"Sum :",{"$f":"SUM(C22:C27)","v":0},{"$f":"SUM(D22:D27)","v":0},{"$f":"SUM(E22:E27)","v":0},{"$f":"SUM(F22:F27)","v":0},0,0]
[null,"  2.3. Bachelorutdanning helse- og sosialfag"]
[null,"Utdanningstype","Måloppnåelse (antall ansatte)",null,"Økonomirapportering",null,null,null,"Merknader\n(nærmere om hvilken annen utdanning)"]
[null,null,"Fullført utdanning\n","Samlet antall fullførte og under utdanning","Søkt beløp","Innvilget beløp ","Ubrukt \nønkes overført","Ubrukt\nbetales tilbake"]
[null,"a. Sykepleie",0,0,0,0,0,0]
[null,"b. Vernepleie",0,0,0,0,0,0]
[null,"c. Fysioterapi",0,0,0,0,0,0]
[null,"d. Ergoterapi",0,0,0,0,0,0]
[null,"e. Sosial arbeid (sosionom)",0,0,0,0,0,0]
[null,"f. Barnevernspedagogikk",0,0,0,0,0,0]
[null,"g. Annen bachelorutdanning",0,0,0,0,0,0]
[null,"Sum :",{"$f":"SUM(C32:C38)","v":0},{"$f":"SUM(D32:D38)","v":0},{"$f":"SUM(E32:E38)","v":0},{"$f":"SUM(F32:F38)","v":0},0,0]
[null,"  2.4. Videreutdanning og mastergradutdanning (påbygg bachelorutdanning)"]
[null,"Utdanningstype","Måloppnåelse (antall ansatte)",null,"Økonomirapportering",null,null,null,"Merknader\n(nærmere om hvilken annen utdanning)"]
[null,null,"Fullført utdanning\n","Samlet antall fullførte og under utdanning","Søkt beløp","Innvilget beløp ","Ubrukt \nønkes overført","Ubrukt\nbetales tilbake"]
[null,"a. Psykisk helsearbeid og rusarbeid",0,0,0,0,0,0]
[null,"b. Tverrfaglig videreutdanning \n     i psykososialt arbeid med barn og unge",0,0,0,0,0,0]
[null,"c. Eldreomsorg/demens",0,0,0,0,0,0]
[null,"d. Kreftomsorg/lindrende pleie",0,0,0,0,0,0]
[null,"e. Habilitering/rehabilitering",0,0,0,0,0,0]
[null,"f. Veiledning",0,0,0,0,0,0]
[null,"g. Lederutdanning",0,0,0,0,0,0]
[null,"h. Annen videreutdanning og/eller masterutdanning",0,0,0,0,0,0]
[null,"Sum :",{"$f":"SUM(C43:C50)","v":0},{"$f":"SUM(D43:D50)","v":0},{"$f":"SUM(E43:E50)","v":0},{"$f":"SUM(F43:F50)","v":0},0,0]
[null,"2.5. ABC-opplæring"]
[null,"Opplæringstype","Måloppnåelse (antall ansatte)",null,"Økonomirapportering",null,null,null,"Merknader"]
[null,null,"Fullført opplæring ","Samlet antall fullførte og under opplæring ","Søkt beløp","Innvilget beløp ","Ubrukt \nønkes overført","Ubrukt\nbetales tilbake"]
[null,"a. Demensomsorgens ABC",0,0,0,0,0,0]
[null,"b. Eldreomsorgens ABC",0,0,0,0,0,0]
[null,"c. Mitt livs ABC",0,0,0,0,0,0]
[null,"d. Velferdsteknologien ABC",0,0,0,0,0,0]
[null,"Sum :",{"$f":"SUM(C55:C58)","v":0},{"$f":"SUM(D55:D58)","v":0},{"$f":"SUM(E55:E58)","v":0},{"$f":"SUM(F55:F58)","v":0},{"$f":"SUM(G55:G58)","v":0},{"$f":"SUM(H55:H58)","v":0}]
[null,"2.6. Annen internopplæring / korte etterutdanninger /kurs mv."]
[null,"Opplæringstype","Måloppnåelse (antall ansatte)",null,"Økonomirapportering",null,null,null,"Merknader\n(nærmere om hvilken annen opplæring)"]
[null,null,"Fullført utdanning\n/ opplæring ","Samlet antall fullførte og under utdanning / opplæring ","Søkt beløp","Innvilget beløp ","Ubrukt \nønkes overført","Ubrukt\nbetales tilbake"]
[null,"a.  Innen psykisk helsearbeid og rusfeltet",0,0,0,0,0,0]
[null,"b. Innen eldreomsorg og demensfeltet",0,0,0,0,0,0]
[null,"c. Annet",0,0,0,0,0,0]
[null,"Sum :",{"$f":"SUM(C63:C65)","v":0},0,{"$f":"SUM(E63:E65)","v":0},{"$f":"SUM(F63:F65)","v":0},{"$f":"SUM(G63:G65)","v":0},{"$f":"SUM(H63:H65)","v":0}]
[null,"Total sum (inkludert 2.7.) :",{"$f":"C18+C28+C39+C51+C59+C66","v":0},{"$f":"D18+D28+D39+D51+D59+D66","v":0},{"$f":"E18+E28+E39+E51+E59+E66+C69","v":0},{"$f":"F18+F28+F39+F51+F59+F66+C70","v":0},{"$f":"G18+G28+G39+G51+G59+G66+C71","v":0},{"$f":"H18+H28+H39+H51+H59+H66+C72","v":0}]
[null,"2.7. Andre kompetansehevende tiltak"]
[null,"a. Søkt beløp"]
[null,"b. Innvilget beløp "]
[null,"c. Ubrukt, ønkes overført"]
[null,"d. Ubrukt, betales tilbake"]
[null,"e. Beskrivelse av tiltaket og hva tilskuddet har gått til."]
[]
[]
[null,"3. Opplæringstilskudd BPA (brukerstyrt personlig assistanse)"]
[null,null,"Måloppnåelse (antall personer)",null,null,"Økonomirapportering"]
[null,null,"Søkt ","Innvilget","Gjennomført","Søkt beløp","Utbetalt beløp","Ubrukt \nønkes overført","Ubrukt\nbetales tilbake"]
[null,"a. Arbeidsledere som har fått tilskudd til opplæring",0,0,0,0,0,0,0]
[null,"b. Saksbehandlere som har fått tilskudd til opplæring",0,0,0,0,0,0,0]
[null,"c. Assistenter som har fått tilskudd til opplæring",0,0,0,0,0,0,0]
[null,"Sum :",{"$f":"SUM(C79:C81)","v":0},{"$f":"SUM(D79:D81)","v":0},0,0,0,0,0]
[]
[null,"4. Innovasjonsprosjekter"]
[null,"4.1. Tema for prosjektene det rapporteres på"]
[null,"Tema ",null,"Antall prosjekter","Tittel på prosjekt/merknader"]
[null,"a. Velferdsteknologiske løsninger"]
[null,"b. Samspill med pårørende og frivillige i omsorgssektoren generelt og  \n    demensomsorgen spesielt."]
[null,"c. Legemiddelhåndtering"]
[null,"d. Ernæring"]
[null,"e. Fritidsaktivitet med assistanse"]
[null,"f. Kulturopplevelser"]
[null,"g. Annet"]
[null,"Sum :",null,{"$f":"SUM(D87:D93)","v":0}]
[null,"4.2. Rapportering på kriterier for måloppnåelse \n * Forskningsrapporter og annen dokumentasjon fra innovasjonsprosjekter under denne tilskuddsordningen skal i tillegg sendes Senter for Omsorgsforskning, \n     postmottak@hig.no, Høgskolen i Gjøvik, Postboks 191, 2802 Gjøvik."]
[null,"a. Beskrivelse av brukernes erfaringer og opplevd nytte"]
[]
[null,"b. I hvilken grad har behovet for kompenserende tjenester blitt redusert/vise til redusert behov for kompenserende tjenester?"]
[]
[null,"c. I hvilken grad har nye løsninger gitt kvalitative og økonomiske gevinster for brukerne og kommunen?"]
[]
[null,"d. I hvilken grad har tiltaket overføringsverdi til andre kommuner og betydning for praksis?"]
[]
[null,"e. I hvilken grad og hvordan har innovasjonsmetodikk blitt benyttet i prosjektet?"]
[]
[null,"4.3. Regnskap for innovasjonsprosjekt"]
[null,"Inntektekter",null,null,"Merknader"]
[null,"a. Tilskuddsbeløp fra Fylkesmannen",null,0]
[null,"Utgifter"]
[null,"b. Lønnsutgifter med sosiale utgifter ",null,0]
[null,"c. Reiseutgifter, arrangement, møter, konferanser",null,0]
[null,"d. Konsulenttjenester",null,0]
[null,"e. Trykking, publikasjoner, kunngjøringer, utsending og distribusjonskostnader ",null,0]
[null,"f. Investeringer/ inventar/ utstyr",null,0]
[null,"g. Driftsutgifter, forbruksmateriell og kontortjenester inkludert lokaler og energi",null,0]
[null,"h. Andre utgifter (spesifiser i merknadsteltet)",null,0]
[null,"Sum utgifter",null,{"$f":"SUM(D110:D116)","v":0}]
[null,"Ubrukt tilskudd på rapporteringstidspunktet",null,{"$f":"SUM(D108-D117)","v":0}]
[null,"Søkes overført",null,0]
[null,"4.4. Informasjon om inntekter fra andre kilder"]
[null,"a. Inntekter fra andre kilder/statlige prosjekt",null,0]
[null,"b. Egenfinansiering",null,0]
[null,"4.5. Revisoruttalelse"]
[null,"a. Revisoruttalelse (velg ett alternativ fra nedtrekksliste i neste rute)"]
[null,"b. Kommentarer til revisoruttalelse"]
[]
[null,"5. Nasjonalt velferdsteknologiprogram - innføring av velferdsteknologiske løsninger\n    * Rapportering for punktene ( fra 5.1. til 5.6.) kan sendes som eget vedlegg"]
[null,"5.1. Følges oppgitt fremdriftsplan i prosjektet?  (Inntil 300 ord)"]
[]
[]
[null,"5.2. Hvem er samarbeidspartnere i prosjektet og hvordan er status med tanke på samarbeid? (Inntil 300 ord)"]
[]
[]
[null,"5.3. Hva er status for implementering av velferdsteknologi i kommunene etter fastsatte måltall, hvilke tjenesteinnovasjoner som er gjennomført og   hvilke endringer dette har resultert i? \n      (Inntil 600 ord)"]
[]
[]
[]
[null,"5.4. Hva er forventede og realiserte gevinster av prosjektet for kommunen (spart tid, unngåtte kostnader, økt kvalitet)?  (Inntil 600 ord)"]
[]
[]
[]
[null,"5.5. Hvordan er kommunens planer for skalering av løsningene og overgang til løpende driftsfase, herunder planer for investering og drift av løsninger? (Inntil 600 ord)"]
[]
[]
[]
[null,"5.6. Hvordan er brukermedvirkning sikret i prosjektet? Angi på hvilken måte pasienter, brukere og pårørende er involvert? Hva er resultater for brukerne?(Inntil 600 ord)"]
[]
[]
[]
[null,"5.7. Regnskap for nasjonalt velferdsteknologiprogram - innføring av velferdsteknologiske løsninger"]
[null,"Inntektekter",null,null,"Merknader"]
[null,"a. Tilskuddsbeløp fra Fylkesmannen",null,0]
[null,"Utgifter"]
[null,"b. Lønnsutgifter med sosiale utgifter ",null,0]
[null,"c. Reiseutgifter, arrangement, møter, konferanser",null,0]
[null,"d. Konsulenttjenester",null,0]
[null,"e. Trykking, publikasjoner, kunngjøringer, utsending og distribusjonskostnader ",null,0]
[null,"f. Investeringer/ inventar/ utstyr",null,0]
[null,"g. Driftsutgifter, forbruksmateriell og kontortjenester inkludert lokaler og energi",null,0]
[null,"h. Andre utgifter (spesifiser i merknadsteltet)",null,0]
[null,"Sum utgifter",null,{"$f":"SUM(D154:D160)","v":0}]
[null,"Ubrukt tilskudd på rapporteringstidspunktet",null,{"$f":"SUM(D152-D161)","v":0}]
[null,"Søkes overført",null,0]
[null,"5.8. Informasjon om inntekter fra andre kilder"]
[null,"a. Inntekter fra andre kilder/statlige prosjekt",null,0]
[null,"b. Egenfinansiering",null,0]
[null,"5.9. Revisoruttalelse"]
[null,"a. Revisoruttalelse (velg ett alternativ fra nedtrekksliste i neste rute)"]
[null,"b. Kommentarer til revisoruttalelse"]
[]
[]
[null,null,null,"Dette er styringsarket. Det kan skjules."]
[null,null,null,"Revisoruttalelse"]
[null,null,null,"Revisoruttalelse foreligger uten merknader"]
[null,null,null,"Revisoruttalelse foreligger med merknader"]
[null,null,null,"I tilskuddsbrevet er det ikke krav til revisoruttalelse"]
[null,null,null,"Revisoruttalelse mangler (rapportering ufullstendig)"]

{"sheet":"Gamvik","index":7,"n_rows":177,"n_cols":9,"rows_kept":177,"cut":false,"hidden":false,"merged":[[12,1,12,8],[13,1,14,1],[13,2,13,3],[13,4,13,7],[13,8,14,8],[15,8,17,8],[1,1,1,8],[2,2,2,8],[3,2,3,8],[4,2,4,8],[5,2,5,8],[11,1,11,8],[28,1,28,8],[29,1,30,1],[29,2,29,3],[29,4,29,7],[29,8,30,8],[31,8,38,8],[18,1,18,8],[19,1,20,1],[19,2,19,3],[19,4,19,7],[19,8,20,8],[21,8,27,8],[51,1,51,8],[52,1,53,1],[52,2,52,3],[52,4,52,7],[52,8,53,8],[54,8,58,8],[39,1,39,8],[40,1,41,1],[40,2,40,3],[40,4,40,7],[40,8,41,8],[42,8,50,8],[67,1,67,8],[68,2,68,7],[68,8,71,8],[69,2,69,7],[70,2,70,7],[71,2,71,7],[59,1,59,8],[60,1,61,1],[60,2,60,3],[60,4,60,7],[60,8,61,8],[62,8,66,8],[83,1,83,8],[84,1,84,8],[85,1,85,2],[85,4,85,8],[86,1,86,2],[86,4,86,8],[72,1,72,8],[73,1,73,8],[75,1,75,8],[76,1,77,1],[76,2,76,4],[76,5,76,8],[90,1,90,2],[90,4,90,8],[91,1,91,2],[91,4,91,8],[92,1,92,2],[92,4,92,8],[87,1,87,2],[87,4,87,8],[88,1,88,2],[88,4,88,8],[89,1,89,2],[89,4,89,8],[98,1,98,8],[99,1,99,8],[100,1,100,8],[101,1,101,8],[102,1,102,8],[103,1,103,8],[93,1,93,2],[93,4,93,8],[94,1,94,8],[95,1,95,8],[96,1,96,8],[97,1,97,8],[112,1,112,2],[113,1,113,2],[114,1,114,2],[115,1,115,2],[116,1,116,2],[117,1,117,2],[104,1,104,8],[105,1,105,8],[106,1,106,3],[106,4,106,8],[107,1,107,2],[107,4,118,8],[108,1,108,3],[109,1,109,2],[110,1,110,2],[111,1,111,2],[122,1,122,8],[123,1,123,2],[123,3,123,8],[124,1,124,2],[124,3,124,8],[126,1,126,7],[118,1,118,2],[119,1,119,8],[120,1,120,2],[120,4,120,8],[121,1,121,2],[121,4,121,8],[137,1,137,8],[138,1,140,8],[141,1,141,8],[142,1,144,8],[145,1,145,8],[146,1,148,8],[127,1,127,8],[128,1,129,8],[130,1,130,8],[131,1,132,8],[133,1,133,8],[134,1,136,8],[157,1,157,2],[158,1,158,2],[159,1,159,2],[160,1,160,2],[161,1,161,2],[162,1,162,2],[149,1,149,8],[150,1,150,3],[150,4,150,8],[151,1,151,2],[151,4,162,8],[152,1,152,3],[153,1,153,2],[154,1,154,2],[155,1,155,2],[156,1,156,2],[167,1,167,2],[167,3,167,8],[168,1,168,2],[168,3,168,8],[163,1,163,8],[164,1,164,2],[164,4,164,8],[165,1,165,2],[165,4,165,8],[166,1,166,8]]}
[]
[null,"1. Informasjon om kommunen "]
[null,"1.1. Navn på kommunen"]
[null,"1.2. Kontaktperson"]
[null,"1.3. E-post"]
[null,"1.4. Telefon"]
[]
[null,"Rapportering fra kommunen til Fylkesmannen"]
[null," - Kap761, post 68 \" Kommunalt kompetanse- og innovasjonstilskudd\""]
[null," - Kap761, post 78 \" Nasjonalt velferdsteknologiprogram - innføring av velferdsteknologiske løsninger\""]
[]
[null,"2. Kompetansetiltak (grunn-, videre- og etterutdanning)"]
[null,"2.1. Videregående skole, fag- og yrkesopplæring innen helse (fagbrev)"]
[null,"Utdanningstype","Måloppnåelse (antall ansatte)",null,"Økonomirapportering",null,null,null,"Merknader\n(nærmere om hvilken annen utdanning)"]
[null,null,"Fullført utdanning\n","Samlet antall fullførte og under utdanning ","Søkt beløp","Innvilget beløp ","Ubrukt \nønkes overført","Ubrukt\nbetales tilbake"]
[null,"a. Helsefagarbeider",0,0,0,0,0,0]
[null,"b. Annen utdanning på videregående skolenivå",0,0,0,0,0,0]
[null,"Sum :",{"$f":"SUM(C16:C17)","v":0},{"$f":"SUM(D16:D17)","v":0},{"$f":"SUM(E16:E17)","v":0},{"$f":"SUM(F16:F17)","v":0},{"$f":"SUM(G16:G17)","v":0},0]
[null,"2.2. Fagskoleutdanning"]
[null,"Utdanningstype","Måloppnåelse (antall ansatte)",null,"Økonomirapportering",null,null,null,"Merknader\n(nærmere om hvilken annen utdanning)"]
[null,null,"Fullført utdanning\n","Samlet antall fullførte og under utdanning","Søkt beløp","Innvilget beløp ","Ubrukt \nønkes overført","Ubrukt\nbetales tilbake"]
[null,"a. Psykisk helsearbeid og rusarbeid",0,0,0,0,0,0]
[null,"b. Eldreomsorg/demens",0,0,0,0,0,0]
[null,"c. Habilitering/rehabilitering",0,0,0,0,0,0]
[null,"d. Kreftomsorg/lindrende behandling",0,0,0,0,0,0]
[null,"e. Veiledning",0,0,0,0,0,0]
[null,"f. Annen fagskoleutdanning",0,0,0,0,0,0]
[null,"Sum :",{"$f":"SUM(C22:C27)","v":0},{"$f":"SUM(D22:D27)","v":0},{"$f":"SUM(E22:E27)","v":0},{"$f":"SUM(F22:F27)","v":0},0,0]
[null,"  2.3. Bachelorutdanning helse- og sosialfag"]
[null,"Utdanningstype","Måloppnåelse (antall ansatte)",null,"Økonomirapportering",null,null,null,"Merknader\n(nærmere om hvilken annen utdanning)"]
[null,null,"Fullført utdanning\n","Samlet antall fullførte og under utdanning","Søkt beløp","Innvilget beløp ","Ubrukt \nønkes overført","Ubrukt\nbetales tilbake"]
[null,"a. Sykepleie",0,0,0,0,0,0]
[null,"b. Vernepleie",0,0,0,0,0,0]
[null,"c. Fysioterapi",0,0,0,0,0,0]
[null,"d. Ergoterapi",0,0,0,0,0,0]
[null,"e. Sosial arbeid (sosionom)",0,0,0,0,0,0]
[null,"f. Barnevernspedagogikk",0,0,0,0,0,0]
[null,"g. Annen bachelorutdanning",0,0,0,0,0,0]
[null,"Sum :",{"$f":"SUM(C32:C38)","v":0},{"$f":"SUM(D32:D38)","v":0},{"$f":"SUM(E32:E38)","v":0},{"$f":"SUM(F32:F38)","v":0},0,0]
[null,"  2.4. Videreutdanning og mastergradutdanning (påbygg bachelorutdanning)"]
[null,"Utdanningstype","Måloppnåelse (antall ansatte)",null,"Økonomirapportering",null,null,null,"Merknader\n(nærmere om hvilken annen utdanning)"]
[null,null,"Fullført utdanning\n","Samlet antall fullførte og under utdanning","Søkt beløp","Innvilget beløp ","Ubrukt \nønkes overført","Ubrukt\nbetales tilbake"]
[null,"a. Psykisk helsearbeid og rusarbeid",0,0,0,0,0,0]
[null,"b. Tverrfaglig videreutdanning \n     i psykososialt arbeid med barn og unge",0,0,0,0,0,0]
[null,"c. Eldreomsorg/demens",0,0,0,0,0,0]
[null,"d. Kreftomsorg/lindrende pleie",0,0,0,0,0,0]
[null,"e. Habilitering/rehabilitering",0,0,0,0,0,0]
[null,"f. Veiledning",0,0,0,0,0,0]
[null,"g. Lederutdanning",0,0,0,0,0,0]
[null,"h. Annen videreutdanning og/eller masterutdanning",0,0,0,0,0,0]
[null,"Sum :",{"$f":"SUM(C43:C50)","v":0},{"$f":"SUM(D43:D50)","v":0},{"$f":"SUM(E43:E50)","v":0},{"$f":"SUM(F43:F50)","v":0},0,0]
[null,"2.5. ABC-opplæring"]
[null,"Opplæringstype","Måloppnåelse (antall ansatte)",null,"Økonomirapportering",null,null,null,"Merknader"]
[null,null,"Fullført opplæring ","Samlet antall fullførte og under opplæring ","Søkt beløp","Innvilget beløp ","Ubrukt \nønkes overført","Ubrukt\nbetales tilbake"]
[null,"a. Demensomsorgens ABC",0,0,0,0,0,0]
[null,"b. Eldreomsorgens ABC",0,0,0,0,0,0]
[null,"c. Mitt livs ABC",0,0,0,0,0,0]
[null,"d. Velferdsteknologien ABC",0,0,0,0,0,0]
[null,"Sum :",{"$f":"SUM(C55:C58)","v":0},{"$f":"SUM(D55:D58)","v":0},{"$f":"SUM(E55:E58)","v":0},{"$f":"SUM(F55:F58)","v":0},{"$f":"SUM(G55:G58)","v":0},{"$f":"SUM(H55:H58)","v":0}]
[null,"2.6. Annen internopplæring / korte etterutdanninger /kurs mv."]
[null,"Opplæringstype","Måloppnåelse (antall ansatte)",null,"Økonomirapportering",null,null,null,"Merknader\n(nærmere om hvilken annen opplæring)"]
[null,null,"Fullført utdanning\n/ opplæring ","Samlet antall fullførte og under utdanning / opplæring ","Søkt beløp","Innvilget beløp ","Ubrukt \nønkes overført","Ubrukt\nbetales tilbake"]
[null,"a.  Innen psykisk helsearbeid og rusfeltet",0,0,0,0,0,0]
[null,"b. Innen eldreomsorg og demensfeltet",0,0,0,0,0,0]
[null,"c. Annet",0,0,0,0,0,0]
[null,"Sum :",{"$f":"SUM(C63:C65)","v":0},0,{"$f":"SUM(E63:E65)","v":0},{"$f":"SUM(F63:F65)","v":0},{"$f":"SUM(G63:G65)","v":0},{"$f":"SUM(H63:H65)","v":0}]
[null,"Total sum (inkludert 2.7.) :",{"$f":"C18+C28+C39+C51+C59+C66","v":0},{"$f":"D18+D28+D39+D51+D59+D66","v":0},{"$f":"E18+E28+E39+E51+E59+E66+C69","v":0},{"$f":"F18+F28+F39+F51+F59+F66+C70","v":0},{"$f":"G18+G28+G39+G51+G59+G66+C71","v":0},{"$f":"H18+H28+H39+H51+H59+H66+C72","v":0}]
[null,"2.7. Andre kompetansehevende tiltak"]
[null,"a. Søkt beløp"]
[null,"b. Innvilget beløp "]
[null,"c. Ubrukt, ønkes overført"]
[null,"d. Ubrukt, betales tilbake"]
[null,"e. Beskrivelse av tiltaket og hva tilskuddet har gått til."]
[]
[]
[null,"3. Opplæringstilskudd BPA (brukerstyrt personlig assistanse)"]
[null,null,"Måloppnåelse (antall personer)",null,null,"Økonomirapportering"]
[null,null,"Søkt ","Innvilget","Gjennomført","Søkt beløp","Utbetalt beløp","Ubrukt \nønkes overført","Ubrukt\nbetales tilbake"]
[null,"a. Arbeidsledere som har fått tilskudd til opplæring",0,0,0,0,0,0,0]
[null,"b. Saksbehandlere som har fått tilskudd til opplæring",0,0,0,0,0,0,0]
[null,"c. Assistenter som har fått tilskudd til opplæring",0,0,0,0,0,0,0]
[null,"Sum :",{"$f":"SUM(C79:C81)","v":0},{"$f":"SUM(D79:D81)","v":0},0,0,0,0,0]
[]
[null,"4. Innovasjonsprosjekter"]
[null,"4.1. Tema for prosjektene det rapporteres på"]
[null,"Tema ",null,"Antall prosjekter","Tittel på prosjekt/merknader"]
[null,"a. Velferdsteknologiske løsninger"]
[null,"b. Samspill med pårørende og frivillige i omsorgssektoren generelt og  \n    demensomsorgen spesielt."]
[null,"c. Legemiddelhåndtering"]
[null,"d. Ernæring"]
[null,"e. Fritidsaktivitet med assistanse"]
[null,"f. Kulturopplevelser"]
[null,"g. Annet"]
[null,"Sum :",null,{"$f":"SUM(D87:D93)","v":0}]
[null,"4.2. Rapportering på kriterier for måloppnåelse \n * Forskningsrapporter og annen dokumentasjon fra innovasjonsprosjekter under denne tilskuddsordningen skal i tillegg sendes Senter for Omsorgsforskning, \n     postmottak@hig.no, Høgskolen i Gjøvik, Postboks 191, 2802 Gjøvik."]
[null,"a. Beskrivelse av brukernes erfaringer og opplevd nytte"]
[]
[null,"b. I hvilken grad har behovet for kompenserende tjenester blitt redusert/vise til redusert behov for kompenserende tjenester?"]
[]
[null,"c. I hvilken grad har nye løsninger gitt kvalitative og økonomiske gevinster for brukerne og kommunen?"]
[]
[null,"d. I hvilken grad har tiltaket overføringsverdi til andre kommuner og betydning for praksis?"]
[]
[null,"e. I hvilken grad og hvordan har innovasjonsmetodikk blitt benyttet i prosjektet?"]
[]
[null,"4.3. Regnskap for innovasjonsprosjekt"]
[null,"Inntektekter",null,null,"Merknader"]
[null,"a. Tilskuddsbeløp fra Fylkesmannen",null,0]
[null,"Utgifter"]
[null,"b. Lønnsutgifter med sosiale utgifter ",null,0]
[null,"c. Reiseutgifter, arrangement, møter, konferanser",null,0]
[null,"d. Konsulenttjenester",null,0]
[null,"e. Trykking, publikasjoner, kunngjøringer, utsending og distribusjonskostnader ",null,0]
[null,"f. Investeringer/ inventar/ utstyr",null,0]
[null,"g. Driftsutgifter, forbruksmateriell og kontortjenester inkludert lokaler og energi",null,0]
[null,"h. Andre utgifter (spesifiser i merknadsteltet)",null,0]
[null,"Sum utgifter",null,{"$f":"SUM(D110:D116)","v":0}]
[null,"Ubrukt tilskudd på rapporteringstidspunktet",null,{"$f":"SUM(D108-D117)","v":0}]
[null,"Søkes overført",null,0]
[null,"4.4. Informasjon om inntekter fra andre kilder"]
[null,"a. Inntekter fra andre kilder/statlige prosjekt",null,0]
[null,"b. Egenfinansiering",null,0]
[null,"4.5. Revisoruttalelse"]
[null,"a. Revisoruttalelse (velg ett alternativ fra nedtrekksliste i neste rute)"]
[null,"b. Kommentarer til revisoruttalelse"]
[]
[null,"5. Nasjonalt velferdsteknologiprogram - innføring av velferdsteknologiske løsninger\n    * Rapportering for punktene ( fra 5.1. til 5.6.) kan sendes som eget vedlegg"]
[null,"5.1. Følges oppgitt fremdriftsplan i prosjektet?  (Inntil 300 ord)"]
[]
[]
[null,"5.2. Hvem er samarbeidspartnere i prosjektet og hvordan er status med tanke på samarbeid? (Inntil 300 ord)"]
[]
[]
[null,"5.3. Hva er status for implementering av velferdsteknologi i kommunene etter fastsatte måltall, hvilke tjenesteinnovasjoner som er gjennomført og   hvilke endringer dette har resultert i? \n      (Inntil 600 ord)"]
[]
[]
[]
[null,"5.4. Hva er forventede og realiserte gevinster av prosjektet for kommunen (spart tid, unngåtte kostnader, økt kvalitet)?  (Inntil 600 ord)"]
[]
[]
[]
[null,"5.5. Hvordan er kommunens planer for skalering av løsningene og overgang til løpende driftsfase, herunder planer for investering og drift av løsninger? (Inntil 600 ord)"]
[]
[]
[]
[null,"5.6. Hvordan er brukermedvirkning sikret i prosjektet? Angi på hvilken måte pasienter, brukere og pårørende er involvert? Hva er resultater for brukerne?(Inntil 600 ord)"]
[]
[]
[]
[null,"5.7. Regnskap for nasjonalt velferdsteknologiprogram - innføring av velferdsteknologiske løsninger"]
[null,"Inntektekter",null,null,"Merknader"]
[null,"a. Tilskuddsbeløp fra Fylkesmannen",null,0]
[null,"Utgifter"]
[null,"b. Lønnsutgifter med sosiale utgifter ",null,0]
[null,"c. Reiseutgifter, arrangement, møter, konferanser",null,0]
[null,"d. Konsulenttjenester",null,0]
[null,"e. Trykking, publikasjoner, kunngjøringer, utsending og distribusjonskostnader ",null,0]
[null,"f. Investeringer/ inventar/ utstyr",null,0]
[null,"g. Driftsutgifter, forbruksmateriell og kontortjenester inkludert lokaler og energi",null,0]
[null,"h. Andre utgifter (spesifiser i merknadsteltet)",null,0]
[null,"Sum utgifter",null,{"$f":"SUM(D154:D160)","v":0}]
[null,"Ubrukt tilskudd på rapporteringstidspunktet",null,{"$f":"SUM(D152-D161)","v":0}]
[null,"Søkes overført",null,0]
[null,"5.8. Informasjon om inntekter fra andre kilder"]
[null,"a. Inntekter fra andre kilder/statlige prosjekt",null,0]
[null,"b. Egenfinansiering",null,0]
[null,"5.9. Revisoruttalelse"]
[null,"a. Revisoruttalelse (velg ett alternativ fra nedtrekksliste i neste rute)"]
[null,"b. Kommentarer til revisoruttalelse"]
[]
[]
[null,null,null,"Dette er styringsarket. Det kan skjules."]
[null,null,null,"Revisoruttalelse"]
[null,null,null,"Revisoruttalelse foreligger uten merknader"]
[null,null,null,"Revisoruttalelse foreligger med merknader"]
[null,null,null,"I tilskuddsbrevet er det ikke krav til revisoruttalelse"]
[null,null,null,"Revisoruttalelse mangler (rapportering ufullstendig)"]

{"sheet":"Lebesby","index":8,"n_rows":177,"n_cols":9,"rows_kept":177,"cut":false,"hidden":false,"merged":[[12,1,12,8],[13,1,14,1],[13,2,13,3],[13,4,13,7],[13,8,14,8],[15,8,17,8],[1,1,1,8],[2,2,2,8],[3,2,3,8],[4,2,4,8],[5,2,5,8],[11,1,11,8],[28,1,28,8],[29,1,30,1],[29,2,29,3],[29,4,29,7],[29,8,30,8],[31,8,38,8],[18,1,18,8],[19,1,20,1],[19,2,19,3],[19,4,19,7],[19,8,20,8],[21,8,27,8],[51,1,51,8],[52,1,53,1],[52,2,52,3],[52,4,52,7],[52,8,53,8],[54,8,58,8],[39,1,39,8],[40,1,41,1],[40,2,40,3],[40,4,40,7],[40,8,41,8],[42,8,50,8],[67,1,67,8],[68,2,68,7],[68,8,71,8],[69,2,69,7],[70,2,70,7],[71,2,71,7],[59,1,59,8],[60,1,61,1],[60,2,60,3],[60,4,60,7],[60,8,61,8],[62,8,66,8],[83,1,83,8],[84,1,84,8],[85,1,85,2],[85,4,85,8],[86,1,86,2],[86,4,86,8],[72,1,72,8],[73,1,73,8],[75,1,75,8],[76,1,77,1],[76,2,76,4],[76,5,76,8],[90,1,90,2],[90,4,90,8],[91,1,91,2],[91,4,91,8],[92,1,92,2],[92,4,92,8],[87,1,87,2],[87,4,87,8],[88,1,88,2],[88,4,88,8],[89,1,89,2],[89,4,89,8],[98,1,98,8],[99,1,99,8],[100,1,100,8],[101,1,101,8],[102,1,102,8],[103,1,103,8],[93,1,93,2],[93,4,93,8],[94,1,94,8],[95,1,95,8],[96,1,96,8],[97,1,97,8],[112,1,112,2],[113,1,113,2],[114,1,114,2],[115,1,115,2],[116,1,116,2],[117,1,117,2],[104,1,104,8],[105,1,105,8],[106,1,106,3],[106,4,106,8],[107,1,107,2],[107,4,118,8],[108,1,108,3],[109,1,109,2],[110,1,110,2],[111,1,111,2],[122,1,122,8],[123,1,123,2],[123,3,123,8],[124,1,124,2],[124,3,124,8],[126,1,126,7],[118,1,118,2],[119,1,119,8],[120,1,120,2],[120,4,120,8],[121,1,121,2],[121,4,121,8],[137,1,137,8],[138,1,140,8],[141,1,141,8],[142,1,144,8],[145,1,145,8],[146,1,148,8],[127,1,127,8],[128,1,129,8],[130,1,130,8],[131,1,132,8],[133,1,133,8],[134,1,136,8],[157,1,157,2],[158,1,158,2],[159,1,159,2],[160,1,160,2],[161,1,161,2],[162,1,162,2],[149,1,149,8],[150,1,150,3],[150,4,150,8],[151,1,151,2],[151,4,162,8],[152,1,152,3],[153,1,153,2],[154,1,154,2],[155,1,155,2],[156,1,156,2],[167,1,167,2],[167,3,167,8],[168,1,168,2],[168,3,168,8],[163,1,163,8],[164,1,164,2],[164,4,164,8],[165,1,165,2],[165,4,165,8],[166,1,166,8]]}
[]
[null,"1. Informasjon om kommunen "]
[null,"1.1. Navn på kommunen"]
[null,"1.2. Kontaktperson"]
[null,"1.3. E-post"]
[null,"1.4. Telefon"]
[]
[null,"Rapportering fra kommunen til Fylkesmannen"]
[null," - Kap761, post 68 \" Kommunalt kompetanse- og innovasjonstilskudd\""]
[null," - Kap761, post 78 \" Nasjonalt velferdsteknologiprogram - innføring av velferdsteknologiske løsninger\""]
[]
[null,"2. Kompetansetiltak (grunn-, videre- og etterutdanning)"]
[null,"2.1. Videregående skole, fag- og yrkesopplæring innen helse (fagbrev)"]
[null,"Utdanningstype","Måloppnåelse (antall ansatte)",null,"Økonomirapportering",null,null,null,"Merknader\n(nærmere om hvilken annen utdanning)"]
[null,null,"Fullført utdanning\n","Samlet antall fullførte og under utdanning ","Søkt beløp","Innvilget beløp ","Ubrukt \nønkes overført","Ubrukt\nbetales tilbake"]
[null,"a. Helsefagarbeider",0,0,0,0,0,0]
[null,"b. Annen utdanning på videregående skolenivå",0,0,0,0,0,0]
[null,"Sum :",{"$f":"SUM(C16:C17)","v":0},{"$f":"SUM(D16:D17)","v":0},{"$f":"SUM(E16:E17)","v":0},{"$f":"SUM(F16:F17)","v":0},{"$f":"SUM(G16:G17)","v":0},0]
[null,"2.2. Fagskoleutdanning"]
[null,"Utdanningstype","Måloppnåelse (antall ansatte)",null,"Økonomirapportering",null,null,null,"Merknader\n(nærmere om hvilken annen utdanning)"]
[null,null,"Fullført utdanning\n","Samlet antall fullførte og under utdanning","Søkt beløp","Innvilget beløp ","Ubrukt \nønkes overført","Ubrukt\nbetales tilbake"]
[null,"a. Psykisk helsearbeid og rusarbeid",0,0,0,0,0,0]
[null,"b. Eldreomsorg/demens",0,0,0,0,0,0]
[null,"c. Habilitering/rehabilitering",0,0,0,0,0,0]
[null,"d. Kreftomsorg/lindrende behandling",0,0,0,0,0,0]
[null,"e. Veiledning",0,0,0,0,0,0]
[null,"f. Annen fagskoleutdanning",0,0,0,0,0,0]
[null,"Sum :",{"$f":"SUM(C22:C27)","v":0},{"$f":"SUM(D22:D27)","v":0},{"$f":"SUM(E22:E27)","v":0},{"$f":"SUM(F22:F27)","v":0},0,0]
[null,"  2.3. Bachelorutdanning helse- og sosialfag"]
[null,"Utdanningstype","Måloppnåelse (antall ansatte)",null,"Økonomirapportering",null,null,null,"Merknader\n(nærmere om hvilken annen utdanning)"]
[null,null,"Fullført utdanning\n","Samlet antall fullførte og under utdanning","Søkt beløp","Innvilget beløp ","Ubrukt \nønkes overført","Ubrukt\nbetales tilbake"]
[null,"a. Sykepleie",0,0,0,0,0,0]
[null,"b. Vernepleie",0,0,0,0,0,0]
[null,"c. Fysioterapi",0,0,0,0,0,0]
[null,"d. Ergoterapi",0,0,0,0,0,0]
[null,"e. Sosial arbeid (sosionom)",0,0,0,0,0,0]
[null,"f. Barnevernspedagogikk",0,0,0,0,0,0]
[null,"g. Annen bachelorutdanning",0,0,0,0,0,0]
[null,"Sum :",{"$f":"SUM(C32:C38)","v":0},{"$f":"SUM(D32:D38)","v":0},{"$f":"SUM(E32:E38)","v":0},{"$f":"SUM(F32:F38)","v":0},0,0]
[null,"  2.4. Videreutdanning og mastergradutdanning (påbygg bachelorutdanning)"]
[null,"Utdanningstype","Måloppnåelse (antall ansatte)",null,"Økonomirapportering",null,null,null,"Merknader\n(nærmere om hvilken annen utdanning)"]
[null,null,"Fullført utdanning\n","Samlet antall fullførte og under utdanning","Søkt beløp","Innvilget beløp ","Ubrukt \nønkes overført","Ubrukt\nbetales tilbake"]
[null,"a. Psykisk helsearbeid og rusarbeid",0,0,0,0,0,0]
[null,"b. Tverrfaglig videreutdanning \n     i psykososialt arbeid med barn og unge",0,0,0,0,0,0]
[null,"c. Eldreomsorg/demens",0,0,0,0,0,0]
[null,"d. Kreftomsorg/lindrende pleie",0,0,0,0,0,0]
[null,"e. Habilitering/rehabilitering",0,0,0,0,0,0]
[null,"f. Veiledning",0,0,0,0,0,0]
[null,"g. Lederutdanning",0,0,0,0,0,0]
[null,"h. Annen videreutdanning og/eller masterutdanning",0,0,0,0,0,0]
[null,"Sum :",{"$f":"SUM(C43:C50)","v":0},{"$f":"SUM(D43:D50)","v":0},{"$f":"SUM(E43:E50)","v":0},{"$f":"SUM(F43:F50)","v":0},0,0]
[null,"2.5. ABC-opplæring"]
[null,"Opplæringstype","Måloppnåelse (antall ansatte)",null,"Økonomirapportering",null,null,null,"Merknader"]
[null,null,"Fullført opplæring ","Samlet antall fullførte og under opplæring ","Søkt beløp","Innvilget beløp ","Ubrukt \nønkes overført","Ubrukt\nbetales tilbake"]
[null,"a. Demensomsorgens ABC",0,0,0,0,0,0]
[null,"b. Eldreomsorgens ABC",0,0,0,0,0,0]
[null,"c. Mitt livs ABC",0,0,0,0,0,0]
[null,"d. Velferdsteknologien ABC",0,0,0,0,0,0]
[null,"Sum :",{"$f":"SUM(C55:C58)","v":0},{"$f":"SUM(D55:D58)","v":0},{"$f":"SUM(E55:E58)","v":0},{"$f":"SUM(F55:F58)","v":0},{"$f":"SUM(G55:G58)","v":0},{"$f":"SUM(H55:H58)","v":0}]
[null,"2.6. Annen internopplæring / korte etterutdanninger /kurs mv."]
[null,"Opplæringstype","Måloppnåelse (antall ansatte)",null,"Økonomirapportering",null,null,null,"Merknader\n(nærmere om hvilken annen opplæring)"]
[null,null,"Fullført utdanning\n/ opplæring ","Samlet antall fullførte og under utdanning / opplæring ","Søkt beløp","Innvilget beløp ","Ubrukt \nønkes overført","Ubrukt\nbetales tilbake"]
[null,"a.  Innen psykisk helsearbeid og rusfeltet",0,0,0,0,0,0]
[null,"b. Innen eldreomsorg og demensfeltet",0,0,0,0,0,0]
[null,"c. Annet",0,0,0,0,0,0]
[null,"Sum :",{"$f":"SUM(C63:C65)","v":0},0,{"$f":"SUM(E63:E65)","v":0},{"$f":"SUM(F63:F65)","v":0},{"$f":"SUM(G63:G65)","v":0},{"$f":"SUM(H63:H65)","v":0}]
[null,"Total sum (inkludert 2.7.) :",{"$f":"C18+C28+C39+C51+C59+C66","v":0},{"$f":"D18+D28+D39+D51+D59+D66","v":0},{"$f":"E18+E28+E39+E51+E59+E66+C69","v":0},{"$f":"F18+F28+F39+F51+F59+F66+C70","v":0},{"$f":"G18+G28+G39+G51+G59+G66+C71","v":0},{"$f":"H18+H28+H39+H51+H59+H66+C72","v":0}]
[null,"2.7. Andre kompetansehevende tiltak"]
[null,"a. Søkt beløp"]
[null,"b. Innvilget beløp "]
[null,"c. Ubrukt, ønkes overført"]
[null,"d. Ubrukt, betales tilbake"]
[null,"e. Beskrivelse av tiltaket og hva tilskuddet har gått til."]
[]
[]
[null,"3. Opplæringstilskudd BPA (brukerstyrt personlig assistanse)"]
[null,null,"Måloppnåelse (antall personer)",null,null,"Økonomirapportering"]
[null,null,"Søkt ","Innvilget","Gjennomført","Søkt beløp","Utbetalt beløp","Ubrukt \nønkes overført","Ubrukt\nbetales tilbake"]
[null,"a. Arbeidsledere som har fått tilskudd til opplæring",0,0,0,0,0,0,0]
[null,"b. Saksbehandlere som har fått tilskudd til opplæring",0,0,0,0,0,0,0]
[null,"c. Assistenter som har fått tilskudd til opplæring",0,0,0,0,0,0,0]
[null,"Sum :",{"$f":"SUM(C79:C81)","v":0},{"$f":"SUM(D79:D81)","v":0},0,0,0,0,0]
[]
[null,"4. Innovasjonsprosjekter"]
[null,"4.1. Tema for prosjektene det rapporteres på"]
[null,"Tema ",null,"Antall prosjekter","Tittel på prosjekt/merknader"]
[null,"a. Velferdsteknologiske løsninger"]
[null,"b. Samspill med pårørende og frivillige i omsorgssektoren generelt og  \n    demensomsorgen spesielt."]
[null,"c. Legemiddelhåndtering"]
[null,"d. Ernæring"]
[null,"e. Fritidsaktivitet med assistanse"]
[null,"f. Kulturopplevelser"]
[null,"g. Annet"]
[null,"Sum :",null,{"$f":"SUM(D87:D93)","v":0}]
[null,"4.2. Rapportering på kriterier for måloppnåelse \n * Forskningsrapporter og annen dokumentasjon fra innovasjonsprosjekter under denne tilskuddsordningen skal i tillegg sendes Senter for Omsorgsforskning, \n     postmottak@hig.no, Høgskolen i Gjøvik, Postboks 191, 2802 Gjøvik."]
[null,"a. Beskrivelse av brukernes erfaringer og opplevd nytte"]
[]
[null,"b. I hvilken grad har behovet for kompenserende tjenester blitt redusert/vise til redusert behov for kompenserende tjenester?"]
[]
[null,"c. I hvilken grad har nye løsninger gitt kvalitative og økonomiske gevinster for brukerne og kommunen?"]
[]
[null,"d. I hvilken grad har tiltaket overføringsverdi til andre kommuner og betydning for praksis?"]
[]
[null,"e. I hvilken grad og hvordan har innovasjonsmetodikk blitt benyttet i prosjektet?"]
[]
[null,"4.3. Regnskap for innovasjonsprosjekt"]
[null,"Inntektekter",null,null,"Merknader"]
[null,"a. Tilskuddsbeløp fra Fylkesmannen",null,0]
[null,"Utgifter"]
[null,"b. Lønnsutgifter med sosiale utgifter ",null,0]
[null,"c. Reiseutgifter, arrangement, møter, konferanser",null,0]
[null,"d. Konsulenttjenester",null,0]
[null,"e. Trykking, publikasjoner, kunngjøringer, utsending og distribusjonskostnader ",null,0]
[null,"f. Investeringer/ inventar/ utstyr",null,0]
[null,"g. Driftsutgifter, forbruksmateriell og kontortjenester inkludert lokaler og energi",null,0]
[null,"h. Andre utgifter (spesifiser i merknadsteltet)",null,0]
[null,"Sum utgifter",null,{"$f":"SUM(D110:D116)","v":0}]
[null,"Ubrukt tilskudd på rapporteringstidspunktet",null,{"$f":"SUM(D108-D117)","v":0}]
[null,"Søkes overført",null,0]
[null,"4.4. Informasjon om inntekter fra andre kilder"]
[null,"a. Inntekter fra andre kilder/statlige prosjekt",null,0]
[null,"b. Egenfinansiering",null,0]
[null,"4.5. Revisoruttalelse"]
[null,"a. Revisoruttalelse (velg ett alternativ fra nedtrekksliste i neste rute)"]
[null,"b. Kommentarer til revisoruttalelse"]
[]
[null,"5. Nasjonalt velferdsteknologiprogram - innføring av velferdsteknologiske løsninger\n    * Rapportering for punktene ( fra 5.1. til 5.6.) kan sendes som eget vedlegg"]
[null,"5.1. Følges oppgitt fremdriftsplan i prosjektet?  (Inntil 300 ord)"]
[]
[]
[null,"5.2. Hvem er samarbeidspartnere i prosjektet og hvordan er status med tanke på samarbeid? (Inntil 300 ord)"]
[]
[]
[null,"5.3. Hva er status for implementering av velferdsteknologi i kommunene etter fastsatte måltall, hvilke tjenesteinnovasjoner som er gjennomført og   hvilke endringer dette har resultert i? \n      (Inntil 600 ord)"]
[]
[]
[]
[null,"5.4. Hva er forventede og realiserte gevinster av prosjektet for kommunen (spart tid, unngåtte kostnader, økt kvalitet)?  (Inntil 600 ord)"]
[]
[]
[]
[null,"5.5. Hvordan er kommunens planer for skalering av løsningene og overgang til løpende driftsfase, herunder planer for investering og drift av løsninger? (Inntil 600 ord)"]
[]
[]
[]
[null,"5.6. Hvordan er brukermedvirkning sikret i prosjektet? Angi på hvilken måte pasienter, brukere og pårørende er involvert? Hva er resultater for brukerne?(Inntil 600 ord)"]
[]
[]
[]
[null,"5.7. Regnskap for nasjonalt velferdsteknologiprogram - innføring av velferdsteknologiske løsninger"]
[null,"Inntektekter",null,null,"Merknader"]
[null,"a. Tilskuddsbeløp fra Fylkesmannen",null,0]
[null,"Utgifter"]
[null,"b. Lønnsutgifter med sosiale utgifter ",null,0]
[null,"c. Reiseutgifter, arrangement, møter, konferanser",null,0]
[null,"d. Konsulenttjenester",null,0]
[null,"e. Trykking, publikasjoner, kunngjøringer, utsending og distribusjonskostnader ",null,0]
[null,"f. Investeringer/ inventar/ utstyr",null,0]
[null,"g. Driftsutgifter, forbruksmateriell og kontortjenester inkludert lokaler og energi",null,0]
[null,"h. Andre utgifter (spesifiser i merknadsteltet)",null,0]
[null,"Sum utgifter",null,{"$f":"SUM(D154:D160)","v":0}]
[null,"Ubrukt tilskudd på rapporteringstidspunktet",null,{"$f":"SUM(D152-D161)","v":0}]
[null,"Søkes overført",null,0]
[null,"5.8. Informasjon om inntekter fra andre kilder"]
[null,"a. Inntekter fra andre kilder/statlige prosjekt",null,0]
[null,"b. Egenfinansiering",null,0]
[null,"5.9. Revisoruttalelse"]
[null,"a. Revisoruttalelse (velg ett alternativ fra nedtrekksliste i neste rute)"]
[null,"b. Kommentarer til revisoruttalelse"]
[]
[]
[null,null,null,"Dette er styringsarket. Det kan skjules."]
[null,null,null,"Revisoruttalelse"]
[null,null,null,"Revisoruttalelse foreligger uten merknader"]
[null,null,null,"Revisoruttalelse foreligger med merknader"]
[null,null,null,"I tilskuddsbrevet er det ikke krav til revisoruttalelse"]
[null,null,null,"Revisoruttalelse mangler (rapportering ufullstendig)"]

{"sheet":"KárásjohkaKarasjok","index":9,"n_rows":177,"n_cols":9,"rows_kept":177,"cut":false,"hidden":false,"merged":[[12,1,12,8],[13,1,14,1],[13,2,13,3],[13,4,13,7],[13,8,14,8],[15,8,17,8],[1,1,1,8],[2,2,2,8],[3,2,3,8],[4,2,4,8],[5,2,5,8],[11,1,11,8],[28,1,28,8],[29,1,30,1],[29,2,29,3],[29,4,29,7],[29,8,30,8],[31,8,38,8],[18,1,18,8],[19,1,20,1],[19,2,19,3],[19,4,19,7],[19,8,20,8],[21,8,27,8],[51,1,51,8],[52,1,53,1],[52,2,52,3],[52,4,52,7],[52,8,53,8],[54,8,58,8],[39,1,39,8],[40,1,41,1],[40,2,40,3],[40,4,40,7],[40,8,41,8],[42,8,50,8],[67,1,67,8],[68,2,68,7],[68,8,71,8],[69,2,69,7],[70,2,70,7],[71,2,71,7],[59,1,59,8],[60,1,61,1],[60,2,60,3],[60,4,60,7],[60,8,61,8],[62,8,66,8],[83,1,83,8],[84,1,84,8],[85,1,85,2],[85,4,85,8],[86,1,86,2],[86,4,86,8],[72,1,72,8],[73,1,73,8],[75,1,75,8],[76,1,77,1],[76,2,76,4],[76,5,76,8],[90,1,90,2],[90,4,90,8],[91,1,91,2],[91,4,91,8],[92,1,92,2],[92,4,92,8],[87,1,87,2],[87,4,87,8],[88,1,88,2],[88,4,88,8],[89,1,89,2],[89,4,89,8],[98,1,98,8],[99,1,99,8],[100,1,100,8],[101,1,101,8],[102,1,102,8],[103,1,103,8],[93,1,93,2],[93,4,93,8],[94,1,94,8],[95,1,95,8],[96,1,96,8],[97,1,97,8],[112,1,112,2],[113,1,113,2],[114,1,114,2],[115,1,115,2],[116,1,116,2],[117,1,117,2],[104,1,104,8],[105,1,105,8],[106,1,106,3],[106,4,106,8],[107,1,107,2],[107,4,118,8],[108,1,108,3],[109,1,109,2],[110,1,110,2],[111,1,111,2],[122,1,122,8],[123,1,123,2],[123,3,123,8],[124,1,124,2],[124,3,124,8],[126,1,126,7],[118,1,118,2],[119,1,119,8],[120,1,120,2],[120,4,120,8],[121,1,121,2],[121,4,121,8],[137,1,137,8],[138,1,140,8],[141,1,141,8],[142,1,144,8],[145,1,145,8],[146,1,148,8],[127,1,127,8],[128,1,129,8],[130,1,130,8],[131,1,132,8],[133,1,133,8],[134,1,136,8],[157,1,157,2],[158,1,158,2],[159,1,159,2],[160,1,160,2],[161,1,161,2],[162,1,162,2],[149,1,149,8],[150,1,150,3],[150,4,150,8],[151,1,151,2],[151,4,162,8],[152,1,152,3],[153,1,153,2],[154,1,154,2],[155,1,155,2],[156,1,156,2],[167,1,167,2],[167,3,167,8],[168,1,168,2],[168,3,168,8],[163,1,163,8],[164,1,164,2],[164,4,164,8],[165,1,165,2],[165,4,165,8],[166,1,166,8]]}
[]
[null,"1. Informasjon om kommunen "]
[null,"1.1. Navn på kommunen"]
[null,"1.2. Kontaktperson"]
[null,"1.3. E-post"]
[null,"1.4. Telefon"]
[]
[null,"Rapportering fra kommunen til Fylkesmannen"]
[null," - Kap761, post 68 \" Kommunalt kompetanse- og innovasjonstilskudd\""]
[null," - Kap761, post 78 \" Nasjonalt velferdsteknologiprogram - innføring av velferdsteknologiske løsninger\""]
[]
[null,"2. Kompetansetiltak (grunn-, videre- og etterutdanning)"]
[null,"2.1. Videregående skole, fag- og yrkesopplæring innen helse (fagbrev)"]
[null,"Utdanningstype","Måloppnåelse (antall ansatte)",null,"Økonomirapportering",null,null,null,"Merknader\n(nærmere om hvilken annen utdanning)"]
[null,null,"Fullført utdanning\n","Samlet antall fullførte og under utdanning ","Søkt beløp","Innvilget beløp ","Ubrukt \nønkes overført","Ubrukt\nbetales tilbake"]
[null,"a. Helsefagarbeider",0,0,0,0,0,0]
[null,"b. Annen utdanning på videregående skolenivå",0,0,0,0,0,0]
[null,"Sum :",{"$f":"SUM(C16:C17)","v":0},{"$f":"SUM(D16:D17)","v":0},{"$f":"SUM(E16:E17)","v":0},{"$f":"SUM(F16:F17)","v":0},{"$f":"SUM(G16:G17)","v":0},0]
[null,"2.2. Fagskoleutdanning"]
[null,"Utdanningstype","Måloppnåelse (antall ansatte)",null,"Økonomirapportering",null,null,null,"Merknader\n(nærmere om hvilken annen utdanning)"]
[null,null,"Fullført utdanning\n","Samlet antall fullførte og under utdanning","Søkt beløp","Innvilget beløp ","Ubrukt \nønkes overført","Ubrukt\nbetales tilbake"]
[null,"a. Psykisk helsearbeid og rusarbeid",0,0,0,0,0,0]
[null,"b. Eldreomsorg/demens",0,0,0,0,0,0]
[null,"c. Habilitering/rehabilitering",0,0,0,0,0,0]
[null,"d. Kreftomsorg/lindrende behandling",0,0,0,0,0,0]
[null,"e. Veiledning",0,0,0,0,0,0]
[null,"f. Annen fagskoleutdanning",0,0,0,0,0,0]
[null,"Sum :",{"$f":"SUM(C22:C27)","v":0},{"$f":"SUM(D22:D27)","v":0},{"$f":"SUM(E22:E27)","v":0},{"$f":"SUM(F22:F27)","v":0},0,0]
[null,"  2.3. Bachelorutdanning helse- og sosialfag"]
[null,"Utdanningstype","Måloppnåelse (antall ansatte)",null,"Økonomirapportering",null,null,null,"Merknader\n(nærmere om hvilken annen utdanning)"]
[null,null,"Fullført utdanning\n","Samlet antall fullførte og under utdanning","Søkt beløp","Innvilget beløp ","Ubrukt \nønkes overført","Ubrukt\nbetales tilbake"]
[null,"a. Sykepleie",0,0,0,0,0,0]
[null,"b. Vernepleie",0,0,0,0,0,0]
[null,"c. Fysioterapi",0,0,0,0,0,0]
[null,"d. Ergoterapi",0,0,0,0,0,0]
[null,"e. Sosial arbeid (sosionom)",0,0,0,0,0,0]
[null,"f. Barnevernspedagogikk",0,0,0,0,0,0]
[null,"g. Annen bachelorutdanning",0,0,0,0,0,0]
[null,"Sum :",{"$f":"SUM(C32:C38)","v":0},{"$f":"SUM(D32:D38)","v":0},{"$f":"SUM(E32:E38)","v":0},{"$f":"SUM(F32:F38)","v":0},0,0]
[null,"  2.4. Videreutdanning og mastergradutdanning (påbygg bachelorutdanning)"]
[null,"Utdanningstype","Måloppnåelse (antall ansatte)",null,"Økonomirapportering",null,null,null,"Merknader\n(nærmere om hvilken annen utdanning)"]
[null,null,"Fullført utdanning\n","Samlet antall fullførte og under utdanning","Søkt beløp","Innvilget beløp ","Ubrukt \nønkes overført","Ubrukt\nbetales tilbake"]
[null,"a. Psykisk helsearbeid og rusarbeid",0,0,0,0,0,0]
[null,"b. Tverrfaglig videreutdanning \n     i psykososialt arbeid med barn og unge",0,0,0,0,0,0]
[null,"c. Eldreomsorg/demens",0,0,0,0,0,0]
[null,"d. Kreftomsorg/lindrende pleie",0,0,0,0,0,0]
[null,"e. Habilitering/rehabilitering",0,0,0,0,0,0]
[null,"f. Veiledning",0,0,0,0,0,0]
[null,"g. Lederutdanning",0,0,0,0,0,0]
[null,"h. Annen videreutdanning og/eller masterutdanning",0,0,0,0,0,0]
[null,"Sum :",{"$f":"SUM(C43:C50)","v":0},{"$f":"SUM(D43:D50)","v":0},{"$f":"SUM(E43:E50)","v":0},{"$f":"SUM(F43:F50)","v":0},0,0]
[null,"2.5. ABC-opplæring"]
[null,"Opplæringstype","Måloppnåelse (antall ansatte)",null,"Økonomirapportering",null,null,null,"Merknader"]
[null,null,"Fullført opplæring ","Samlet antall fullførte og under opplæring ","Søkt beløp","Innvilget beløp ","Ubrukt \nønkes overført","Ubrukt\nbetales tilbake"]
[null,"a. Demensomsorgens ABC",0,0,0,0,0,0]
[null,"b. Eldreomsorgens ABC",0,0,0,0,0,0]
[null,"c. Mitt livs ABC",0,0,0,0,0,0]
[null,"d. Velferdsteknologien ABC",0,0,0,0,0,0]
[null,"Sum :",{"$f":"SUM(C55:C58)","v":0},{"$f":"SUM(D55:D58)","v":0},{"$f":"SUM(E55:E58)","v":0},{"$f":"SUM(F55:F58)","v":0},{"$f":"SUM(G55:G58)","v":0},{"$f":"SUM(H55:H58)","v":0}]
[null,"2.6. Annen internopplæring / korte etterutdanninger /kurs mv."]
[null,"Opplæringstype","Måloppnåelse (antall ansatte)",null,"Økonomirapportering",null,null,null,"Merknader\n(nærmere om hvilken annen opplæring)"]
[null,null,"Fullført utdanning\n/ opplæring ","Samlet antall fullførte og under utdanning / opplæring ","Søkt beløp","Innvilget beløp ","Ubrukt \nønkes overført","Ubrukt\nbetales tilbake"]
[null,"a.  Innen psykisk helsearbeid og rusfeltet",0,0,0,0,0,0]
[null,"b. Innen eldreomsorg og demensfeltet",0,0,0,0,0,0]
[null,"c. Annet",0,0,0,0,0,0]
[null,"Sum :",{"$f":"SUM(C63:C65)","v":0},0,{"$f":"SUM(E63:E65)","v":0},{"$f":"SUM(F63:F65)","v":0},{"$f":"SUM(G63:G65)","v":0},{"$f":"SUM(H63:H65)","v":0}]
[null,"Total sum (inkludert 2.7.) :",{"$f":"C18+C28+C39+C51+C59+C66","v":0},{"$f":"D18+D28+D39+D51+D59+D66","v":0},{"$f":"E18+E28+E39+E51+E59+E66+C69","v":0},{"$f":"F18+F28+F39+F51+F59+F66+C70","v":0},{"$f":"G18+G28+G39+G51+G59+G66+C71","v":0},{"$f":"H18+H28+H39+H51+H59+H66+C72","v":0}]
[null,"2.7. Andre kompetansehevende tiltak"]
[null,"a. Søkt beløp"]
[null,"b. Innvilget beløp "]
[null,"c. Ubrukt, ønkes overført"]
[null,"d. Ubrukt, betales tilbake"]
[null,"e. Beskrivelse av tiltaket og hva tilskuddet har gått til."]
[]
[]
[null,"3. Opplæringstilskudd BPA (brukerstyrt personlig assistanse)"]
[null,null,"Måloppnåelse (antall personer)",null,null,"Økonomirapportering"]
[null,null,"Søkt ","Innvilget","Gjennomført","Søkt beløp","Utbetalt beløp","Ubrukt \nønkes overført","Ubrukt\nbetales tilbake"]
[null,"a. Arbeidsledere som har fått tilskudd til opplæring",0,0,0,0,0,0,0]
[null,"b. Saksbehandlere som har fått tilskudd til opplæring",0,0,0,0,0,0,0]
[null,"c. Assistenter som har fått tilskudd til opplæring",0,0,0,0,0,0,0]
[null,"Sum :",{"$f":"SUM(C79:C81)","v":0},{"$f":"SUM(D79:D81)","v":0},0,0,0,0,0]
[]
[null,"4. Innovasjonsprosjekter"]
[null,"4.1. Tema for prosjektene det rapporteres på"]
[null,"Tema ",null,"Antall prosjekter","Tittel på prosjekt/merknader"]
[null,"a. Velferdsteknologiske løsninger"]
[null,"b. Samspill med pårørende og frivillige i omsorgssektoren generelt og  \n    demensomsorgen spesielt."]
[null,"c. Legemiddelhåndtering"]
[null,"d. Ernæring"]
[null,"e. Fritidsaktivitet med assistanse"]
[null,"f. Kulturopplevelser"]
[null,"g. Annet"]
[null,"Sum :",null,{"$f":"SUM(D87:D93)","v":0}]
[null,"4.2. Rapportering på kriterier for måloppnåelse \n * Forskningsrapporter og annen dokumentasjon fra innovasjonsprosjekter under denne tilskuddsordningen skal i tillegg sendes Senter for Omsorgsforskning, \n     postmottak@hig.no, Høgskolen i Gjøvik, Postboks 191, 2802 Gjøvik."]
[null,"a. Beskrivelse av brukernes erfaringer og opplevd nytte"]
[]
[null,"b. I hvilken grad har behovet for kompenserende tjenester blitt redusert/vise til redusert behov for kompenserende tjenester?"]
[]
[null,"c. I hvilken grad har nye løsninger gitt kvalitative og økonomiske gevinster for brukerne og kommunen?"]
[]
[null,"d. I hvilken grad har tiltaket overføringsverdi til andre kommuner og betydning for praksis?"]
[]
[null,"e. I hvilken grad og hvordan har innovasjonsmetodikk blitt benyttet i prosjektet?"]
[]
[null,"4.3. Regnskap for innovasjonsprosjekt"]
[null,"Inntektekter",null,null,"Merknader"]
[null,"a. Tilskuddsbeløp fra Fylkesmannen",null,0]
[null,"Utgifter"]
[null,"b. Lønnsutgifter med sosiale utgifter ",null,0]
[null,"c. Reiseutgifter, arrangement, møter, konferanser",null,0]
[null,"d. Konsulenttjenester",null,0]
[null,"e. Trykking, publikasjoner, kunngjøringer, utsending og distribusjonskostnader ",null,0]
[null,"f. Investeringer/ inventar/ utstyr",null,0]
[null,"g. Driftsutgifter, forbruksmateriell og kontortjenester inkludert lokaler og energi",null,0]
[null,"h. Andre utgifter (spesifiser i merknadsteltet)",null,0]
[null,"Sum utgifter",null,{"$f":"SUM(D110:D116)","v":0}]
[null,"Ubrukt tilskudd på rapporteringstidspunktet",null,{"$f":"SUM(D108-D117)","v":0}]
[null,"Søkes overført",null,0]
[null,"4.4. Informasjon om inntekter fra andre kilder"]
[null,"a. Inntekter fra andre kilder/statlige prosjekt",null,0]
[null,"b. Egenfinansiering",null,0]
[null,"4.5. Revisoruttalelse"]
[null,"a. Revisoruttalelse (velg ett alternativ fra nedtrekksliste i neste rute)"]
[null,"b. Kommentarer til revisoruttalelse"]
[]
[null,"5. Nasjonalt velferdsteknologiprogram - innføring av velferdsteknologiske løsninger\n    * Rapportering for punktene ( fra 5.1. til 5.6.) kan sendes som eget vedlegg"]
[null,"5.1. Følges oppgitt fremdriftsplan i prosjektet?  (Inntil 300 ord)"]
[]
[]
[null,"5.2. Hvem er samarbeidspartnere i prosjektet og hvordan er status med tanke på samarbeid? (Inntil 300 ord)"]
[]
[]
[null,"5.3. Hva er status for implementering av velferdsteknologi i kommunene etter fastsatte måltall, hvilke tjenesteinnovasjoner som er gjennomført og   hvilke endringer dette har resultert i? \n      (Inntil 600 ord)"]
[]
[]
[]
[null,"5.4. Hva er forventede og realiserte gevinster av prosjektet for kommunen (spart tid, unngåtte kostnader, økt kvalitet)?  (Inntil 600 ord)"]
[]
[]
[]
[null,"5.5. Hvordan er kommunens planer for skalering av løsningene og overgang til løpende driftsfase, herunder planer for investering og drift av løsninger? (Inntil 600 ord)"]
[]
[]
[]
[null,"5.6. Hvordan er brukermedvirkning sikret i prosjektet? Angi på hvilken måte pasienter, brukere og pårørende er involvert? Hva er resultater for brukerne?(Inntil 600 ord)"]
[]
[]
[]
[null,"5.7. Regnskap for nasjonalt velferdsteknologiprogram - innføring av velferdsteknologiske løsninger"]
[null,"Inntektekter",null,null,"Merknader"]
[null,"a. Tilskuddsbeløp fra Fylkesmannen",null,0]
[null,"Utgifter"]
[null,"b. Lønnsutgifter med sosiale utgifter ",null,0]
[null,"c. Reiseutgifter, arrangement, møter, konferanser",null,0]
[null,"d. Konsulenttjenester",null,0]
[null,"e. Trykking, publikasjoner, kunngjøringer, utsending og distribusjonskostnader ",null,0]
[null,"f. Investeringer/ inventar/ utstyr",null,0]
[null,"g. Driftsutgifter, forbruksmateriell og kontortjenester inkludert lokaler og energi",null,0]
[null,"h. Andre utgifter (spesifiser i merknadsteltet)",null,0]
[null,"Sum utgifter",null,{"$f":"SUM(D154:D160)","v":0}]
[null,"Ubrukt tilskudd på rapporteringstidspunktet",null,{"$f":"SUM(D152-D161)","v":0}]
[null,"Søkes overført",null,0]
[null,"5.8. Informasjon om inntekter fra andre kilder"]
[null,"a. Inntekter fra andre kilder/statlige prosjekt",null,0]
[null,"b. Egenfinansiering",null,0]
[null,"5.9. Revisoruttalelse"]
[null,"a. Revisoruttalelse (velg ett alternativ fra nedtrekksliste i neste rute)"]
[null,"b. Kommentarer til revisoruttalelse"]
[]
[]
[null,null,null,"Dette er styringsarket. Det kan skjules."]
[null,null,null,"Revisoruttalelse"]
[null,null,null,"Revisoruttalelse foreligger uten merknader"]
[null,null,null,"Revisoruttalelse foreligger med merknader"]
[null,null,null,"I tilskuddsbrevet er det ikke krav til revisoruttalelse"]
[null,null,null,"Revisoruttalelse mangler (rapportering ufullstendig)"]

{"sheet":"PorsangerPorsánguPorsanki","index":10,"n_rows":177,"n_cols":9,"rows_kept":177,"cut":false,"hidden":false,"merged":[[12,1,12,8],[13,1,14,1],[13,2,13,3],[13,4,13,7],[13,8,14,8],[15,8,17,8],[1,1,1,8],[2,2,2,8],[3,2,3,8],[4,2,4,8],[5,2,5,8],[11,1,11,8],[28,1,28,8],[29,1,30,1],[29,2,29,3],[29,4,29,7],[29,8,30,8],[31,8,38,8],[18,1,18,8],[19,1,20,1],[19,2,19,3],[19,4,19,7],[19,8,20,8],[21,8,27,8],[51,1,51,8],[52,1,53,1],[52,2,52,3],[52,4,52,7],[52,8,53,8],[54,8,58,8],[39,1,39,8],[40,1,41,1],[40,2,40,3],[40,4,40,7],[40,8,41,8],[42,8,50,8],[67,1,67,8],[68,2,68,7],[68,8,71,8],[69,2,69,7],[70,2,70,7],[71,2,71,7],[59,1,59,8],[60,1,61,1],[60,2,60,3],[60,4,60,7],[60,8,61,8],[62,8,66,8],[83,1,83,8],[84,1,84,8],[85,1,85,2],[85,4,85,8],[86,1,86,2],[86,4,86,8],[72,1,72,8],[73,1,73,8],[75,1,75,8],[76,1,77,1],[76,2,76,4],[76,5,76,8],[90,1,90,2],[90,4,90,8],[91,1,91,2],[91,4,91,8],[92,1,92,2],[92,4,92,8],[87,1,87,2],[87,4,87,8],[88,1,88,2],[88,4,88,8],[89,1,89,2],[89,4,89,8],[98,1,98,8],[99,1,99,8],[100,1,100,8],[101,1,101,8],[102,1,102,8],[103,1,103,8],[93,1,93,2],[93,4,93,8],[94,1,94,8],[95,1,95,8],[96,1,96,8],[97,1,97,8],[112,1,112,2],[113,1,113,2],[114,1,114,2],[115,1,115,2],[116,1,116,2],[117,1,117,2],[104,1,104,8],[105,1,105,8],[106,1,106,3],[106,4,106,8],[107,1,107,2],[107,4,118,8],[108,1,108,3],[109,1,109,2],[110,1,110,2],[111,1,111,2],[122,1,122,8],[123,1,123,2],[123,3,123,8],[124,1,124,2],[124,3,124,8],[126,1,126,7],[118,1,118,2],[119,1,119,8],[120,1,120,2],[120,4,120,8],[121,1,121,2],[121,4,121,8],[137,1,137,8],[138,1,140,8],[141,1,141,8],[142,1,144,8],[145,1,145,8],[146,1,148,8],[127,1,127,8],[128,1,129,8],[130,1,130,8],[131,1,132,8],[133,1,133,8],[134,1,136,8],[157,1,157,2],[158,1,158,2],[159,1,159,2],[160,1,160,2],[161,1,161,2],[162,1,162,2],[149,1,149,8],[150,1,150,3],[150,4,150,8],[151,1,151,2],[151,4,162,8],[152,1,152,3],[153,1,153,2],[154,1,154,2],[155,1,155,2],[156,1,156,2],[167,1,167,2],[167,3,167,8],[168,1,168,2],[168,3,168,8],[163,1,163,8],[164,1,164,2],[164,4,164,8],[165,1,165,2],[165,4,165,8],[166,1,166,8]]}
[]
[null,"1. Informasjon om kommunen "]
[null,"1.1. Navn på kommunen"]
[null,"1.2. Kontaktperson"]
[null,"1.3. E-post"]
[null,"1.4. Telefon"]
[]
[null,"Rapportering fra kommunen til Fylkesmannen"]
[null," - Kap761, post 68 \" Kommunalt kompetanse- og innovasjonstilskudd\""]
[null," - Kap761, post 78 \" Nasjonalt velferdsteknologiprogram - innføring av velferdsteknologiske løsninger\""]
[]
[null,"2. Kompetansetiltak (grunn-, videre- og etterutdanning)"]
[null,"2.1. Videregående skole, fag- og yrkesopplæring innen helse (fagbrev)"]
[null,"Utdanningstype","Måloppnåelse (antall ansatte)",null,"Økonomirapportering",null,null,null,"Merknader\n(nærmere om hvilken annen utdanning)"]
[null,null,"Fullført utdanning\n","Samlet antall fullførte og under utdanning ","Søkt beløp","Innvilget beløp ","Ubrukt \nønkes overført","Ubrukt\nbetales tilbake"]
[null,"a. Helsefagarbeider",0,0,0,0,0,0]
[null,"b. Annen utdanning på videregående skolenivå",0,0,0,0,0,0]
[null,"Sum :",{"$f":"SUM(C16:C17)","v":0},{"$f":"SUM(D16:D17)","v":0},{"$f":"SUM(E16:E17)","v":0},{"$f":"SUM(F16:F17)","v":0},{"$f":"SUM(G16:G17)","v":0},0]
[null,"2.2. Fagskoleutdanning"]
[null,"Utdanningstype","Måloppnåelse (antall ansatte)",null,"Økonomirapportering",null,null,null,"Merknader\n(nærmere om hvilken annen utdanning)"]
[null,null,"Fullført utdanning\n","Samlet antall fullførte og under utdanning","Søkt beløp","Innvilget beløp ","Ubrukt \nønkes overført","Ubrukt\nbetales tilbake"]
[null,"a. Psykisk helsearbeid og rusarbeid",0,0,0,0,0,0]
[null,"b. Eldreomsorg/demens",0,0,0,0,0,0]
[null,"c. Habilitering/rehabilitering",0,0,0,0,0,0]
[null,"d. Kreftomsorg/lindrende behandling",0,0,0,0,0,0]
[null,"e. Veiledning",0,0,0,0,0,0]
[null,"f. Annen fagskoleutdanning",0,0,0,0,0,0]
[null,"Sum :",{"$f":"SUM(C22:C27)","v":0},{"$f":"SUM(D22:D27)","v":0},{"$f":"SUM(E22:E27)","v":0},{"$f":"SUM(F22:F27)","v":0},0,0]
[null,"  2.3. Bachelorutdanning helse- og sosialfag"]
[null,"Utdanningstype","Måloppnåelse (antall ansatte)",null,"Økonomirapportering",null,null,null,"Merknader\n(nærmere om hvilken annen utdanning)"]
[null,null,"Fullført utdanning\n","Samlet antall fullførte og under utdanning","Søkt beløp","Innvilget beløp ","Ubrukt \nønkes overført","Ubrukt\nbetales tilbake"]
[null,"a. Sykepleie",0,0,0,0,0,0]
[null,"b. Vernepleie",0,0,0,0,0,0]
[null,"c. Fysioterapi",0,0,0,0,0,0]
[null,"d. Ergoterapi",0,0,0,0,0,0]
[null,"e. Sosial arbeid (sosionom)",0,0,0,0,0,0]
[null,"f. Barnevernspedagogikk",0,0,0,0,0,0]
[null,"g. Annen bachelorutdanning",0,0,0,0,0,0]
[null,"Sum :",{"$f":"SUM(C32:C38)","v":0},{"$f":"SUM(D32:D38)","v":0},{"$f":"SUM(E32:E38)","v":0},{"$f":"SUM(F32:F38)","v":0},0,0]
[null,"  2.4. Videreutdanning og mastergradutdanning (påbygg bachelorutdanning)"]
[null,"Utdanningstype","Måloppnåelse (antall ansatte)",null,"Økonomirapportering",null,null,null,"Merknader\n(nærmere om hvilken annen utdanning)"]
[null,null,"Fullført utdanning\n","Samlet antall fullførte og under utdanning","Søkt beløp","Innvilget beløp ","Ubrukt \nønkes overført","Ubrukt\nbetales tilbake"]
[null,"a. Psykisk helsearbeid og rusarbeid",0,0,0,0,0,0]
[null,"b. Tverrfaglig videreutdanning \n     i psykososialt arbeid med barn og unge",0,0,0,0,0,0]
[null,"c. Eldreomsorg/demens",0,0,0,0,0,0]
[null,"d. Kreftomsorg/lindrende pleie",0,0,0,0,0,0]
[null,"e. Habilitering/rehabilitering",0,0,0,0,0,0]
[null,"f. Veiledning",0,0,0,0,0,0]
[null,"g. Lederutdanning",0,0,0,0,0,0]
[null,"h. Annen videreutdanning og/eller masterutdanning",0,0,0,0,0,0]
[null,"Sum :",{"$f":"SUM(C43:C50)","v":0},{"$f":"SUM(D43:D50)","v":0},{"$f":"SUM(E43:E50)","v":0},{"$f":"SUM(F43:F50)","v":0},0,0]
[null,"2.5. ABC-opplæring"]
[null,"Opplæringstype","Måloppnåelse (antall ansatte)",null,"Økonomirapportering",null,null,null,"Merknader"]
[null,null,"Fullført opplæring ","Samlet antall fullførte og under opplæring ","Søkt beløp","Innvilget beløp ","Ubrukt \nønkes overført","Ubrukt\nbetales tilbake"]
[null,"a. Demensomsorgens ABC",0,0,0,0,0,0]
[null,"b. Eldreomsorgens ABC",0,0,0,0,0,0]
[null,"c. Mitt livs ABC",0,0,0,0,0,0]
[null,"d. Velferdsteknologien ABC",0,0,0,0,0,0]
[null,"Sum :",{"$f":"SUM(C55:C58)","v":0},{"$f":"SUM(D55:D58)","v":0},{"$f":"SUM(E55:E58)","v":0},{"$f":"SUM(F55:F58)","v":0},{"$f":"SUM(G55:G58)","v":0},{"$f":"SUM(H55:H58)","v":0}]
[null,"2.6. Annen internopplæring / korte etterutdanninger /kurs mv."]
[null,"Opplæringstype","Måloppnåelse (antall ansatte)",null,"Økonomirapportering",null,null,null,"Merknader\n(nærmere om hvilken annen opplæring)"]
[null,null,"Fullført utdanning\n/ opplæring ","Samlet antall fullførte og under utdanning / opplæring ","Søkt beløp","Innvilget beløp ","Ubrukt \nønkes overført","Ubrukt\nbetales tilbake"]
[null,"a.  Innen psykisk helsearbeid og rusfeltet",0,0,0,0,0,0]
[null,"b. Innen eldreomsorg og demensfeltet",0,0,0,0,0,0]
[null,"c. Annet",0,0,0,0,0,0]
[null,"Sum :",{"$f":"SUM(C63:C65)","v":0},0,{"$f":"SUM(E63:E65)","v":0},{"$f":"SUM(F63:F65)","v":0},{"$f":"SUM(G63:G65)","v":0},{"$f":"SUM(H63:H65)","v":0}]
[null,"Total sum (inkludert 2.7.) :",{"$f":"C18+C28+C39+C51+C59+C66","v":0},{"$f":"D18+D28+D39+D51+D59+D66","v":0},{"$f":"E18+E28+E39+E51+E59+E66+C69","v":0},{"$f":"F18+F28+F39+F51+F59+F66+C70","v":0},{"$f":"G18+G28+G39+G51+G59+G66+C71","v":0},{"$f":"H18+H28+H39+H51+H59+H66+C72","v":0}]
[null,"2.7. Andre kompetansehevende tiltak"]
[null,"a. Søkt beløp"]
[null,"b. Innvilget beløp "]
[null,"c. Ubrukt, ønkes overført"]
[null,"d. Ubrukt, betales tilbake"]
[null,"e. Beskrivelse av tiltaket og hva tilskuddet har gått til."]
[]
[]
[null,"3. Opplæringstilskudd BPA (brukerstyrt personlig assistanse)"]
[null,null,"Måloppnåelse (antall personer)",null,null,"Økonomirapportering"]
[null,null,"Søkt ","Innvilget","Gjennomført","Søkt beløp","Utbetalt beløp","Ubrukt \nønkes overført","Ubrukt\nbetales tilbake"]
[null,"a. Arbeidsledere som har fått tilskudd til opplæring",0,0,0,0,0,0,0]
[null,"b. Saksbehandlere som har fått tilskudd til opplæring",0,0,0,0,0,0,0]
[null,"c. Assistenter som har fått tilskudd til opplæring",0,0,0,0,0,0,0]
[null,"Sum :",{"$f":"SUM(C79:C81)","v":0},{"$f":"SUM(D79:D81)","v":0},0,0,0,0,0]
[]
[null,"4. Innovasjonsprosjekter"]
[null,"4.1. Tema for prosjektene det rapporteres på"]
[null,"Tema ",null,"Antall prosjekter","Tittel på prosjekt/merknader"]
[null,"a. Velferdsteknologiske løsninger"]
[null,"b. Samspill med pårørende og frivillige i omsorgssektoren generelt og  \n    demensomsorgen spesielt."]
[null,"c. Legemiddelhåndtering"]
[null,"d. Ernæring"]
[null,"e. Fritidsaktivitet med assistanse"]
[null,"f. Kulturopplevelser"]
[null,"g. Annet"]
[null,"Sum :",null,{"$f":"SUM(D87:D93)","v":0}]
[null,"4.2. Rapportering på kriterier for måloppnåelse \n * Forskningsrapporter og annen dokumentasjon fra innovasjonsprosjekter under denne tilskuddsordningen skal i tillegg sendes Senter for Omsorgsforskning, \n     postmottak@hig.no, Høgskolen i Gjøvik, Postboks 191, 2802 Gjøvik."]
[null,"a. Beskrivelse av brukernes erfaringer og opplevd nytte"]
[]
[null,"b. I hvilken grad har behovet for kompenserende tjenester blitt redusert/vise til redusert behov for kompenserende tjenester?"]
[]
[null,"c. I hvilken grad har nye løsninger gitt kvalitative og økonomiske gevinster for brukerne og kommunen?"]
[]
[null,"d. I hvilken grad har tiltaket overføringsverdi til andre kommuner og betydning for praksis?"]
[]
[null,"e. I hvilken grad og hvordan har innovasjonsmetodikk blitt benyttet i prosjektet?"]
[]
[null,"4.3. Regnskap for innovasjonsprosjekt"]
[null,"Inntektekter",null,null,"Merknader"]
[null,"a. Tilskuddsbeløp fra Fylkesmannen",null,0]
[null,"Utgifter"]
[null,"b. Lønnsutgifter med sosiale utgifter ",null,0]
[null,"c. Reiseutgifter, arrangement, møter, konferanser",null,0]
[null,"d. Konsulenttjenester",null,0]
[null,"e. Trykking, publikasjoner, kunngjøringer, utsending og distribusjonskostnader ",null,0]
[null,"f. Investeringer/ inventar/ utstyr",null,0]
[null,"g. Driftsutgifter, forbruksmateriell og kontortjenester inkludert lokaler og energi",null,0]
[null,"h. Andre utgifter (spesifiser i merknadsteltet)",null,0]
[null,"Sum utgifter",null,{"$f":"SUM(D110:D116)","v":0}]
[null,"Ubrukt tilskudd på rapporteringstidspunktet",null,{"$f":"SUM(D108-D117)","v":0}]
[null,"Søkes overført",null,0]
[null,"4.4. Informasjon om inntekter fra andre kilder"]
[null,"a. Inntekter fra andre kilder/statlige prosjekt",null,0]
[null,"b. Egenfinansiering",null,0]
[null,"4.5. Revisoruttalelse"]
[null,"a. Revisoruttalelse (velg ett alternativ fra nedtrekksliste i neste rute)"]
[null,"b. Kommentarer til revisoruttalelse"]
[]
[null,"5. Nasjonalt velferdsteknologiprogram - innføring av velferdsteknologiske løsninger\n    * Rapportering for punktene ( fra 5.1. til 5.6.) kan sendes som eget vedlegg"]
[null,"5.1. Følges oppgitt fremdriftsplan i prosjektet?  (Inntil 300 ord)"]
[]
[]
[null,"5.2. Hvem er samarbeidspartnere i prosjektet og hvordan er status med tanke på samarbeid? (Inntil 300 ord)"]
[]
[]
[null,"5.3. Hva er status for implementering av velferdsteknologi i kommunene etter fastsatte måltall, hvilke tjenesteinnovasjoner som er gjennomført og   hvilke endringer dette har resultert i? \n      (Inntil 600 ord)"]
[]
[]
[]
[null,"5.4. Hva er forventede og realiserte gevinster av prosjektet for kommunen (spart tid, unngåtte kostnader, økt kvalitet)?  (Inntil 600 ord)"]
[]
[]
[]
[null,"5.5. Hvordan er kommunens planer for skalering av løsningene og overgang til løpende driftsfase, herunder planer for investering og drift av løsninger? (Inntil 600 ord)"]
[]
[]
[]
[null,"5.6. Hvordan er brukermedvirkning sikret i prosjektet? Angi på hvilken måte pasienter, brukere og pårørende er involvert? Hva er resultater for brukerne?(Inntil 600 ord)"]
[]
[]
[]
[null,"5.7. Regnskap for nasjonalt velferdsteknologiprogram - innføring av velferdsteknologiske løsninger"]
[null,"Inntektekter",null,null,"Merknader"]
[null,"a. Tilskuddsbeløp fra Fylkesmannen",null,0]
[null,"Utgifter"]
[null,"b. Lønnsutgifter med sosiale utgifter ",null,0]
[null,"c. Reiseutgifter, arrangement, møter, konferanser",null,0]
[null,"d. Konsulenttjenester",null,0]
[null,"e. Trykking, publikasjoner, kunngjøringer, utsending og distribusjonskostnader ",null,0]
[null,"f. Investeringer/ inventar/ utstyr",null,0]
[null,"g. Driftsutgifter, forbruksmateriell og kontortjenester inkludert lokaler og energi",null,0]
[null,"h. Andre utgifter (spesifiser i merknadsteltet)",null,0]
[null,"Sum utgifter",null,{"$f":"SUM(D154:D160)","v":0}]
[null,"Ubrukt tilskudd på rapporteringstidspunktet",null,{"$f":"SUM(D152-D161)","v":0}]
[null,"Søkes overført",null,0]
[null,"5.8. Informasjon om inntekter fra andre kilder"]
[null,"a. Inntekter fra andre kilder/statlige prosjekt",null,0]
[null,"b. Egenfinansiering",null,0]
[null,"5.9. Revisoruttalelse"]
[null,"a. Revisoruttalelse (velg ett alternativ fra nedtrekksliste i neste rute)"]
[null,"b. Kommentarer til revisoruttalelse"]
[]
[]
[null,null,null,"Dette er styringsarket. Det kan skjules."]
[null,null,null,"Revisoruttalelse"]
[null,null,null,"Revisoruttalelse foreligger uten merknader"]
[null,null,null,"Revisoruttalelse foreligger med merknader"]
[null,null,null,"I tilskuddsbrevet er det ikke krav til revisoruttalelse"]
[null,null,null,"Revisoruttalelse mangler (rapportering ufullstendig)"]

{"sheet":"Nordkapp","index":11,"n_rows":177,"n_cols":9,"rows_kept":177,"cut":false,"hidden":false,"merged":[[12,1,12,8],[13,1,14,1],[13,2,13,3],[13,4,13,7],[13,8,14,8],[15,8,17,8],[1,1,1,8],[2,2,2,8],[3,2,3,8],[4,2,4,8],[5,2,5,8],[11,1,11,8],[28,1,28,8],[29,1,30,1],[29,2,29,3],[29,4,29,7],[29,8,30,8],[31,8,38,8],[18,1,18,8],[19,1,20,1],[19,2,19,3],[19,4,19,7],[19,8,20,8],[21,8,27,8],[51,1,51,8],[52,1,53,1],[52,2,52,3],[52,4,52,7],[52,8,53,8],[54,8,58,8],[39,1,39,8],[40,1,41,1],[40,2,40,3],[40,4,40,7],[40,8,41,8],[42,8,50,8],[67,1,67,8],[68,2,68,7],[68,8,71,8],[69,2,69,7],[70,2,70,7],[71,2,71,7],[59,1,59,8],[60,1,61,1],[60,2,60,3],[60,4,60,7],[60,8,61,8],[62,8,66,8],[83,1,83,8],[84,1,84,8],[85,1,85,2],[85,4,85,8],[86,1,86,2],[86,4,86,8],[72,1,72,8],[73,1,73,8],[75,1,75,8],[76,1,77,1],[76,2,76,4],[76,5,76,8],[90,1,90,2],[90,4,90,8],[91,1,91,2],[91,4,91,8],[92,1,92,2],[92,4,92,8],[87,1,87,2],[87,4,87,8],[88,1,88,2],[88,4,88,8],[89,1,89,2],[89,4,89,8],[98,1,98,8],[99,1,99,8],[100,1,100,8],[101,1,101,8],[102,1,102,8],[103,1,103,8],[93,1,93,2],[93,4,93,8],[94,1,94,8],[95,1,95,8],[96,1,96,8],[97,1,97,8],[112,1,112,2],[113,1,113,2],[114,1,114,2],[115,1,115,2],[116,1,116,2],[117,1,117,2],[104,1,104,8],[105,1,105,8],[106,1,106,3],[106,4,106,8],[107,1,107,2],[107,4,118,8],[108,1,108,3],[109,1,109,2],[110,1,110,2],[111,1,111,2],[122,1,122,8],[123,1,123,2],[123,3,123,8],[124,1,124,2],[124,3,124,8],[126,1,126,7],[118,1,118,2],[119,1,119,8],[120,1,120,2],[120,4,120,8],[121,1,121,2],[121,4,121,8],[137,1,137,8],[138,1,140,8],[141,1,141,8],[142,1,144,8],[145,1,145,8],[146,1,148,8],[127,1,127,8],[128,1,129,8],[130,1,130,8],[131,1,132,8],[133,1,133,8],[134,1,136,8],[157,1,157,2],[158,1,158,2],[159,1,159,2],[160,1,160,2],[161,1,161,2],[162,1,162,2],[149,1,149,8],[150,1,150,3],[150,4,150,8],[151,1,151,2],[151,4,162,8],[152,1,152,3],[153,1,153,2],[154,1,154,2],[155,1,155,2],[156,1,156,2],[167,1,167,2],[167,3,167,8],[168,1,168,2],[168,3,168,8],[163,1,163,8],[164,1,164,2],[164,4,164,8],[165,1,165,2],[165,4,165,8],[166,1,166,8]]}
[]
[null,"1. Informasjon om kommunen "]
[null,"1.1. Navn på kommunen"]
[null,"1.2. Kontaktperson"]
[null,"1.3. E-post"]
[null,"1.4. Telefon"]
[]
[null,"Rapportering fra kommunen til Fylkesmannen"]
[null," - Kap761, post 68 \" Kommunalt kompetanse- og innovasjonstilskudd\""]
[null," - Kap761, post 78 \" Nasjonalt velferdsteknologiprogram - innføring av velferdsteknologiske løsninger\""]
[]
[null,"2. Kompetansetiltak (grunn-, videre- og etterutdanning)"]
[null,"2.1. Videregående skole, fag- og yrkesopplæring innen helse (fagbrev)"]
[null,"Utdanningstype","Måloppnåelse (antall ansatte)",null,"Økonomirapportering",null,null,null,"Merknader\n(nærmere om hvilken annen utdanning)"]
[null,null,"Fullført utdanning\n","Samlet antall fullførte og under utdanning ","Søkt beløp","Innvilget beløp ","Ubrukt \nønkes overført","Ubrukt\nbetales tilbake"]
[null,"a. Helsefagarbeider",0,0,0,0,0,0]
[null,"b. Annen utdanning på videregående skolenivå",0,0,0,0,0,0]
[null,"Sum :",{"$f":"SUM(C16:C17)","v":0},{"$f":"SUM(D16:D17)","v":0},{"$f":"SUM(E16:E17)","v":0},{"$f":"SUM(F16:F17)","v":0},{"$f":"SUM(G16:G17)","v":0},0]
[null,"2.2. Fagskoleutdanning"]
[null,"Utdanningstype","Måloppnåelse (antall ansatte)",null,"Økonomirapportering",null,null,null,"Merknader\n(nærmere om hvilken annen utdanning)"]
[null,null,"Fullført utdanning\n","Samlet antall fullførte og under utdanning","Søkt beløp","Innvilget beløp ","Ubrukt \nønkes overført","Ubrukt\nbetales tilbake"]
[null,"a. Psykisk helsearbeid og rusarbeid",0,0,0,0,0,0]
[null,"b. Eldreomsorg/demens",0,0,0,0,0,0]
[null,"c. Habilitering/rehabilitering",0,0,0,0,0,0]
[null,"d. Kreftomsorg/lindrende behandling",0,0,0,0,0,0]
[null,"e. Veiledning",0,0,0,0,0,0]
[null,"f. Annen fagskoleutdanning",0,0,0,0,0,0]
[null,"Sum :",{"$f":"SUM(C22:C27)","v":0},{"$f":"SUM(D22:D27)","v":0},{"$f":"SUM(E22:E27)","v":0},{"$f":"SUM(F22:F27)","v":0},0,0]
[null,"  2.3. Bachelorutdanning helse- og sosialfag"]
[null,"Utdanningstype","Måloppnåelse (antall ansatte)",null,"Økonomirapportering",null,null,null,"Merknader\n(nærmere om hvilken annen utdanning)"]
[null,null,"Fullført utdanning\n","Samlet antall fullførte og under utdanning","Søkt beløp","Innvilget beløp ","Ubrukt \nønkes overført","Ubrukt\nbetales tilbake"]
[null,"a. Sykepleie",0,0,0,0,0,0]
[null,"b. Vernepleie",0,0,0,0,0,0]
[null,"c. Fysioterapi",0,0,0,0,0,0]
[null,"d. Ergoterapi",0,0,0,0,0,0]
[null,"e. Sosial arbeid (sosionom)",0,0,0,0,0,0]
[null,"f. Barnevernspedagogikk",0,0,0,0,0,0]
[null,"g. Annen bachelorutdanning",0,0,0,0,0,0]
[null,"Sum :",{"$f":"SUM(C32:C38)","v":0},{"$f":"SUM(D32:D38)","v":0},{"$f":"SUM(E32:E38)","v":0},{"$f":"SUM(F32:F38)","v":0},0,0]
[null,"  2.4. Videreutdanning og mastergradutdanning (påbygg bachelorutdanning)"]
[null,"Utdanningstype","Måloppnåelse (antall ansatte)",null,"Økonomirapportering",null,null,null,"Merknader\n(nærmere om hvilken annen utdanning)"]
[null,null,"Fullført utdanning\n","Samlet antall fullførte og under utdanning","Søkt beløp","Innvilget beløp ","Ubrukt \nønkes overført","Ubrukt\nbetales tilbake"]
[null,"a. Psykisk helsearbeid og rusarbeid",0,0,0,0,0,0]
[null,"b. Tverrfaglig videreutdanning \n     i psykososialt arbeid med barn og unge",0,0,0,0,0,0]
[null,"c. Eldreomsorg/demens",0,0,0,0,0,0]
[null,"d. Kreftomsorg/lindrende pleie",0,0,0,0,0,0]
[null,"e. Habilitering/rehabilitering",0,0,0,0,0,0]
[null,"f. Veiledning",0,0,0,0,0,0]
[null,"g. Lederutdanning",0,0,0,0,0,0]
[null,"h. Annen videreutdanning og/eller masterutdanning",0,0,0,0,0,0]
[null,"Sum :",{"$f":"SUM(C43:C50)","v":0},{"$f":"SUM(D43:D50)","v":0},{"$f":"SUM(E43:E50)","v":0},{"$f":"SUM(F43:F50)","v":0},0,0]
[null,"2.5. ABC-opplæring"]
[null,"Opplæringstype","Måloppnåelse (antall ansatte)",null,"Økonomirapportering",null,null,null,"Merknader"]
[null,null,"Fullført opplæring ","Samlet antall fullførte og under opplæring ","Søkt beløp","Innvilget beløp ","Ubrukt \nønkes overført","Ubrukt\nbetales tilbake"]
[null,"a. Demensomsorgens ABC",0,0,0,0,0,0]
[null,"b. Eldreomsorgens ABC",0,0,0,0,0,0]
[null,"c. Mitt livs ABC",0,0,0,0,0,0]
[null,"d. Velferdsteknologien ABC",0,0,0,0,0,0]
[null,"Sum :",{"$f":"SUM(C55:C58)","v":0},{"$f":"SUM(D55:D58)","v":0},{"$f":"SUM(E55:E58)","v":0},{"$f":"SUM(F55:F58)","v":0},{"$f":"SUM(G55:G58)","v":0},{"$f":"SUM(H55:H58)","v":0}]
[null,"2.6. Annen internopplæring / korte etterutdanninger /kurs mv."]
[null,"Opplæringstype","Måloppnåelse (antall ansatte)",null,"Økonomirapportering",null,null,null,"Merknader\n(nærmere om hvilken annen opplæring)"]
[null,null,"Fullført utdanning\n/ opplæring ","Samlet antall fullførte og under utdanning / opplæring ","Søkt beløp","Innvilget beløp ","Ubrukt \nønkes overført","Ubrukt\nbetales tilbake"]
[null,"a.  Innen psykisk helsearbeid og rusfeltet",0,0,0,0,0,0]
[null,"b. Innen eldreomsorg og demensfeltet",0,0,0,0,0,0]
[null,"c. Annet",0,0,0,0,0,0]
[null,"Sum :",{"$f":"SUM(C63:C65)","v":0},0,{"$f":"SUM(E63:E65)","v":0},{"$f":"SUM(F63:F65)","v":0},{"$f":"SUM(G63:G65)","v":0},{"$f":"SUM(H63:H65)","v":0}]
[null,"Total sum (inkludert 2.7.) :",{"$f":"C18+C28+C39+C51+C59+C66","v":0},{"$f":"D18+D28+D39+D51+D59+D66","v":0},{"$f":"E18+E28+E39+E51+E59+E66+C69","v":0},{"$f":"F18+F28+F39+F51+F59+F66+C70","v":0},{"$f":"G18+G28+G39+G51+G59+G66+C71","v":0},{"$f":"H18+H28+H39+H51+H59+H66+C72","v":0}]
[null,"2.7. Andre kompetansehevende tiltak"]
[null,"a. Søkt beløp"]
[null,"b. Innvilget beløp "]
[null,"c. Ubrukt, ønkes overført"]
[null,"d. Ubrukt, betales tilbake"]
[null,"e. Beskrivelse av tiltaket og hva tilskuddet har gått til."]
[]
[]
[null,"3. Opplæringstilskudd BPA (brukerstyrt personlig assistanse)"]
[null,null,"Måloppnåelse (antall personer)",null,null,"Økonomirapportering"]
[null,null,"Søkt ","Innvilget","Gjennomført","Søkt beløp","Utbetalt beløp","Ubrukt \nønkes overført","Ubrukt\nbetales tilbake"]
[null,"a. Arbeidsledere som har fått tilskudd til opplæring",0,0,0,0,0,0,0]
[null,"b. Saksbehandlere som har fått tilskudd til opplæring",0,0,0,0,0,0,0]
[null,"c. Assistenter som har fått tilskudd til opplæring",0,0,0,0,0,0,0]
[null,"Sum :",{"$f":"SUM(C79:C81)","v":0},{"$f":"SUM(D79:D81)","v":0},0,0,0,0,0]
[]
[null,"4. Innovasjonsprosjekter"]
[null,"4.1. Tema for prosjektene det rapporteres på"]
[null,"Tema ",null,"Antall prosjekter","Tittel på prosjekt/merknader"]
[null,"a. Velferdsteknologiske løsninger"]
[null,"b. Samspill med pårørende og frivillige i omsorgssektoren generelt og  \n    demensomsorgen spesielt."]
[null,"c. Legemiddelhåndtering"]
[null,"d. Ernæring"]
[null,"e. Fritidsaktivitet med assistanse"]
[null,"f. Kulturopplevelser"]
[null,"g. Annet"]
[null,"Sum :",null,{"$f":"SUM(D87:D93)","v":0}]
[null,"4.2. Rapportering på kriterier for måloppnåelse \n * Forskningsrapporter og annen dokumentasjon fra innovasjonsprosjekter under denne tilskuddsordningen skal i tillegg sendes Senter for Omsorgsforskning, \n     postmottak@hig.no, Høgskolen i Gjøvik, Postboks 191, 2802 Gjøvik."]
[null,"a. Beskrivelse av brukernes erfaringer og opplevd nytte"]
[]
[null,"b. I hvilken grad har behovet for kompenserende tjenester blitt redusert/vise til redusert behov for kompenserende tjenester?"]
[]
[null,"c. I hvilken grad har nye løsninger gitt kvalitative og økonomiske gevinster for brukerne og kommunen?"]
[]
[null,"d. I hvilken grad har tiltaket overføringsverdi til andre kommuner og betydning for praksis?"]
[]
[null,"e. I hvilken grad og hvordan har innovasjonsmetodikk blitt benyttet i prosjektet?"]
[]
[null,"4.3. Regnskap for innovasjonsprosjekt"]
[null,"Inntektekter",null,null,"Merknader"]
[null,"a. Tilskuddsbeløp fra Fylkesmannen",null,0]
[null,"Utgifter"]
[null,"b. Lønnsutgifter med sosiale utgifter ",null,0]
[null,"c. Reiseutgifter, arrangement, møter, konferanser",null,0]
[null,"d. Konsulenttjenester",null,0]
[null,"e. Trykking, publikasjoner, kunngjøringer, utsending og distribusjonskostnader ",null,0]
[null,"f. Investeringer/ inventar/ utstyr",null,0]
[null,"g. Driftsutgifter, forbruksmateriell og kontortjenester inkludert lokaler og energi",null,0]
[null,"h. Andre utgifter (spesifiser i merknadsteltet)",null,0]
[null,"Sum utgifter",null,{"$f":"SUM(D110:D116)","v":0}]
[null,"Ubrukt tilskudd på rapporteringstidspunktet",null,{"$f":"SUM(D108-D117)","v":0}]
[null,"Søkes overført",null,0]
[null,"4.4. Informasjon om inntekter fra andre kilder"]
[null,"a. Inntekter fra andre kilder/statlige prosjekt",null,0]
[null,"b. Egenfinansiering",null,0]
[null,"4.5. Revisoruttalelse"]
[null,"a. Revisoruttalelse (velg ett alternativ fra nedtrekksliste i neste rute)"]
[null,"b. Kommentarer til revisoruttalelse"]
[]
[null,"5. Nasjonalt velferdsteknologiprogram - innføring av velferdsteknologiske løsninger\n    * Rapportering for punktene ( fra 5.1. til 5.6.) kan sendes som eget vedlegg"]
[null,"5.1. Følges oppgitt fremdriftsplan i prosjektet?  (Inntil 300 ord)"]
[]
[]
[null,"5.2. Hvem er samarbeidspartnere i prosjektet og hvordan er status med tanke på samarbeid? (Inntil 300 ord)"]
[]
[]
[null,"5.3. Hva er status for implementering av velferdsteknologi i kommunene etter fastsatte måltall, hvilke tjenesteinnovasjoner som er gjennomført og   hvilke endringer dette har resultert i? \n      (Inntil 600 ord)"]
[]
[]
[]
[null,"5.4. Hva er forventede og realiserte gevinster av prosjektet for kommunen (spart tid, unngåtte kostnader, økt kvalitet)?  (Inntil 600 ord)"]
[]
[]
[]
[null,"5.5. Hvordan er kommunens planer for skalering av løsningene og overgang til løpende driftsfase, herunder planer for investering og drift av løsninger? (Inntil 600 ord)"]
[]
[]
[]
[null,"5.6. Hvordan er brukermedvirkning sikret i prosjektet? Angi på hvilken måte pasienter, brukere og pårørende er involvert? Hva er resultater for brukerne?(Inntil 600 ord)"]
[]
[]
[]
[null,"5.7. Regnskap for nasjonalt velferdsteknologiprogram - innføring av velferdsteknologiske løsninger"]
[null,"Inntektekter",null,null,"Merknader"]
[null,"a. Tilskuddsbeløp fra Fylkesmannen",null,0]
[null,"Utgifter"]
[null,"b. Lønnsutgifter med sosiale utgifter ",null,0]
[null,"c. Reiseutgifter, arrangement, møter, konferanser",null,0]
[null,"d. Konsulenttjenester",null,0]
[null,"e. Trykking, publikasjoner, kunngjøringer, utsending og distribusjonskostnader ",null,0]
[null,"f. Investeringer/ inventar/ utstyr",null,0]
[null,"g. Driftsutgifter, forbruksmateriell og kontortjenester inkludert lokaler og energi",null,0]
[null,"h. Andre utgifter (spesifiser i merknadsteltet)",null,0]
[null,"Sum utgifter",null,{"$f":"SUM(D154:D160)","v":0}]
[null,"Ubrukt tilskudd på rapporteringstidspunktet",null,{"$f":"SUM(D152-D161)","v":0}]
[null,"Søkes overført",null,0]
[null,"5.8. Informasjon om inntekter fra andre kilder"]
[null,"a. Inntekter fra andre kilder/statlige prosjekt",null,0]
[null,"b. Egenfinansiering",null,0]
[null,"5.9. Revisoruttalelse"]
[null,"a. Revisoruttalelse (velg ett alternativ fra nedtrekksliste i neste rute)"]
[null,"b. Kommentarer til revisoruttalelse"]
[]
[]
[null,null,null,"Dette er styringsarket. Det kan skjules."]
[null,null,null,"Revisoruttalelse"]
[null,null,null,"Revisoruttalelse foreligger uten merknader"]
[null,null,null,"Revisoruttalelse foreligger med merknader"]
[null,null,null,"I tilskuddsbrevet er det ikke krav til revisoruttalelse"]
[null,null,null,"Revisoruttalelse mangler (rapportering ufullstendig)"]

{"sheet":"Måsøy","index":12,"n_rows":177,"n_cols":9,"rows_kept":177,"cut":false,"hidden":false,"merged":[[12,1,12,8],[13,1,14,1],[13,2,13,3],[13,4,13,7],[13,8,14,8],[15,8,17,8],[1,1,1,8],[2,2,2,8],[3,2,3,8],[4,2,4,8],[5,2,5,8],[11,1,11,8],[28,1,28,8],[29,1,30,1],[29,2,29,3],[29,4,29,7],[29,8,30,8],[31,8,38,8],[18,1,18,8],[19,1,20,1],[19,2,19,3],[19,4,19,7],[19,8,20,8],[21,8,27,8],[51,1,51,8],[52,1,53,1],[52,2,52,3],[52,4,52,7],[52,8,53,8],[54,8,58,8],[39,1,39,8],[40,1,41,1],[40,2,40,3],[40,4,40,7],[40,8,41,8],[42,8,50,8],[67,1,67,8],[68,2,68,7],[68,8,71,8],[69,2,69,7],[70,2,70,7],[71,2,71,7],[59,1,59,8],[60,1,61,1],[60,2,60,3],[60,4,60,7],[60,8,61,8],[62,8,66,8],[83,1,83,8],[84,1,84,8],[85,1,85,2],[85,4,85,8],[86,1,86,2],[86,4,86,8],[72,1,72,8],[73,1,73,8],[75,1,75,8],[76,1,77,1],[76,2,76,4],[76,5,76,8],[90,1,90,2],[90,4,90,8],[91,1,91,2],[91,4,91,8],[92,1,92,2],[92,4,92,8],[87,1,87,2],[87,4,87,8],[88,1,88,2],[88,4,88,8],[89,1,89,2],[89,4,89,8],[98,1,98,8],[99,1,99,8],[100,1,100,8],[101,1,101,8],[102,1,102,8],[103,1,103,8],[93,1,93,2],[93,4,93,8],[94,1,94,8],[95,1,95,8],[96,1,96,8],[97,1,97,8],[112,1,112,2],[113,1,113,2],[114,1,114,2],[115,1,115,2],[116,1,116,2],[117,1,117,2],[104,1,104,8],[105,1,105,8],[106,1,106,3],[106,4,106,8],[107,1,107,2],[107,4,118,8],[108,1,108,3],[109,1,109,2],[110,1,110,2],[111,1,111,2],[122,1,122,8],[123,1,123,2],[123,3,123,8],[124,1,124,2],[124,3,124,8],[126,1,126,7],[118,1,118,2],[119,1,119,8],[120,1,120,2],[120,4,120,8],[121,1,121,2],[121,4,121,8],[137,1,137,8],[138,1,140,8],[141,1,141,8],[142,1,144,8],[145,1,145,8],[146,1,148,8],[127,1,127,8],[128,1,129,8],[130,1,130,8],[131,1,132,8],[133,1,133,8],[134,1,136,8],[157,1,157,2],[158,1,158,2],[159,1,159,2],[160,1,160,2],[161,1,161,2],[162,1,162,2],[149,1,149,8],[150,1,150,3],[150,4,150,8],[151,1,151,2],[151,4,162,8],[152,1,152,3],[153,1,153,2],[154,1,154,2],[155,1,155,2],[156,1,156,2],[167,1,167,2],[167,3,167,8],[168,1,168,2],[168,3,168,8],[163,1,163,8],[164,1,164,2],[164,4,164,8],[165,1,165,2],[165,4,165,8],[166,1,166,8]]}
[]
[null,"1. Informasjon om kommunen "]
[null,"1.1. Navn på kommunen"]
[null,"1.2. Kontaktperson"]
[null,"1.3. E-post"]
[null,"1.4. Telefon"]
[]
[null,"Rapportering fra kommunen til Fylkesmannen"]
[null," - Kap761, post 68 \" Kommunalt kompetanse- og innovasjonstilskudd\""]
[null," - Kap761, post 78 \" Nasjonalt velferdsteknologiprogram - innføring av velferdsteknologiske løsninger\""]
[]
[null,"2. Kompetansetiltak (grunn-, videre- og etterutdanning)"]
[null,"2.1. Videregående skole, fag- og yrkesopplæring innen helse (fagbrev)"]
[null,"Utdanningstype","Måloppnåelse (antall ansatte)",null,"Økonomirapportering",null,null,null,"Merknader\n(nærmere om hvilken annen utdanning)"]
[null,null,"Fullført utdanning\n","Samlet antall fullførte og under utdanning ","Søkt beløp","Innvilget beløp ","Ubrukt \nønkes overført","Ubrukt\nbetales tilbake"]
[null,"a. Helsefagarbeider",0,0,0,0,0,0]
[null,"b. Annen utdanning på videregående skolenivå",0,0,0,0,0,0]
[null,"Sum :",{"$f":"SUM(C16:C17)","v":0},{"$f":"SUM(D16:D17)","v":0},{"$f":"SUM(E16:E17)","v":0},{"$f":"SUM(F16:F17)","v":0},{"$f":"SUM(G16:G17)","v":0},0]
[null,"2.2. Fagskoleutdanning"]
[null,"Utdanningstype","Måloppnåelse (antall ansatte)",null,"Økonomirapportering",null,null,null,"Merknader\n(nærmere om hvilken annen utdanning)"]
[null,null,"Fullført utdanning\n","Samlet antall fullførte og under utdanning","Søkt beløp","Innvilget beløp ","Ubrukt \nønkes overført","Ubrukt\nbetales tilbake"]
[null,"a. Psykisk helsearbeid og rusarbeid",0,0,0,0,0,0]
[null,"b. Eldreomsorg/demens",0,0,0,0,0,0]
[null,"c. Habilitering/rehabilitering",0,0,0,0,0,0]
[null,"d. Kreftomsorg/lindrende behandling",0,0,0,0,0,0]
[null,"e. Veiledning",0,0,0,0,0,0]
[null,"f. Annen fagskoleutdanning",0,0,0,0,0,0]
[null,"Sum :",{"$f":"SUM(C22:C27)","v":0},{"$f":"SUM(D22:D27)","v":0},{"$f":"SUM(E22:E27)","v":0},{"$f":"SUM(F22:F27)","v":0},0,0]
[null,"  2.3. Bachelorutdanning helse- og sosialfag"]
[null,"Utdanningstype","Måloppnåelse (antall ansatte)",null,"Økonomirapportering",null,null,null,"Merknader\n(nærmere om hvilken annen utdanning)"]
[null,null,"Fullført utdanning\n","Samlet antall fullførte og under utdanning","Søkt beløp","Innvilget beløp ","Ubrukt \nønkes overført","Ubrukt\nbetales tilbake"]
[null,"a. Sykepleie",0,0,0,0,0,0]
[null,"b. Vernepleie",0,0,0,0,0,0]
[null,"c. Fysioterapi",0,0,0,0,0,0]
[null,"d. Ergoterapi",0,0,0,0,0,0]
[null,"e. Sosial arbeid (sosionom)",0,0,0,0,0,0]
[null,"f. Barnevernspedagogikk",0,0,0,0,0,0]
[null,"g. Annen bachelorutdanning",0,0,0,0,0,0]
[null,"Sum :",{"$f":"SUM(C32:C38)","v":0},{"$f":"SUM(D32:D38)","v":0},{"$f":"SUM(E32:E38)","v":0},{"$f":"SUM(F32:F38)","v":0},0,0]
[null,"  2.4. Videreutdanning og mastergradutdanning (påbygg bachelorutdanning)"]
[null,"Utdanningstype","Måloppnåelse (antall ansatte)",null,"Økonomirapportering",null,null,null,"Merknader\n(nærmere om hvilken annen utdanning)"]
[null,null,"Fullført utdanning\n","Samlet antall fullførte og under utdanning","Søkt beløp","Innvilget beløp ","Ubrukt \nønkes overført","Ubrukt\nbetales tilbake"]
[null,"a. Psykisk helsearbeid og rusarbeid",0,0,0,0,0,0]
[null,"b. Tverrfaglig videreutdanning \n     i psykososialt arbeid med barn og unge",0,0,0,0,0,0]
[null,"c. Eldreomsorg/demens",0,0,0,0,0,0]
[null,"d. Kreftomsorg/lindrende pleie",0,0,0,0,0,0]
[null,"e. Habilitering/rehabilitering",0,0,0,0,0,0]
[null,"f. Veiledning",0,0,0,0,0,0]
[null,"g. Lederutdanning",0,0,0,0,0,0]
[null,"h. Annen videreutdanning og/eller masterutdanning",0,0,0,0,0,0]
[null,"Sum :",{"$f":"SUM(C43:C50)","v":0},{"$f":"SUM(D43:D50)","v":0},{"$f":"SUM(E43:E50)","v":0},{"$f":"SUM(F43:F50)","v":0},0,0]
[null,"2.5. ABC-opplæring"]
[null,"Opplæringstype","Måloppnåelse (antall ansatte)",null,"Økonomirapportering",null,null,null,"Merknader"]
[null,null,"Fullført opplæring ","Samlet antall fullførte og under opplæring ","Søkt beløp","Innvilget beløp ","Ubrukt \nønkes overført","Ubrukt\nbetales tilbake"]
[null,"a. Demensomsorgens ABC",0,0,0,0,0,0]
[null,"b. Eldreomsorgens ABC",0,0,0,0,0,0]
[null,"c. Mitt livs ABC",0,0,0,0,0,0]
[null,"d. Velferdsteknologien ABC",0,0,0,0,0,0]
[null,"Sum :",{"$f":"SUM(C55:C58)","v":0},{"$f":"SUM(D55:D58)","v":0},{"$f":"SUM(E55:E58)","v":0},{"$f":"SUM(F55:F58)","v":0},{"$f":"SUM(G55:G58)","v":0},{"$f":"SUM(H55:H58)","v":0}]
[null,"2.6. Annen internopplæring / korte etterutdanninger /kurs mv."]
[null,"Opplæringstype","Måloppnåelse (antall ansatte)",null,"Økonomirapportering",null,null,null,"Merknader\n(nærmere om hvilken annen opplæring)"]
[null,null,"Fullført utdanning\n/ opplæring ","Samlet antall fullførte og under utdanning / opplæring ","Søkt beløp","Innvilget beløp ","Ubrukt \nønkes overført","Ubrukt\nbetales tilbake"]
[null,"a.  Innen psykisk helsearbeid og rusfeltet",0,0,0,0,0,0]
[null,"b. Innen eldreomsorg og demensfeltet",0,0,0,0,0,0]
[null,"c. Annet",0,0,0,0,0,0]
[null,"Sum :",{"$f":"SUM(C63:C65)","v":0},0,{"$f":"SUM(E63:E65)","v":0},{"$f":"SUM(F63:F65)","v":0},{"$f":"SUM(G63:G65)","v":0},{"$f":"SUM(H63:H65)","v":0}]
[null,"Total sum (inkludert 2.7.) :",{"$f":"C18+C28+C39+C51+C59+C66","v":0},{"$f":"D18+D28+D39+D51+D59+D66","v":0},{"$f":"E18+E28+E39+E51+E59+E66+C69","v":0},{"$f":"F18+F28+F39+F51+F59+F66+C70","v":0},{"$f":"G18+G28+G39+G51+G59+G66+C71","v":0},{"$f":"H18+H28+H39+H51+H59+H66+C72","v":0}]
[null,"2.7. Andre kompetansehevende tiltak"]
[null,"a. Søkt beløp"]
[null,"b. Innvilget beløp "]
[null,"c. Ubrukt, ønkes overført"]
[null,"d. Ubrukt, betales tilbake"]
[null,"e. Beskrivelse av tiltaket og hva tilskuddet har gått til."]
[]
[]
[null,"3. Opplæringstilskudd BPA (brukerstyrt personlig assistanse)"]
[null,null,"Måloppnåelse (antall personer)",null,null,"Økonomirapportering"]
[null,null,"Søkt ","Innvilget","Gjennomført","Søkt beløp","Utbetalt beløp","Ubrukt \nønkes overført","Ubrukt\nbetales tilbake"]
[null,"a. Arbeidsledere som har fått tilskudd til opplæring",0,0,0,0,0,0,0]
[null,"b. Saksbehandlere som har fått tilskudd til opplæring",0,0,0,0,0,0,0]
[null,"c. Assistenter som har fått tilskudd til opplæring",0,0,0,0,0,0,0]
[null,"Sum :",{"$f":"SUM(C79:C81)","v":0},{"$f":"SUM(D79:D81)","v":0},0,0,0,0,0]
[]
[null,"4. Innovasjonsprosjekter"]
[null,"4.1. Tema for prosjektene det rapporteres på"]
[null,"Tema ",null,"Antall prosjekter","Tittel på prosjekt/merknader"]
[null,"a. Velferdsteknologiske løsninger"]
[null,"b. Samspill med pårørende og frivillige i omsorgssektoren generelt og  \n    demensomsorgen spesielt."]
[null,"c. Legemiddelhåndtering"]
[null,"d. Ernæring"]
[null,"e. Fritidsaktivitet med assistanse"]
[null,"f. Kulturopplevelser"]
[null,"g. Annet"]
[null,"Sum :",null,{"$f":"SUM(D87:D93)","v":0}]
[null,"4.2. Rapportering på kriterier for måloppnåelse \n * Forskningsrapporter og annen dokumentasjon fra innovasjonsprosjekter under denne tilskuddsordningen skal i tillegg sendes Senter for Omsorgsforskning, \n     postmottak@hig.no, Høgskolen i Gjøvik, Postboks 191, 2802 Gjøvik."]
[null,"a. Beskrivelse av brukernes erfaringer og opplevd nytte"]
[]
[null,"b. I hvilken grad har behovet for kompenserende tjenester blitt redusert/vise til redusert behov for kompenserende tjenester?"]
[]
[null,"c. I hvilken grad har nye løsninger gitt kvalitative og økonomiske gevinster for brukerne og kommunen?"]
[]
[null,"d. I hvilken grad har tiltaket overføringsverdi til andre kommuner og betydning for praksis?"]
[]
[null,"e. I hvilken grad og hvordan har innovasjonsmetodikk blitt benyttet i prosjektet?"]
[]
[null,"4.3. Regnskap for innovasjonsprosjekt"]
[null,"Inntektekter",null,null,"Merknader"]
[null,"a. Tilskuddsbeløp fra Fylkesmannen",null,0]
[null,"Utgifter"]
[null,"b. Lønnsutgifter med sosiale utgifter ",null,0]
[null,"c. Reiseutgifter, arrangement, møter, konferanser",null,0]
[null,"d. Konsulenttjenester",null,0]
[null,"e. Trykking, publikasjoner, kunngjøringer, utsending og distribusjonskostnader ",null,0]
[null,"f. Investeringer/ inventar/ utstyr",null,0]
[null,"g. Driftsutgifter, forbruksmateriell og kontortjenester inkludert lokaler og energi",null,0]
[null,"h. Andre utgifter (spesifiser i merknadsteltet)",null,0]
[null,"Sum utgifter",null,{"$f":"SUM(D110:D116)","v":0}]
[null,"Ubrukt tilskudd på rapporteringstidspunktet",null,{"$f":"SUM(D108-D117)","v":0}]
[null,"Søkes overført",null,0]
[null,"4.4. Informasjon om inntekter fra andre kilder"]
[null,"a. Inntekter fra andre kilder/statlige prosjekt",null,0]
[null,"b. Egenfinansiering",null,0]
[null,"4.5. Revisoruttalelse"]
[null,"a. Revisoruttalelse (velg ett alternativ fra nedtrekksliste i neste rute)"]
[null,"b. Kommentarer til revisoruttalelse"]
[]
[null,"5. Nasjonalt velferdsteknologiprogram - innføring av velferdsteknologiske løsninger\n    * Rapportering for punktene ( fra 5.1. til 5.6.) kan sendes som eget vedlegg"]
[null,"5.1. Følges oppgitt fremdriftsplan i prosjektet?  (Inntil 300 ord)"]
[]
[]
[null,"5.2. Hvem er samarbeidspartnere i prosjektet og hvordan er status med tanke på samarbeid? (Inntil 300 ord)"]
[]
[]
[null,"5.3. Hva er status for implementering av velferdsteknologi i kommunene etter fastsatte måltall, hvilke tjenesteinnovasjoner som er gjennomført og   hvilke endringer dette har resultert i? \n      (Inntil 600 ord)"]
[]
[]
[]
[null,"5.4. Hva er forventede og realiserte gevinster av prosjektet for kommunen (spart tid, unngåtte kostnader, økt kvalitet)?  (Inntil 600 ord)"]
[]
[]
[]
[null,"5.5. Hvordan er kommunens planer for skalering av løsningene og overgang til løpende driftsfase, herunder planer for investering og drift av løsninger? (Inntil 600 ord)"]
[]
[]
[]
[null,"5.6. Hvordan er brukermedvirkning sikret i prosjektet? Angi på hvilken måte pasienter, brukere og pårørende er involvert? Hva er resultater for brukerne?(Inntil 600 ord)"]
[]
[]
[]
[null,"5.7. Regnskap for nasjonalt velferdsteknologiprogram - innføring av velferdsteknologiske løsninger"]
[null,"Inntektekter",null,null,"Merknader"]
[null,"a. Tilskuddsbeløp fra Fylkesmannen",null,0]
[null,"Utgifter"]
[null,"b. Lønnsutgifter med sosiale utgifter ",null,0]
[null,"c. Reiseutgifter, arrangement, møter, konferanser",null,0]
[null,"d. Konsulenttjenester",null,0]
[null,"e. Trykking, publikasjoner, kunngjøringer, utsending og distribusjonskostnader ",null,0]
[null,"f. Investeringer/ inventar/ utstyr",null,0]
[null,"g. Driftsutgifter, forbruksmateriell og kontortjenester inkludert lokaler og energi",null,0]
[null,"h. Andre utgifter (spesifiser i merknadsteltet)",null,0]
[null,"Sum utgifter",null,{"$f":"SUM(D154:D160)","v":0}]
[null,"Ubrukt tilskudd på rapporteringstidspunktet",null,{"$f":"SUM(D152-D161)","v":0}]
[null,"Søkes overført",null,0]
[null,"5.8. Informasjon om inntekter fra andre kilder"]
[null,"a. Inntekter fra andre kilder/statlige prosjekt",null,0]
[null,"b. Egenfinansiering",null,0]
[null,"5.9. Revisoruttalelse"]
[null,"a. Revisoruttalelse (velg ett alternativ fra nedtrekksliste i neste rute)"]
[null,"b. Kommentarer til revisoruttalelse"]
[]
[]
[null,null,null,"Dette er styringsarket. Det kan skjules."]
[null,null,null,"Revisoruttalelse"]
[null,null,null,"Revisoruttalelse foreligger uten merknader"]
[null,null,null,"Revisoruttalelse foreligger med merknader"]
[null,null,null,"I tilskuddsbrevet er det ikke krav til revisoruttalelse"]
[null,null,null,"Revisoruttalelse mangler (rapportering ufullstendig)"]

{"sheet":"Kvalsund","index":13,"n_rows":177,"n_cols":9,"rows_kept":177,"cut":false,"hidden":false,"merged":[[12,1,12,8],[13,1,14,1],[13,2,13,3],[13,4,13,7],[13,8,14,8],[15,8,17,8],[1,1,1,8],[2,2,2,8],[3,2,3,8],[4,2,4,8],[5,2,5,8],[11,1,11,8],[28,1,28,8],[29,1,30,1],[29,2,29,3],[29,4,29,7],[29,8,30,8],[31,8,38,8],[18,1,18,8],[19,1,20,1],[19,2,19,3],[19,4,19,7],[19,8,20,8],[21,8,27,8],[51,1,51,8],[52,1,53,1],[52,2,52,3],[52,4,52,7],[52,8,53,8],[54,8,58,8],[39,1,39,8],[40,1,41,1],[40,2,40,3],[40,4,40,7],[40,8,41,8],[42,8,50,8],[67,1,67,8],[68,2,68,7],[68,8,71,8],[69,2,69,7],[70,2,70,7],[71,2,71,7],[59,1,59,8],[60,1,61,1],[60,2,60,3],[60,4,60,7],[60,8,61,8],[62,8,66,8],[83,1,83,8],[84,1,84,8],[85,1,85,2],[85,4,85,8],[86,1,86,2],[86,4,86,8],[72,1,72,8],[73,1,73,8],[75,1,75,8],[76,1,77,1],[76,2,76,4],[76,5,76,8],[90,1,90,2],[90,4,90,8],[91,1,91,2],[91,4,91,8],[92,1,92,2],[92,4,92,8],[87,1,87,2],[87,4,87,8],[88,1,88,2],[88,4,88,8],[89,1,89,2],[89,4,89,8],[98,1,98,8],[99,1,99,8],[100,1,100,8],[101,1,101,8],[102,1,102,8],[103,1,103,8],[93,1,93,2],[93,4,93,8],[94,1,94,8],[95,1,95,8],[96,1,96,8],[97,1,97,8],[112,1,112,2],[113,1,113,2],[114,1,114,2],[115,1,115,2],[116,1,116,2],[117,1,117,2],[104,1,104,8],[105,1,105,8],[106,1,106,3],[106,4,106,8],[107,1,107,2],[107,4,118,8],[108,1,108,3],[109,1,109,2],[110,1,110,2],[111,1,111,2],[122,1,122,8],[123,1,123,2],[123,3,123,8],[124,1,124,2],[124,3,124,8],[126,1,126,7],[118,1,118,2],[119,1,119,8],[120,1,120,2],[120,4,120,8],[121,1,121,2],[121,4,121,8],[137,1,137,8],[138,1,140,8],[141,1,141,8],[142,1,144,8],[145,1,145,8],[146,1,148,8],[127,1,127,8],[128,1,129,8],[130,1,130,8],[131,1,132,8],[133,1,133,8],[134,1,136,8],[157,1,157,2],[158,1,158,2],[159,1,159,2],[160,1,160,2],[161,1,161,2],[162,1,162,2],[149,1,149,8],[150,1,150,3],[150,4,150,8],[151,1,151,2],[151,4,162,8],[152,1,152,3],[153,1,153,2],[154,1,154,2],[155,1,155,2],[156,1,156,2],[167,1,167,2],[167,3,167,8],[168,1,168,2],[168,3,168,8],[163,1,163,8],[164,1,164,2],[164,4,164,8],[165,1,165,2],[165,4,165,8],[166,1,166,8]]}
[]
[null,"1. Informasjon om kommunen "]
[null,"1.1. Navn på kommunen"]
[null,"1.2. Kontaktperson"]
[null,"1.3. E-post"]
[null,"1.4. Telefon"]
[]
[null,"Rapportering fra kommunen til Fylkesmannen"]
[null," - Kap761, post 68 \" Kommunalt kompetanse- og innovasjonstilskudd\""]
[null," - Kap761, post 78 \" Nasjonalt velferdsteknologiprogram - innføring av velferdsteknologiske løsninger\""]
[]
[null,"2. Kompetansetiltak (grunn-, videre- og etterutdanning)"]
[null,"2.1. Videregående skole, fag- og yrkesopplæring innen helse (fagbrev)"]
[null,"Utdanningstype","Måloppnåelse (antall ansatte)",null,"Økonomirapportering",null,null,null,"Merknader\n(nærmere om hvilken annen utdanning)"]
[null,null,"Fullført utdanning\n","Samlet antall fullførte og under utdanning ","Søkt beløp","Innvilget beløp ","Ubrukt \nønkes overført","Ubrukt\nbetales tilbake"]
[null,"a. Helsefagarbeider",0,0,0,0,0,0]
[null,"b. Annen utdanning på videregående skolenivå",0,0,0,0,0,0]
[null,"Sum :",{"$f":"SUM(C16:C17)","v":0},{"$f":"SUM(D16:D17)","v":0},{"$f":"SUM(E16:E17)","v":0},{"$f":"SUM(F16:F17)","v":0},{"$f":"SUM(G16:G17)","v":0},0]
[null,"2.2. Fagskoleutdanning"]
[null,"Utdanningstype","Måloppnåelse (antall ansatte)",null,"Økonomirapportering",null,null,null,"Merknader\n(nærmere om hvilken annen utdanning)"]
[null,null,"Fullført utdanning\n","Samlet antall fullførte og under utdanning","Søkt beløp","Innvilget beløp ","Ubrukt \nønkes overført","Ubrukt\nbetales tilbake"]
[null,"a. Psykisk helsearbeid og rusarbeid",0,0,0,0,0,0]
[null,"b. Eldreomsorg/demens",0,0,0,0,0,0]
[null,"c. Habilitering/rehabilitering",0,0,0,0,0,0]
[null,"d. Kreftomsorg/lindrende behandling",0,0,0,0,0,0]
[null,"e. Veiledning",0,0,0,0,0,0]
[null,"f. Annen fagskoleutdanning",0,0,0,0,0,0]
[null,"Sum :",{"$f":"SUM(C22:C27)","v":0},{"$f":"SUM(D22:D27)","v":0},{"$f":"SUM(E22:E27)","v":0},{"$f":"SUM(F22:F27)","v":0},0,0]
[null,"  2.3. Bachelorutdanning helse- og sosialfag"]
[null,"Utdanningstype","Måloppnåelse (antall ansatte)",null,"Økonomirapportering",null,null,null,"Merknader\n(nærmere om hvilken annen utdanning)"]
[null,null,"Fullført utdanning\n","Samlet antall fullførte og under utdanning","Søkt beløp","Innvilget beløp ","Ubrukt \nønkes overført","Ubrukt\nbetales tilbake"]
[null,"a. Sykepleie",0,0,0,0,0,0]
[null,"b. Vernepleie",0,0,0,0,0,0]
[null,"c. Fysioterapi",0,0,0,0,0,0]
[null,"d. Ergoterapi",0,0,0,0,0,0]
[null,"e. Sosial arbeid (sosionom)",0,0,0,0,0,0]
[null,"f. Barnevernspedagogikk",0,0,0,0,0,0]
[null,"g. Annen bachelorutdanning",0,0,0,0,0,0]
[null,"Sum :",{"$f":"SUM(C32:C38)","v":0},{"$f":"SUM(D32:D38)","v":0},{"$f":"SUM(E32:E38)","v":0},{"$f":"SUM(F32:F38)","v":0},0,0]
[null,"  2.4. Videreutdanning og mastergradutdanning (påbygg bachelorutdanning)"]
[null,"Utdanningstype","Måloppnåelse (antall ansatte)",null,"Økonomirapportering",null,null,null,"Merknader\n(nærmere om hvilken annen utdanning)"]
[null,null,"Fullført utdanning\n","Samlet antall fullførte og under utdanning","Søkt beløp","Innvilget beløp ","Ubrukt \nønkes overført","Ubrukt\nbetales tilbake"]
[null,"a. Psykisk helsearbeid og rusarbeid",0,0,0,0,0,0]
[null,"b. Tverrfaglig videreutdanning \n     i psykososialt arbeid med barn og unge",0,0,0,0,0,0]
[null,"c. Eldreomsorg/demens",0,0,0,0,0,0]
[null,"d. Kreftomsorg/lindrende pleie",0,0,0,0,0,0]
[null,"e. Habilitering/rehabilitering",0,0,0,0,0,0]
[null,"f. Veiledning",0,0,0,0,0,0]
[null,"g. Lederutdanning",0,0,0,0,0,0]
[null,"h. Annen videreutdanning og/eller masterutdanning",0,0,0,0,0,0]
[null,"Sum :",{"$f":"SUM(C43:C50)","v":0},{"$f":"SUM(D43:D50)","v":0},{"$f":"SUM(E43:E50)","v":0},{"$f":"SUM(F43:F50)","v":0},0,0]
[null,"2.5. ABC-opplæring"]
[null,"Opplæringstype","Måloppnåelse (antall ansatte)",null,"Økonomirapportering",null,null,null,"Merknader"]
[null,null,"Fullført opplæring ","Samlet antall fullførte og under opplæring ","Søkt beløp","Innvilget beløp ","Ubrukt \nønkes overført","Ubrukt\nbetales tilbake"]
[null,"a. Demensomsorgens ABC",0,0,0,0,0,0]
[null,"b. Eldreomsorgens ABC",0,0,0,0,0,0]
[null,"c. Mitt livs ABC",0,0,0,0,0,0]
[null,"d. Velferdsteknologien ABC",0,0,0,0,0,0]
[null,"Sum :",{"$f":"SUM(C55:C58)","v":0},{"$f":"SUM(D55:D58)","v":0},{"$f":"SUM(E55:E58)","v":0},{"$f":"SUM(F55:F58)","v":0},{"$f":"SUM(G55:G58)","v":0},{"$f":"SUM(H55:H58)","v":0}]
[null,"2.6. Annen internopplæring / korte etterutdanninger /kurs mv."]
[null,"Opplæringstype","Måloppnåelse (antall ansatte)",null,"Økonomirapportering",null,null,null,"Merknader\n(nærmere om hvilken annen opplæring)"]
[null,null,"Fullført utdanning\n/ opplæring ","Samlet antall fullførte og under utdanning / opplæring ","Søkt beløp","Innvilget beløp ","Ubrukt \nønkes overført","Ubrukt\nbetales tilbake"]
[null,"a.  Innen psykisk helsearbeid og rusfeltet",0,0,0,0,0,0]
[null,"b. Innen eldreomsorg og demensfeltet",0,0,0,0,0,0]
[null,"c. Annet",0,0,0,0,0,0]
[null,"Sum :",{"$f":"SUM(C63:C65)","v":0},0,{"$f":"SUM(E63:E65)","v":0},{"$f":"SUM(F63:F65)","v":0},{"$f":"SUM(G63:G65)","v":0},{"$f":"SUM(H63:H65)","v":0}]
[null,"Total sum (inkludert 2.7.) :",{"$f":"C18+C28+C39+C51+C59+C66","v":0},{"$f":"D18+D28+D39+D51+D59+D66","v":0},{"$f":"E18+E28+E39+E51+E59+E66+C69","v":0},{"$f":"F18+F28+F39+F51+F59+F66+C70","v":0},{"$f":"G18+G28+G39+G51+G59+G66+C71","v":0},{"$f":"H18+H28+H39+H51+H59+H66+C72","v":0}]
[null,"2.7. Andre kompetansehevende tiltak"]
[null,"a. Søkt beløp"]
[null,"b. Innvilget beløp "]
[null,"c. Ubrukt, ønkes overført"]
[null,"d. Ubrukt, betales tilbake"]
[null,"e. Beskrivelse av tiltaket og hva tilskuddet har gått til."]
[]
[]
[null,"3. Opplæringstilskudd BPA (brukerstyrt personlig assistanse)"]
[null,null,"Måloppnåelse (antall personer)",null,null,"Økonomirapportering"]
[null,null,"Søkt ","Innvilget","Gjennomført","Søkt beløp","Utbetalt beløp","Ubrukt \nønkes overført","Ubrukt\nbetales tilbake"]
[null,"a. Arbeidsledere som har fått tilskudd til opplæring",0,0,0,0,0,0,0]
[null,"b. Saksbehandlere som har fått tilskudd til opplæring",0,0,0,0,0,0,0]
[null,"c. Assistenter som har fått tilskudd til opplæring",0,0,0,0,0,0,0]
[null,"Sum :",{"$f":"SUM(C79:C81)","v":0},{"$f":"SUM(D79:D81)","v":0},0,0,0,0,0]
[]
[null,"4. Innovasjonsprosjekter"]
[null,"4.1. Tema for prosjektene det rapporteres på"]
[null,"Tema ",null,"Antall prosjekter","Tittel på prosjekt/merknader"]
[null,"a. Velferdsteknologiske løsninger"]
[null,"b. Samspill med pårørende og frivillige i omsorgssektoren generelt og  \n    demensomsorgen spesielt."]
[null,"c. Legemiddelhåndtering"]
[null,"d. Ernæring"]
[null,"e. Fritidsaktivitet med assistanse"]
[null,"f. Kulturopplevelser"]
[null,"g. Annet"]
[null,"Sum :",null,{"$f":"SUM(D87:D93)","v":0}]
[null,"4.2. Rapportering på kriterier for måloppnåelse \n * Forskningsrapporter og annen dokumentasjon fra innovasjonsprosjekter under denne tilskuddsordningen skal i tillegg sendes Senter for Omsorgsforskning, \n     postmottak@hig.no, Høgskolen i Gjøvik, Postboks 191, 2802 Gjøvik."]
[null,"a. Beskrivelse av brukernes erfaringer og opplevd nytte"]
[]
[null,"b. I hvilken grad har behovet for kompenserende tjenester blitt redusert/vise til redusert behov for kompenserende tjenester?"]
[]
[null,"c. I hvilken grad har nye løsninger gitt kvalitative og økonomiske gevinster for brukerne og kommunen?"]
[]
[null,"d. I hvilken grad har tiltaket overføringsverdi til andre kommuner og betydning for praksis?"]
[]
[null,"e. I hvilken grad og hvordan har innovasjonsmetodikk blitt benyttet i prosjektet?"]
[]
[null,"4.3. Regnskap for innovasjonsprosjekt"]
[null,"Inntektekter",null,null,"Merknader"]
[null,"a. Tilskuddsbeløp fra Fylkesmannen",null,0]
[null,"Utgifter"]
[null,"b. Lønnsutgifter med sosiale utgifter ",null,0]
[null,"c. Reiseutgifter, arrangement, møter, konferanser",null,0]
[null,"d. Konsulenttjenester",null,0]
[null,"e. Trykking, publikasjoner, kunngjøringer, utsending og distribusjonskostnader ",null,0]
[null,"f. Investeringer/ inventar/ utstyr",null,0]
[null,"g. Driftsutgifter, forbruksmateriell og kontortjenester inkludert lokaler og energi",null,0]
[null,"h. Andre utgifter (spesifiser i merknadsteltet)",null,0]
[null,"Sum utgifter",null,{"$f":"SUM(D110:D116)","v":0}]
[null,"Ubrukt tilskudd på rapporteringstidspunktet",null,{"$f":"SUM(D108-D117)","v":0}]
[null,"Søkes overført",null,0]
[null,"4.4. Informasjon om inntekter fra andre kilder"]
[null,"a. Inntekter fra andre kilder/statlige prosjekt",null,0]
[null,"b. Egenfinansiering",null,0]
[null,"4.5. Revisoruttalelse"]
[null,"a. Revisoruttalelse (velg ett alternativ fra nedtrekksliste i neste rute)"]
[null,"b. Kommentarer til revisoruttalelse"]
[]
[null,"5. Nasjonalt velferdsteknologiprogram - innføring av velferdsteknologiske løsninger\n    * Rapportering for punktene ( fra 5.1. til 5.6.) kan sendes som eget vedlegg"]
[null,"5.1. Følges oppgitt fremdriftsplan i prosjektet?  (Inntil 300 ord)"]
[]
[]
[null,"5.2. Hvem er samarbeidspartnere i prosjektet og hvordan er status med tanke på samarbeid? (Inntil 300 ord)"]
[]
[]
[null,"5.3. Hva er status for implementering av velferdsteknologi i kommunene etter fastsatte måltall, hvilke tjenesteinnovasjoner som er gjennomført og   hvilke endringer dette har resultert i? \n      (Inntil 600 ord)"]
[]
[]
[]
[null,"5.4. Hva er forventede og realiserte gevinster av prosjektet for kommunen (spart tid, unngåtte kostnader, økt kvalitet)?  (Inntil 600 ord)"]
[]
[]
[]
[null,"5.5. Hvordan er kommunens planer for skalering av løsningene og overgang til løpende driftsfase, herunder planer for investering og drift av løsninger? (Inntil 600 ord)"]
[]
[]
[]
[null,"5.6. Hvordan er brukermedvirkning sikret i prosjektet? Angi på hvilken måte pasienter, brukere og pårørende er involvert? Hva er resultater for brukerne?(Inntil 600 ord)"]
[]
[]
[]
[null,"5.7. Regnskap for nasjonalt velferdsteknologiprogram - innføring av velferdsteknologiske løsninger"]
[null,"Inntektekter",null,null,"Merknader"]
[null,"a. Tilskuddsbeløp fra Fylkesmannen",null,0]
[null,"Utgifter"]
[null,"b. Lønnsutgifter med sosiale utgifter ",null,0]
[null,"c. Reiseutgifter, arrangement, møter, konferanser",null,0]
[null,"d. Konsulenttjenester",null,0]
[null,"e. Trykking, publikasjoner, kunngjøringer, utsending og distribusjonskostnader ",null,0]
[null,"f. Investeringer/ inventar/ utstyr",null,0]
[null,"g. Driftsutgifter, forbruksmateriell og kontortjenester inkludert lokaler og energi",null,0]
[null,"h. Andre utgifter (spesifiser i merknadsteltet)",null,0]
[null,"Sum utgifter",null,{"$f":"SUM(D154:D160)","v":0}]
[null,"Ubrukt tilskudd på rapporteringstidspunktet",null,{"$f":"SUM(D152-D161)","v":0}]
[null,"Søkes overført",null,0]
[null,"5.8. Informasjon om inntekter fra andre kilder"]
[null,"a. Inntekter fra andre kilder/statlige prosjekt",null,0]
[null,"b. Egenfinansiering",null,0]
[null,"5.9. Revisoruttalelse"]
[null,"a. Revisoruttalelse (velg ett alternativ fra nedtrekksliste i neste rute)"]
[null,"b. Kommentarer til revisoruttalelse"]
[]
[]
[null,null,null,"Dette er styringsarket. Det kan skjules."]
[null,null,null,"Revisoruttalelse"]
[null,null,null,"Revisoruttalelse foreligger uten merknader"]
[null,null,null,"Revisoruttalelse foreligger med merknader"]
[null,null,null,"I tilskuddsbrevet er det ikke krav til revisoruttalelse"]
[null,null,null,"Revisoruttalelse mangler (rapportering ufullstendig)"]

{"sheet":"Hasvik","index":14,"n_rows":177,"n_cols":9,"rows_kept":177,"cut":false,"hidden":false,"merged":[[12,1,12,8],[13,1,14,1],[13,2,13,3],[13,4,13,7],[13,8,14,8],[15,8,17,8],[1,1,1,8],[2,2,2,8],[3,2,3,8],[4,2,4,8],[5,2,5,8],[11,1,11,8],[28,1,28,8],[29,1,30,1],[29,2,29,3],[29,4,29,7],[29,8,30,8],[31,8,38,8],[18,1,18,8],[19,1,20,1],[19,2,19,3],[19,4,19,7],[19,8,20,8],[21,8,27,8],[51,1,51,8],[52,1,53,1],[52,2,52,3],[52,4,52,7],[52,8,53,8],[54,8,58,8],[39,1,39,8],[40,1,41,1],[40,2,40,3],[40,4,40,7],[40,8,41,8],[42,8,50,8],[67,1,67,8],[68,2,68,7],[68,8,71,8],[69,2,69,7],[70,2,70,7],[71,2,71,7],[59,1,59,8],[60,1,61,1],[60,2,60,3],[60,4,60,7],[60,8,61,8],[62,8,66,8],[83,1,83,8],[84,1,84,8],[85,1,85,2],[85,4,85,8],[86,1,86,2],[86,4,86,8],[72,1,72,8],[73,1,73,8],[75,1,75,8],[76,1,77,1],[76,2,76,4],[76,5,76,8],[90,1,90,2],[90,4,90,8],[91,1,91,2],[91,4,91,8],[92,1,92,2],[92,4,92,8],[87,1,87,2],[87,4,87,8],[88,1,88,2],[88,4,88,8],[89,1,89,2],[89,4,89,8],[98,1,98,8],[99,1,99,8],[100,1,100,8],[101,1,101,8],[102,1,102,8],[103,1,103,8],[93,1,93,2],[93,4,93,8],[94,1,94,8],[95,1,95,8],[96,1,96,8],[97,1,97,8],[112,1,112,2],[113,1,113,2],[114,1,114,2],[115,1,115,2],[116,1,116,2],[117,1,117,2],[104,1,104,8],[105,1,105,8],[106,1,106,3],[106,4,106,8],[107,1,107,2],[107,4,118,8],[108,1,108,3],[109,1,109,2],[110,1,110,2],[111,1,111,2],[122,1,122,8],[123,1,123,2],[123,3,123,8],[124,1,124,2],[124,3,124,8],[126,1,126,7],[118,1,118,2],[119,1,119,8],[120,1,120,2],[120,4,120,8],[121,1,121,2],[121,4,121,8],[137,1,137,8],[138,1,140,8],[141,1,141,8],[142,1,144,8],[145,1,145,8],[146,1,148,8],[127,1,127,8],[128,1,129,8],[130,1,130,8],[131,1,132,8],[133,1,133,8],[134,1,136,8],[157,1,157,2],[158,1,158,2],[159,1,159,2],[160,1,160,2],[161,1,161,2],[162,1,162,2],[149,1,149,8],[150,1,150,3],[150,4,150,8],[151,1,151,2],[151,4,162,8],[152,1,152,3],[153,1,153,2],[154,1,154,2],[155,1,155,2],[156,1,156,2],[167,1,167,2],[167,3,167,8],[168,1,168,2],[168,3,168,8],[163,1,163,8],[164,1,164,2],[164,4,164,8],[165,1,165,2],[165,4,165,8],[166,1,166,8]]}
[]
[null,"1. Informasjon om kommunen "]
[null,"1.1. Navn på kommunen"]
[null,"1.2. Kontaktperson"]
[null,"1.3. E-post"]
[null,"1.4. Telefon"]
[]
[null,"Rapportering fra kommunen til Fylkesmannen"]
[null," - Kap761, post 68 \" Kommunalt kompetanse- og innovasjonstilskudd\""]
[null," - Kap761, post 78 \" Nasjonalt velferdsteknologiprogram - innføring av velferdsteknologiske løsninger\""]
[]
[null,"2. Kompetansetiltak (grunn-, videre- og etterutdanning)"]
[null,"2.1. Videregående skole, fag- og yrkesopplæring innen helse (fagbrev)"]
[null,"Utdanningstype","Måloppnåelse (antall ansatte)",null,"Økonomirapportering",null,null,null,"Merknader\n(nærmere om hvilken annen utdanning)"]
[null,null,"Fullført utdanning\n","Samlet antall fullførte og under utdanning ","Søkt beløp","Innvilget beløp ","Ubrukt \nønkes overført","Ubrukt\nbetales tilbake"]
[null,"a. Helsefagarbeider",0,0,0,0,0,0]
[null,"b. Annen utdanning på videregående skolenivå",0,0,0,0,0,0]
[null,"Sum :",{"$f":"SUM(C16:C17)","v":0},{"$f":"SUM(D16:D17)","v":0},{"$f":"SUM(E16:E17)","v":0},{"$f":"SUM(F16:F17)","v":0},{"$f":"SUM(G16:G17)","v":0},0]
[null,"2.2. Fagskoleutdanning"]
[null,"Utdanningstype","Måloppnåelse (antall ansatte)",null,"Økonomirapportering",null,null,null,"Merknader\n(nærmere om hvilken annen utdanning)"]
[null,null,"Fullført utdanning\n","Samlet antall fullførte og under utdanning","Søkt beløp","Innvilget beløp ","Ubrukt \nønkes overført","Ubrukt\nbetales tilbake"]
[null,"a. Psykisk helsearbeid og rusarbeid",0,0,0,0,0,0]
[null,"b. Eldreomsorg/demens",0,0,0,0,0,0]
[null,"c. Habilitering/rehabilitering",0,0,0,0,0,0]
[null,"d. Kreftomsorg/lindrende behandling",0,0,0,0,0,0]
[null,"e. Veiledning",0,0,0,0,0,0]
[null,"f. Annen fagskoleutdanning",0,0,0,0,0,0]
[null,"Sum :",{"$f":"SUM(C22:C27)","v":0},{"$f":"SUM(D22:D27)","v":0},{"$f":"SUM(E22:E27)","v":0},{"$f":"SUM(F22:F27)","v":0},0,0]
[null,"  2.3. Bachelorutdanning helse- og sosialfag"]
[null,"Utdanningstype","Måloppnåelse (antall ansatte)",null,"Økonomirapportering",null,null,null,"Merknader\n(nærmere om hvilken annen utdanning)"]
[null,null,"Fullført utdanning\n","Samlet antall fullførte og under utdanning","Søkt beløp","Innvilget beløp ","Ubrukt \nønkes overført","Ubrukt\nbetales tilbake"]
[null,"a. Sykepleie",0,0,0,0,0,0]
[null,"b. Vernepleie",0,0,0,0,0,0]
[null,"c. Fysioterapi",0,0,0,0,0,0]
[null,"d. Ergoterapi",0,0,0,0,0,0]
[null,"e. Sosial arbeid (sosionom)",0,0,0,0,0,0]
[null,"f. Barnevernspedagogikk",0,0,0,0,0,0]
[null,"g. Annen bachelorutdanning",0,0,0,0,0,0]
[null,"Sum :",{"$f":"SUM(C32:C38)","v":0},{"$f":"SUM(D32:D38)","v":0},{"$f":"SUM(E32:E38)","v":0},{"$f":"SUM(F32:F38)","v":0},0,0]
[null,"  2.4. Videreutdanning og mastergradutdanning (påbygg bachelorutdanning)"]
[null,"Utdanningstype","Måloppnåelse (antall ansatte)",null,"Økonomirapportering",null,null,null,"Merknader\n(nærmere om hvilken annen utdanning)"]
[null,null,"Fullført utdanning\n","Samlet antall fullførte og under utdanning","Søkt beløp","Innvilget beløp ","Ubrukt \nønkes overført","Ubrukt\nbetales tilbake"]
[null,"a. Psykisk helsearbeid og rusarbeid",0,0,0,0,0,0]
[null,"b. Tverrfaglig videreutdanning \n     i psykososialt arbeid med barn og unge",0,0,0,0,0,0]
[null,"c. Eldreomsorg/demens",0,0,0,0,0,0]
[null,"d. Kreftomsorg/lindrende pleie",0,0,0,0,0,0]
[null,"e. Habilitering/rehabilitering",0,0,0,0,0,0]
[null,"f. Veiledning",0,0,0,0,0,0]
[null,"g. Lederutdanning",0,0,0,0,0,0]
[null,"h. Annen videreutdanning og/eller masterutdanning",0,0,0,0,0,0]
[null,"Sum :",{"$f":"SUM(C43:C50)","v":0},{"$f":"SUM(D43:D50)","v":0},{"$f":"SUM(E43:E50)","v":0},{"$f":"SUM(F43:F50)","v":0},0,0]
[null,"2.5. ABC-opplæring"]
[null,"Opplæringstype","Måloppnåelse (antall ansatte)",null,"Økonomirapportering",null,null,null,"Merknader"]
[null,null,"Fullført opplæring ","Samlet antall fullførte og under opplæring ","Søkt beløp","Innvilget beløp ","Ubrukt \nønkes overført","Ubrukt\nbetales tilbake"]
[null,"a. Demensomsorgens ABC",0,0,0,0,0,0]
[null,"b. Eldreomsorgens ABC",0,0,0,0,0,0]
[null,"c. Mitt livs ABC",0,0,0,0,0,0]
[null,"d. Velferdsteknologien ABC",0,0,0,0,0,0]
[null,"Sum :",{"$f":"SUM(C55:C58)","v":0},{"$f":"SUM(D55:D58)","v":0},{"$f":"SUM(E55:E58)","v":0},{"$f":"SUM(F55:F58)","v":0},{"$f":"SUM(G55:G58)","v":0},{"$f":"SUM(H55:H58)","v":0}]
[null,"2.6. Annen internopplæring / korte etterutdanninger /kurs mv."]
[null,"Opplæringstype","Måloppnåelse (antall ansatte)",null,"Økonomirapportering",null,null,null,"Merknader\n(nærmere om hvilken annen opplæring)"]
[null,null,"Fullført utdanning\n/ opplæring ","Samlet antall fullførte og under utdanning / opplæring ","Søkt beløp","Innvilget beløp ","Ubrukt \nønkes overført","Ubrukt\nbetales tilbake"]
[null,"a.  Innen psykisk helsearbeid og rusfeltet",0,0,0,0,0,0]
[null,"b. Innen eldreomsorg og demensfeltet",0,0,0,0,0,0]
[null,"c. Annet",0,0,0,0,0,0]
[null,"Sum :",{"$f":"SUM(C63:C65)","v":0},0,{"$f":"SUM(E63:E65)","v":0},{"$f":"SUM(F63:F65)","v":0},{"$f":"SUM(G63:G65)","v":0},{"$f":"SUM(H63:H65)","v":0}]
[null,"Total sum (inkludert 2.7.) :",{"$f":"C18+C28+C39+C51+C59+C66","v":0},{"$f":"D18+D28+D39+D51+D59+D66","v":0},{"$f":"E18+E28+E39+E51+E59+E66+C69","v":0},{"$f":"F18+F28+F39+F51+F59+F66+C70","v":0},{"$f":"G18+G28+G39+G51+G59+G66+C71","v":0},{"$f":"H18+H28+H39+H51+H59+H66+C72","v":0}]
[null,"2.7. Andre kompetansehevende tiltak"]
[null,"a. Søkt beløp"]
[null,"b. Innvilget beløp "]
[null,"c. Ubrukt, ønkes overført"]
[null,"d. Ubrukt, betales tilbake"]
[null,"e. Beskrivelse av tiltaket og hva tilskuddet har gått til."]
[]
[]
[null,"3. Opplæringstilskudd BPA (brukerstyrt personlig assistanse)"]
[null,null,"Måloppnåelse (antall personer)",null,null,"Økonomirapportering"]
[null,null,"Søkt ","Innvilget","Gjennomført","Søkt beløp","Utbetalt beløp","Ubrukt \nønkes overført","Ubrukt\nbetales tilbake"]
[null,"a. Arbeidsledere som har fått tilskudd til opplæring",0,0,0,0,0,0,0]
[null,"b. Saksbehandlere som har fått tilskudd til opplæring",0,0,0,0,0,0,0]
[null,"c. Assistenter som har fått tilskudd til opplæring",0,0,0,0,0,0,0]
[null,"Sum :",{"$f":"SUM(C79:C81)","v":0},{"$f":"SUM(D79:D81)","v":0},0,0,0,0,0]
[]
[null,"4. Innovasjonsprosjekter"]
[null,"4.1. Tema for prosjektene det rapporteres på"]
[null,"Tema ",null,"Antall prosjekter","Tittel på prosjekt/merknader"]
[null,"a. Velferdsteknologiske løsninger"]
[null,"b. Samspill med pårørende og frivillige i omsorgssektoren generelt og  \n    demensomsorgen spesielt."]
[null,"c. Legemiddelhåndtering"]
[null,"d. Ernæring"]
[null,"e. Fritidsaktivitet med assistanse"]
[null,"f. Kulturopplevelser"]
[null,"g. Annet"]
[null,"Sum :",null,{"$f":"SUM(D87:D93)","v":0}]
[null,"4.2. Rapportering på kriterier for måloppnåelse \n * Forskningsrapporter og annen dokumentasjon fra innovasjonsprosjekter under denne tilskuddsordningen skal i tillegg sendes Senter for Omsorgsforskning, \n     postmottak@hig.no, Høgskolen i Gjøvik, Postboks 191, 2802 Gjøvik."]
[null,"a. Beskrivelse av brukernes erfaringer og opplevd nytte"]
[]
[null,"b. I hvilken grad har behovet for kompenserende tjenester blitt redusert/vise til redusert behov for kompenserende tjenester?"]
[]
[null,"c. I hvilken grad har nye løsninger gitt kvalitative og økonomiske gevinster for brukerne og kommunen?"]
[]
[null,"d. I hvilken grad har tiltaket overføringsverdi til andre kommuner og betydning for praksis?"]
[]
[null,"e. I hvilken grad og hvordan har innovasjonsmetodikk blitt benyttet i prosjektet?"]
[]
[null,"4.3. Regnskap for innovasjonsprosjekt"]
[null,"Inntektekter",null,null,"Merknader"]
[null,"a. Tilskuddsbeløp fra Fylkesmannen",null,0]
[null,"Utgifter"]
[null,"b. Lønnsutgifter med sosiale utgifter ",null,0]
[null,"c. Reiseutgifter, arrangement, møter, konferanser",null,0]
[null,"d. Konsulenttjenester",null,0]
[null,"e. Trykking, publikasjoner, kunngjøringer, utsending og distribusjonskostnader ",null,0]
[null,"f. Investeringer/ inventar/ utstyr",null,0]
[null,"g. Driftsutgifter, forbruksmateriell og kontortjenester inkludert lokaler og energi",null,0]
[null,"h. Andre utgifter (spesifiser i merknadsteltet)",null,0]
[null,"Sum utgifter",null,{"$f":"SUM(D110:D116)","v":0}]
[null,"Ubrukt tilskudd på rapporteringstidspunktet",null,{"$f":"SUM(D108-D117)","v":0}]
[null,"Søkes overført",null,0]
[null,"4.4. Informasjon om inntekter fra andre kilder"]
[null,"a. Inntekter fra andre kilder/statlige prosjekt",null,0]
[null,"b. Egenfinansiering",null,0]
[null,"4.5. Revisoruttalelse"]
[null,"a. Revisoruttalelse (velg ett alternativ fra nedtrekksliste i neste rute)"]
[null,"b. Kommentarer til revisoruttalelse"]
[]
[null,"5. Nasjonalt velferdsteknologiprogram - innføring av velferdsteknologiske løsninger\n    * Rapportering for punktene ( fra 5.1. til 5.6.) kan sendes som eget vedlegg"]
[null,"5.1. Følges oppgitt fremdriftsplan i prosjektet?  (Inntil 300 ord)"]
[]
[]
[null,"5.2. Hvem er samarbeidspartnere i prosjektet og hvordan er status med tanke på samarbeid? (Inntil 300 ord)"]
[]
[]
[null,"5.3. Hva er status for implementering av velferdsteknologi i kommunene etter fastsatte måltall, hvilke tjenesteinnovasjoner som er gjennomført og   hvilke endringer dette har resultert i? \n      (Inntil 600 ord)"]
[]
[]
[]
[null,"5.4. Hva er forventede og realiserte gevinster av prosjektet for kommunen (spart tid, unngåtte kostnader, økt kvalitet)?  (Inntil 600 ord)"]
[]
[]
[]
[null,"5.5. Hvordan er kommunens planer for skalering av løsningene og overgang til løpende driftsfase, herunder planer for investering og drift av løsninger? (Inntil 600 ord)"]
[]
[]
[]
[null,"5.6. Hvordan er brukermedvirkning sikret i prosjektet? Angi på hvilken måte pasienter, brukere og pårørende er involvert? Hva er resultater for brukerne?(Inntil 600 ord)"]
[]
[]
[]
[null,"5.7. Regnskap for nasjonalt velferdsteknologiprogram - innføring av velferdsteknologiske løsninger"]
[null,"Inntektekter",null,null,"Merknader"]
[null,"a. Tilskuddsbeløp fra Fylkesmannen",null,0]
[null,"Utgifter"]
[null,"b. Lønnsutgifter med sosiale utgifter ",null,0]
[null,"c. Reiseutgifter, arrangement, møter, konferanser",null,0]
[null,"d. Konsulenttjenester",null,0]
[null,"e. Trykking, publikasjoner, kunngjøringer, utsending og distribusjonskostnader ",null,0]
[null,"f. Investeringer/ inventar/ utstyr",null,0]
[null,"g. Driftsutgifter, forbruksmateriell og kontortjenester inkludert lokaler og energi",null,0]
[null,"h. Andre utgifter (spesifiser i merknadsteltet)",null,0]
[null,"Sum utgifter",null,{"$f":"SUM(D154:D160)","v":0}]
[null,"Ubrukt tilskudd på rapporteringstidspunktet",null,{"$f":"SUM(D152-D161)","v":0}]
[null,"Søkes overført",null,0]
[null,"5.8. Informasjon om inntekter fra andre kilder"]
[null,"a. Inntekter fra andre kilder/statlige prosjekt",null,0]
[null,"b. Egenfinansiering",null,0]
[null,"5.9. Revisoruttalelse"]
[null,"a. Revisoruttalelse (velg ett alternativ fra nedtrekksliste i neste rute)"]
[null,"b. Kommentarer til revisoruttalelse"]
[]
[]
[null,null,null,"Dette er styringsarket. Det kan skjules."]
[null,null,null,"Revisoruttalelse"]
[null,null,null,"Revisoruttalelse foreligger uten merknader"]
[null,null,null,"Revisoruttalelse foreligger med merknader"]
[null,null,null,"I tilskuddsbrevet er det ikke krav til revisoruttalelse"]
[null,null,null,"Revisoruttalelse mangler (rapportering ufullstendig)"]

{"sheet":"Loppa","index":15,"n_rows":177,"n_cols":9,"rows_kept":177,"cut":false,"hidden":false,"merged":[[12,1,12,8],[13,1,14,1],[13,2,13,3],[13,4,13,7],[13,8,14,8],[15,8,17,8],[1,1,1,8],[2,2,2,8],[3,2,3,8],[4,2,4,8],[5,2,5,8],[11,1,11,8],[28,1,28,8],[29,1,30,1],[29,2,29,3],[29,4,29,7],[29,8,30,8],[31,8,38,8],[18,1,18,8],[19,1,20,1],[19,2,19,3],[19,4,19,7],[19,8,20,8],[21,8,27,8],[51,1,51,8],[52,1,53,1],[52,2,52,3],[52,4,52,7],[52,8,53,8],[54,8,58,8],[39,1,39,8],[40,1,41,1],[40,2,40,3],[40,4,40,7],[40,8,41,8],[42,8,50,8],[67,1,67,8],[68,2,68,7],[68,8,71,8],[69,2,69,7],[70,2,70,7],[71,2,71,7],[59,1,59,8],[60,1,61,1],[60,2,60,3],[60,4,60,7],[60,8,61,8],[62,8,66,8],[83,1,83,8],[84,1,84,8],[85,1,85,2],[85,4,85,8],[86,1,86,2],[86,4,86,8],[72,1,72,8],[73,1,73,8],[75,1,75,8],[76,1,77,1],[76,2,76,4],[76,5,76,8],[90,1,90,2],[90,4,90,8],[91,1,91,2],[91,4,91,8],[92,1,92,2],[92,4,92,8],[87,1,87,2],[87,4,87,8],[88,1,88,2],[88,4,88,8],[89,1,89,2],[89,4,89,8],[98,1,98,8],[99,1,99,8],[100,1,100,8],[101,1,101,8],[102,1,102,8],[103,1,103,8],[93,1,93,2],[93,4,93,8],[94,1,94,8],[95,1,95,8],[96,1,96,8],[97,1,97,8],[112,1,112,2],[113,1,113,2],[114,1,114,2],[115,1,115,2],[116,1,116,2],[117,1,117,2],[104,1,104,8],[105,1,105,8],[106,1,106,3],[106,4,106,8],[107,1,107,2],[107,4,118,8],[108,1,108,3],[109,1,109,2],[110,1,110,2],[111,1,111,2],[122,1,122,8],[123,1,123,2],[123,3,123,8],[124,1,124,2],[124,3,124,8],[126,1,126,7],[118,1,118,2],[119,1,119,8],[120,1,120,2],[120,4,120,8],[121,1,121,2],[121,4,121,8],[137,1,137,8],[138,1,140,8],[141,1,141,8],[142,1,144,8],[145,1,145,8],[146,1,148,8],[127,1,127,8],[128,1,129,8],[130,1,130,8],[131,1,132,8],[133,1,133,8],[134,1,136,8],[157,1,157,2],[158,1,158,2],[159,1,159,2],[160,1,160,2],[161,1,161,2],[162,1,162,2],[149,1,149,8],[150,1,150,3],[150,4,150,8],[151,1,151,2],[151,4,162,8],[152,1,152,3],[153,1,153,2],[154,1,154,2],[155,1,155,2],[156,1,156,2],[167,1,167,2],[167,3,167,8],[168,1,168,2],[168,3,168,8],[163,1,163,8],[164,1,164,2],[164,4,164,8],[165,1,165,2],[165,4,165,8],[166,1,166,8]]}
[]
[null,"1. Informasjon om kommunen "]
[null,"1.1. Navn på kommunen"]
[null,"1.2. Kontaktperson"]
[null,"1.3. E-post"]
[null,"1.4. Telefon"]
[]
[null,"Rapportering fra kommunen til Fylkesmannen"]
[null," - Kap761, post 68 \" Kommunalt kompetanse- og innovasjonstilskudd\""]
[null," - Kap761, post 78 \" Nasjonalt velferdsteknologiprogram - innføring av velferdsteknologiske løsninger\""]
[]
[null,"2. Kompetansetiltak (grunn-, videre- og etterutdanning)"]
[null,"2.1. Videregående skole, fag- og yrkesopplæring innen helse (fagbrev)"]
[null,"Utdanningstype","Måloppnåelse (antall ansatte)",null,"Økonomirapportering",null,null,null,"Merknader\n(nærmere om hvilken annen utdanning)"]
[null,null,"Fullført utdanning\n","Samlet antall fullførte og under utdanning ","Søkt beløp","Innvilget beløp ","Ubrukt \nønkes overført","Ubrukt\nbetales tilbake"]
[null,"a. Helsefagarbeider",0,0,0,0,0,0]
[null,"b. Annen utdanning på videregående skolenivå",0,0,0,0,0,0]
[null,"Sum :",{"$f":"SUM(C16:C17)","v":0},{"$f":"SUM(D16:D17)","v":0},{"$f":"SUM(E16:E17)","v":0},{"$f":"SUM(F16:F17)","v":0},{"$f":"SUM(G16:G17)","v":0},0]
[null,"2.2. Fagskoleutdanning"]
[null,"Utdanningstype","Måloppnåelse (antall ansatte)",null,"Økonomirapportering",null,null,null,"Merknader\n(nærmere om hvilken annen utdanning)"]
[null,null,"Fullført utdanning\n","Samlet antall fullførte og under utdanning","Søkt beløp","Innvilget beløp ","Ubrukt \nønkes overført","Ubrukt\nbetales tilbake"]
[null,"a. Psykisk helsearbeid og rusarbeid",0,0,0,0,0,0]
[null,"b. Eldreomsorg/demens",0,0,0,0,0,0]
[null,"c. Habilitering/rehabilitering",0,0,0,0,0,0]
[null,"d. Kreftomsorg/lindrende behandling",0,0,0,0,0,0]
[null,"e. Veiledning",0,0,0,0,0,0]
[null,"f. Annen fagskoleutdanning",0,0,0,0,0,0]
[null,"Sum :",{"$f":"SUM(C22:C27)","v":0},{"$f":"SUM(D22:D27)","v":0},{"$f":"SUM(E22:E27)","v":0},{"$f":"SUM(F22:F27)","v":0},0,0]
[null,"  2.3. Bachelorutdanning helse- og sosialfag"]
[null,"Utdanningstype","Måloppnåelse (antall ansatte)",null,"Økonomirapportering",null,null,null,"Merknader\n(nærmere om hvilken annen utdanning)"]
[null,null,"Fullført utdanning\n","Samlet antall fullførte og under utdanning","Søkt beløp","Innvilget beløp ","Ubrukt \nønkes overført","Ubrukt\nbetales tilbake"]
[null,"a. Sykepleie",0,0,0,0,0,0]
[null,"b. Vernepleie",0,0,0,0,0,0]
[null,"c. Fysioterapi",0,0,0,0,0,0]
[null,"d. Ergoterapi",0,0,0,0,0,0]
[null,"e. Sosial arbeid (sosionom)",0,0,0,0,0,0]
[null,"f. Barnevernspedagogikk",0,0,0,0,0,0]
[null,"g. Annen bachelorutdanning",0,0,0,0,0,0]
[null,"Sum :",{"$f":"SUM(C32:C38)","v":0},{"$f":"SUM(D32:D38)","v":0},{"$f":"SUM(E32:E38)","v":0},{"$f":"SUM(F32:F38)","v":0},0,0]
[null,"  2.4. Videreutdanning og mastergradutdanning (påbygg bachelorutdanning)"]
[null,"Utdanningstype","Måloppnåelse (antall ansatte)",null,"Økonomirapportering",null,null,null,"Merknader\n(nærmere om hvilken annen utdanning)"]
[null,null,"Fullført utdanning\n","Samlet antall fullførte og under utdanning","Søkt beløp","Innvilget beløp ","Ubrukt \nønkes overført","Ubrukt\nbetales tilbake"]
[null,"a. Psykisk helsearbeid og rusarbeid",0,0,0,0,0,0]
[null,"b. Tverrfaglig videreutdanning \n     i psykososialt arbeid med barn og unge",0,0,0,0,0,0]
[null,"c. Eldreomsorg/demens",0,0,0,0,0,0]
[null,"d. Kreftomsorg/lindrende pleie",0,0,0,0,0,0]
[null,"e. Habilitering/rehabilitering",0,0,0,0,0,0]
[null,"f. Veiledning",0,0,0,0,0,0]
[null,"g. Lederutdanning",0,0,0,0,0,0]
[null,"h. Annen videreutdanning og/eller masterutdanning",0,0,0,0,0,0]
[null,"Sum :",{"$f":"SUM(C43:C50)","v":0},{"$f":"SUM(D43:D50)","v":0},{"$f":"SUM(E43:E50)","v":0},{"$f":"SUM(F43:F50)","v":0},0,0]
[null,"2.5. ABC-opplæring"]
[null,"Opplæringstype","Måloppnåelse (antall ansatte)",null,"Økonomirapportering",null,null,null,"Merknader"]
[null,null,"Fullført opplæring ","Samlet antall fullførte og under opplæring ","Søkt beløp","Innvilget beløp ","Ubrukt \nønkes overført","Ubrukt\nbetales tilbake"]
[null,"a. Demensomsorgens ABC",0,0,0,0,0,0]
[null,"b. Eldreomsorgens ABC",0,0,0,0,0,0]
[null,"c. Mitt livs ABC",0,0,0,0,0,0]
[null,"d. Velferdsteknologien ABC",0,0,0,0,0,0]
[null,"Sum :",{"$f":"SUM(C55:C58)","v":0},{"$f":"SUM(D55:D58)","v":0},{"$f":"SUM(E55:E58)","v":0},{"$f":"SUM(F55:F58)","v":0},{"$f":"SUM(G55:G58)","v":0},{"$f":"SUM(H55:H58)","v":0}]
[null,"2.6. Annen internopplæring / korte etterutdanninger /kurs mv."]
[null,"Opplæringstype","Måloppnåelse (antall ansatte)",null,"Økonomirapportering",null,null,null,"Merknader\n(nærmere om hvilken annen opplæring)"]
[null,null,"Fullført utdanning\n/ opplæring ","Samlet antall fullførte og under utdanning / opplæring ","Søkt beløp","Innvilget beløp ","Ubrukt \nønkes overført","Ubrukt\nbetales tilbake"]
[null,"a.  Innen psykisk helsearbeid og rusfeltet",0,0,0,0,0,0]
[null,"b. Innen eldreomsorg og demensfeltet",0,0,0,0,0,0]
[null,"c. Annet",0,0,0,0,0,0]
[null,"Sum :",{"$f":"SUM(C63:C65)","v":0},0,{"$f":"SUM(E63:E65)","v":0},{"$f":"SUM(F63:F65)","v":0},{"$f":"SUM(G63:G65)","v":0},{"$f":"SUM(H63:H65)","v":0}]
[null,"Total sum (inkludert 2.7.) :",{"$f":"C18+C28+C39+C51+C59+C66","v":0},{"$f":"D18+D28+D39+D51+D59+D66","v":0},{"$f":"E18+E28+E39+E51+E59+E66+C69","v":0},{"$f":"F18+F28+F39+F51+F59+F66+C70","v":0},{"$f":"G18+G28+G39+G51+G59+G66+C71","v":0},{"$f":"H18+H28+H39+H51+H59+H66+C72","v":0}]
[null,"2.7. Andre kompetansehevende tiltak"]
[null,"a. Søkt beløp"]
[null,"b. Innvilget beløp "]
[null,"c. Ubrukt, ønkes overført"]
[null,"d. Ubrukt, betales tilbake"]
[null,"e. Beskrivelse av tiltaket og hva tilskuddet har gått til."]
[]
[]
[null,"3. Opplæringstilskudd BPA (brukerstyrt personlig assistanse)"]
[null,null,"Måloppnåelse (antall personer)",null,null,"Økonomirapportering"]
[null,null,"Søkt ","Innvilget","Gjennomført","Søkt beløp","Utbetalt beløp","Ubrukt \nønkes overført","Ubrukt\nbetales tilbake"]
[null,"a. Arbeidsledere som har fått tilskudd til opplæring",0,0,0,0,0,0,0]
[null,"b. Saksbehandlere som har fått tilskudd til opplæring",0,0,0,0,0,0,0]
[null,"c. Assistenter som har fått tilskudd til opplæring",0,0,0,0,0,0,0]
[null,"Sum :",{"$f":"SUM(C79:C81)","v":0},{"$f":"SUM(D79:D81)","v":0},0,0,0,0,0]
[]
[null,"4. Innovasjonsprosjekter"]
[null,"4.1. Tema for prosjektene det rapporteres på"]
[null,"Tema ",null,"Antall prosjekter","Tittel på prosjekt/merknader"]
[null,"a. Velferdsteknologiske løsninger"]
[null,"b. Samspill med pårørende og frivillige i omsorgssektoren generelt og  \n    demensomsorgen spesielt."]
[null,"c. Legemiddelhåndtering"]
[null,"d. Ernæring"]
[null,"e. Fritidsaktivitet med assistanse"]
[null,"f. Kulturopplevelser"]
[null,"g. Annet"]
[null,"Sum :",null,{"$f":"SUM(D87:D93)","v":0}]
[null,"4.2. Rapportering på kriterier for måloppnåelse \n * Forskningsrapporter og annen dokumentasjon fra innovasjonsprosjekter under denne tilskuddsordningen skal i tillegg sendes Senter for Omsorgsforskning, \n     postmottak@hig.no, Høgskolen i Gjøvik, Postboks 191, 2802 Gjøvik."]
[null,"a. Beskrivelse av brukernes erfaringer og opplevd nytte"]
[]
[null,"b. I hvilken grad har behovet for kompenserende tjenester blitt redusert/vise til redusert behov for kompenserende tjenester?"]
[]
[null,"c. I hvilken grad har nye løsninger gitt kvalitative og økonomiske gevinster for brukerne og kommunen?"]
[]
[null,"d. I hvilken grad har tiltaket overføringsverdi til andre kommuner og betydning for praksis?"]
[]
[null,"e. I hvilken grad og hvordan har innovasjonsmetodikk blitt benyttet i prosjektet?"]
[]
[null,"4.3. Regnskap for innovasjonsprosjekt"]
[null,"Inntektekter",null,null,"Merknader"]
[null,"a. Tilskuddsbeløp fra Fylkesmannen",null,0]
[null,"Utgifter"]
[null,"b. Lønnsutgifter med sosiale utgifter ",null,0]
[null,"c. Reiseutgifter, arrangement, møter, konferanser",null,0]
[null,"d. Konsulenttjenester",null,0]
[null,"e. Trykking, publikasjoner, kunngjøringer, utsending og distribusjonskostnader ",null,0]
[null,"f. Investeringer/ inventar/ utstyr",null,0]
[null,"g. Driftsutgifter, forbruksmateriell og kontortjenester inkludert lokaler og energi",null,0]
[null,"h. Andre utgifter (spesifiser i merknadsteltet)",null,0]
[null,"Sum utgifter",null,{"$f":"SUM(D110:D116)","v":0}]
[null,"Ubrukt tilskudd på rapporteringstidspunktet",null,{"$f":"SUM(D108-D117)","v":0}]
[null,"Søkes overført",null,0]
[null,"4.4. Informasjon om inntekter fra andre kilder"]
[null,"a. Inntekter fra andre kilder/statlige prosjekt",null,0]
[null,"b. Egenfinansiering",null,0]
[null,"4.5. Revisoruttalelse"]
[null,"a. Revisoruttalelse (velg ett alternativ fra nedtrekksliste i neste rute)"]
[null,"b. Kommentarer til revisoruttalelse"]
[]
[null,"5. Nasjonalt velferdsteknologiprogram - innføring av velferdsteknologiske løsninger\n    * Rapportering for punktene ( fra 5.1. til 5.6.) kan sendes som eget vedlegg"]
[null,"5.1. Følges oppgitt fremdriftsplan i prosjektet?  (Inntil 300 ord)"]
[]
[]
[null,"5.2. Hvem er samarbeidspartnere i prosjektet og hvordan er status med tanke på samarbeid? (Inntil 300 ord)"]
[]
[]
[null,"5.3. Hva er status for implementering av velferdsteknologi i kommunene etter fastsatte måltall, hvilke tjenesteinnovasjoner som er gjennomført og   hvilke endringer dette har resultert i? \n      (Inntil 600 ord)"]
[]
[]
[]
[null,"5.4. Hva er forventede og realiserte gevinster av prosjektet for kommunen (spart tid, unngåtte kostnader, økt kvalitet)?  (Inntil 600 ord)"]
[]
[]
[]
[null,"5.5. Hvordan er kommunens planer for skalering av løsningene og overgang til løpende driftsfase, herunder planer for investering og drift av løsninger? (Inntil 600 ord)"]
[]
[]
[]
[null,"5.6. Hvordan er brukermedvirkning sikret i prosjektet? Angi på hvilken måte pasienter, brukere og pårørende er involvert? Hva er resultater for brukerne?(Inntil 600 ord)"]
[]
[]
[]
[null,"5.7. Regnskap for nasjonalt velferdsteknologiprogram - innføring av velferdsteknologiske løsninger"]
[null,"Inntektekter",null,null,"Merknader"]
[null,"a. Tilskuddsbeløp fra Fylkesmannen",null,0]
[null,"Utgifter"]
[null,"b. Lønnsutgifter med sosiale utgifter ",null,0]
[null,"c. Reiseutgifter, arrangement, møter, konferanser",null,0]
[null,"d. Konsulenttjenester",null,0]
[null,"e. Trykking, publikasjoner, kunngjøringer, utsending og distribusjonskostnader ",null,0]
[null,"f. Investeringer/ inventar/ utstyr",null,0]
[null,"g. Driftsutgifter, forbruksmateriell og kontortjenester inkludert lokaler og energi",null,0]
[null,"h. Andre utgifter (spesifiser i merknadsteltet)",null,0]
[null,"Sum utgifter",null,{"$f":"SUM(D154:D160)","v":0}]
[null,"Ubrukt tilskudd på rapporteringstidspunktet",null,{"$f":"SUM(D152-D161)","v":0}]
[null,"Søkes overført",null,0]
[null,"5.8. Informasjon om inntekter fra andre kilder"]
[null,"a. Inntekter fra andre kilder/statlige prosjekt",null,0]
[null,"b. Egenfinansiering",null,0]
[null,"5.9. Revisoruttalelse"]
[null,"a. Revisoruttalelse (velg ett alternativ fra nedtrekksliste i neste rute)"]
[null,"b. Kommentarer til revisoruttalelse"]
[]
[]
[null,null,null,"Dette er styringsarket. Det kan skjules."]
[null,null,null,"Revisoruttalelse"]
[null,null,null,"Revisoruttalelse foreligger uten merknader"]
[null,null,null,"Revisoruttalelse foreligger med merknader"]
[null,null,null,"I tilskuddsbrevet er det ikke krav til revisoruttalelse"]
[null,null,null,"Revisoruttalelse mangler (rapportering ufullstendig)"]

{"sheet":"Alta","index":16,"n_rows":177,"n_cols":9,"rows_kept":177,"cut":false,"hidden":false,"merged":[[12,1,12,8],[13,1,14,1],[13,2,13,3],[13,4,13,7],[13,8,14,8],[15,8,17,8],[1,1,1,8],[2,2,2,8],[3,2,3,8],[4,2,4,8],[5,2,5,8],[11,1,11,8],[28,1,28,8],[29,1,30,1],[29,2,29,3],[29,4,29,7],[29,8,30,8],[31,8,38,8],[18,1,18,8],[19,1,20,1],[19,2,19,3],[19,4,19,7],[19,8,20,8],[21,8,27,8],[51,1,51,8],[52,1,53,1],[52,2,52,3],[52,4,52,7],[52,8,53,8],[54,8,58,8],[39,1,39,8],[40,1,41,1],[40,2,40,3],[40,4,40,7],[40,8,41,8],[42,8,50,8],[67,1,67,8],[68,2,68,7],[68,8,71,8],[69,2,69,7],[70,2,70,7],[71,2,71,7],[59,1,59,8],[60,1,61,1],[60,2,60,3],[60,4,60,7],[60,8,61,8],[62,8,66,8],[83,1,83,8],[84,1,84,8],[85,1,85,2],[85,4,85,8],[86,1,86,2],[86,4,86,8],[72,1,72,8],[73,1,73,8],[75,1,75,8],[76,1,77,1],[76,2,76,4],[76,5,76,8],[90,1,90,2],[90,4,90,8],[91,1,91,2],[91,4,91,8],[92,1,92,2],[92,4,92,8],[87,1,87,2],[87,4,87,8],[88,1,88,2],[88,4,88,8],[89,1,89,2],[89,4,89,8],[98,1,98,8],[99,1,99,8],[100,1,100,8],[101,1,101,8],[102,1,102,8],[103,1,103,8],[93,1,93,2],[93,4,93,8],[94,1,94,8],[95,1,95,8],[96,1,96,8],[97,1,97,8],[112,1,112,2],[113,1,113,2],[114,1,114,2],[115,1,115,2],[116,1,116,2],[117,1,117,2],[104,1,104,8],[105,1,105,8],[106,1,106,3],[106,4,106,8],[107,1,107,2],[107,4,118,8],[108,1,108,3],[109,1,109,2],[110,1,110,2],[111,1,111,2],[122,1,122,8],[123,1,123,2],[123,3,123,8],[124,1,124,2],[124,3,124,8],[126,1,126,7],[118,1,118,2],[119,1,119,8],[120,1,120,2],[120,4,120,8],[121,1,121,2],[121,4,121,8],[137,1,137,8],[138,1,140,8],[141,1,141,8],[142,1,144,8],[145,1,145,8],[146,1,148,8],[127,1,127,8],[128,1,129,8],[130,1,130,8],[131,1,132,8],[133,1,133,8],[134,1,136,8],[157,1,157,2],[158,1,158,2],[159,1,159,2],[160,1,160,2],[161,1,161,2],[162,1,162,2],[149,1,149,8],[150,1,150,3],[150,4,150,8],[151,1,151,2],[151,4,162,8],[152,1,152,3],[153,1,153,2],[154,1,154,2],[155,1,155,2],[156,1,156,2],[167,1,167,2],[167,3,167,8],[168,1,168,2],[168,3,168,8],[163,1,163,8],[164,1,164,2],[164,4,164,8],[165,1,165,2],[165,4,165,8],[166,1,166,8]]}
[]
[null,"1. Informasjon om kommunen "]
[null,"1.1. Navn på kommunen"]
[null,"1.2. Kontaktperson"]
[null,"1.3. E-post"]
[null,"1.4. Telefon"]
[]
[null,"Rapportering fra kommunen til Fylkesmannen"]
[null," - Kap761, post 68 \" Kommunalt kompetanse- og innovasjonstilskudd\""]
[null," - Kap761, post 78 \" Nasjonalt velferdsteknologiprogram - innføring av velferdsteknologiske løsninger\""]
[]
[null,"2. Kompetansetiltak (grunn-, videre- og etterutdanning)"]
[null,"2.1. Videregående skole, fag- og yrkesopplæring innen helse (fagbrev)"]
[null,"Utdanningstype","Måloppnåelse (antall ansatte)",null,"Økonomirapportering",null,null,null,"Merknader\n(nærmere om hvilken annen utdanning)"]
[null,null,"Fullført utdanning\n","Samlet antall fullførte og under utdanning ","Søkt beløp","Innvilget beløp ","Ubrukt \nønkes overført","Ubrukt\nbetales tilbake"]
[null,"a. Helsefagarbeider",0,0,0,0,0,0]
[null,"b. Annen utdanning på videregående skolenivå",0,0,0,0,0,0]
[null,"Sum :",{"$f":"SUM(C16:C17)","v":0},{"$f":"SUM(D16:D17)","v":0},{"$f":"SUM(E16:E17)","v":0},{"$f":"SUM(F16:F17)","v":0},{"$f":"SUM(G16:G17)","v":0},0]
[null,"2.2. Fagskoleutdanning"]
[null,"Utdanningstype","Måloppnåelse (antall ansatte)",null,"Økonomirapportering",null,null,null,"Merknader\n(nærmere om hvilken annen utdanning)"]
[null,null,"Fullført utdanning\n","Samlet antall fullførte og under utdanning","Søkt beløp","Innvilget beløp ","Ubrukt \nønkes overført","Ubrukt\nbetales tilbake"]
[null,"a. Psykisk helsearbeid og rusarbeid",0,0,0,0,0,0]
[null,"b. Eldreomsorg/demens",0,0,0,0,0,0]
[null,"c. Habilitering/rehabilitering",0,0,0,0,0,0]
[null,"d. Kreftomsorg/lindrende behandling",0,0,0,0,0,0]
[null,"e. Veiledning",0,0,0,0,0,0]
[null,"f. Annen fagskoleutdanning",0,0,0,0,0,0]
[null,"Sum :",{"$f":"SUM(C22:C27)","v":0},{"$f":"SUM(D22:D27)","v":0},{"$f":"SUM(E22:E27)","v":0},{"$f":"SUM(F22:F27)","v":0},0,0]
[null,"  2.3. Bachelorutdanning helse- og sosialfag"]
[null,"Utdanningstype","Måloppnåelse (antall ansatte)",null,"Økonomirapportering",null,null,null,"Merknader\n(nærmere om hvilken annen utdanning)"]
[null,null,"Fullført utdanning\n","Samlet antall fullførte og under utdanning","Søkt beløp","Innvilget beløp ","Ubrukt \nønkes overført","Ubrukt\nbetales tilbake"]
[null,"a. Sykepleie",0,0,0,0,0,0]
[null,"b. Vernepleie",0,0,0,0,0,0]
[null,"c. Fysioterapi",0,0,0,0,0,0]
[null,"d. Ergoterapi",0,0,0,0,0,0]
[null,"e. Sosial arbeid (sosionom)",0,0,0,0,0,0]
[null,"f. Barnevernspedagogikk",0,0,0,0,0,0]
[null,"g. Annen bachelorutdanning",0,0,0,0,0,0]
[null,"Sum :",{"$f":"SUM(C32:C38)","v":0},{"$f":"SUM(D32:D38)","v":0},{"$f":"SUM(E32:E38)","v":0},{"$f":"SUM(F32:F38)","v":0},0,0]
[null,"  2.4. Videreutdanning og mastergradutdanning (påbygg bachelorutdanning)"]
[null,"Utdanningstype","Måloppnåelse (antall ansatte)",null,"Økonomirapportering",null,null,null,"Merknader\n(nærmere om hvilken annen utdanning)"]
[null,null,"Fullført utdanning\n","Samlet antall fullførte og under utdanning","Søkt beløp","Innvilget beløp ","Ubrukt \nønkes overført","Ubrukt\nbetales tilbake"]
[null,"a. Psykisk helsearbeid og rusarbeid",0,0,0,0,0,0]
[null,"b. Tverrfaglig videreutdanning \n     i psykososialt arbeid med barn og unge",0,0,0,0,0,0]
[null,"c. Eldreomsorg/demens",0,0,0,0,0,0]
[null,"d. Kreftomsorg/lindrende pleie",0,0,0,0,0,0]
[null,"e. Habilitering/rehabilitering",0,0,0,0,0,0]
[null,"f. Veiledning",0,0,0,0,0,0]
[null,"g. Lederutdanning",0,0,0,0,0,0]
[null,"h. Annen videreutdanning og/eller masterutdanning",0,0,0,0,0,0]
[null,"Sum :",{"$f":"SUM(C43:C50)","v":0},{"$f":"SUM(D43:D50)","v":0},{"$f":"SUM(E43:E50)","v":0},{"$f":"SUM(F43:F50)","v":0},0,0]
[null,"2.5. ABC-opplæring"]
[null,"Opplæringstype","Måloppnåelse (antall ansatte)",null,"Økonomirapportering",null,null,null,"Merknader"]
[null,null,"Fullført opplæring ","Samlet antall fullførte og under opplæring ","Søkt beløp","Innvilget beløp ","Ubrukt \nønkes overført","Ubrukt\nbetales tilbake"]
[null,"a. Demensomsorgens ABC",0,0,0,0,0,0]
[null,"b. Eldreomsorgens ABC",0,0,0,0,0,0]
[null,"c. Mitt livs ABC",0,0,0,0,0,0]
[null,"d. Velferdsteknologien ABC",0,0,0,0,0,0]
[null,"Sum :",{"$f":"SUM(C55:C58)","v":0},{"$f":"SUM(D55:D58)","v":0},{"$f":"SUM(E55:E58)","v":0},{"$f":"SUM(F55:F58)","v":0},{"$f":"SUM(G55:G58)","v":0},{"$f":"SUM(H55:H58)","v":0}]
[null,"2.6. Annen internopplæring / korte etterutdanninger /kurs mv."]
[null,"Opplæringstype","Måloppnåelse (antall ansatte)",null,"Økonomirapportering",null,null,null,"Merknader\n(nærmere om hvilken annen opplæring)"]
[null,null,"Fullført utdanning\n/ opplæring ","Samlet antall fullførte og under utdanning / opplæring ","Søkt beløp","Innvilget beløp ","Ubrukt \nønkes overført","Ubrukt\nbetales tilbake"]
[null,"a.  Innen psykisk helsearbeid og rusfeltet",0,0,0,0,0,0]
[null,"b. Innen eldreomsorg og demensfeltet",0,0,0,0,0,0]
[null,"c. Annet",0,0,0,0,0,0]
[null,"Sum :",{"$f":"SUM(C63:C65)","v":0},0,{"$f":"SUM(E63:E65)","v":0},{"$f":"SUM(F63:F65)","v":0},{"$f":"SUM(G63:G65)","v":0},{"$f":"SUM(H63:H65)","v":0}]
[null,"Total sum (inkludert 2.7.) :",{"$f":"C18+C28+C39+C51+C59+C66","v":0},{"$f":"D18+D28+D39+D51+D59+D66","v":0},{"$f":"E18+E28+E39+E51+E59+E66+C69","v":0},{"$f":"F18+F28+F39+F51+F59+F66+C70","v":0},{"$f":"G18+G28+G39+G51+G59+G66+C71","v":0},{"$f":"H18+H28+H39+H51+H59+H66+C72","v":0}]
[null,"2.7. Andre kompetansehevende tiltak"]
[null,"a. Søkt beløp"]
[null,"b. Innvilget beløp "]
[null,"c. Ubrukt, ønkes overført"]
[null,"d. Ubrukt, betales tilbake"]
[null,"e. Beskrivelse av tiltaket og hva tilskuddet har gått til."]
[]
[]
[null,"3. Opplæringstilskudd BPA (brukerstyrt personlig assistanse)"]
[null,null,"Måloppnåelse (antall personer)",null,null,"Økonomirapportering"]
[null,null,"Søkt ","Innvilget","Gjennomført","Søkt beløp","Utbetalt beløp","Ubrukt \nønkes overført","Ubrukt\nbetales tilbake"]
[null,"a. Arbeidsledere som har fått tilskudd til opplæring",0,0,0,0,0,0,0]
[null,"b. Saksbehandlere som har fått tilskudd til opplæring",0,0,0,0,0,0,0]
[null,"c. Assistenter som har fått tilskudd til opplæring",0,0,0,0,0,0,0]
[null,"Sum :",{"$f":"SUM(C79:C81)","v":0},{"$f":"SUM(D79:D81)","v":0},0,0,0,0,0]
[]
[null,"4. Innovasjonsprosjekter"]
[null,"4.1. Tema for prosjektene det rapporteres på"]
[null,"Tema ",null,"Antall prosjekter","Tittel på prosjekt/merknader"]
[null,"a. Velferdsteknologiske løsninger"]
[null,"b. Samspill med pårørende og frivillige i omsorgssektoren generelt og  \n    demensomsorgen spesielt."]
[null,"c. Legemiddelhåndtering"]
[null,"d. Ernæring"]
[null,"e. Fritidsaktivitet med assistanse"]
[null,"f. Kulturopplevelser"]
[null,"g. Annet"]
[null,"Sum :",null,{"$f":"SUM(D87:D93)","v":0}]
[null,"4.2. Rapportering på kriterier for måloppnåelse \n * Forskningsrapporter og annen dokumentasjon fra innovasjonsprosjekter under denne tilskuddsordningen skal i tillegg sendes Senter for Omsorgsforskning, \n     postmottak@hig.no, Høgskolen i Gjøvik, Postboks 191, 2802 Gjøvik."]
[null,"a. Beskrivelse av brukernes erfaringer og opplevd nytte"]
[]
[null,"b. I hvilken grad har behovet for kompenserende tjenester blitt redusert/vise til redusert behov for kompenserende tjenester?"]
[]
[null,"c. I hvilken grad har nye løsninger gitt kvalitative og økonomiske gevinster for brukerne og kommunen?"]
[]
[null,"d. I hvilken grad har tiltaket overføringsverdi til andre kommuner og betydning for praksis?"]
[]
[null,"e. I hvilken grad og hvordan har innovasjonsmetodikk blitt benyttet i prosjektet?"]
[]
[null,"4.3. Regnskap for innovasjonsprosjekt"]
[null,"Inntektekter",null,null,"Merknader"]
[null,"a. Tilskuddsbeløp fra Fylkesmannen",null,0]
[null,"Utgifter"]
[null,"b. Lønnsutgifter med sosiale utgifter ",null,0]
[null,"c. Reiseutgifter, arrangement, møter, konferanser",null,0]
[null,"d. Konsulenttjenester",null,0]
[null,"e. Trykking, publikasjoner, kunngjøringer, utsending og distribusjonskostnader ",null,0]
[null,"f. Investeringer/ inventar/ utstyr",null,0]
[null,"g. Driftsutgifter, forbruksmateriell og kontortjenester inkludert lokaler og energi",null,0]
[null,"h. Andre utgifter (spesifiser i merknadsteltet)",null,0]
[null,"Sum utgifter",null,{"$f":"SUM(D110:D116)","v":0}]
[null,"Ubrukt tilskudd på rapporteringstidspunktet",null,{"$f":"SUM(D108-D117)","v":0}]
[null,"Søkes overført",null,0]
[null,"4.4. Informasjon om inntekter fra andre kilder"]
[null,"a. Inntekter fra andre kilder/statlige prosjekt",null,0]
[null,"b. Egenfinansiering",null,0]
[null,"4.5. Revisoruttalelse"]
[null,"a. Revisoruttalelse (velg ett alternativ fra nedtrekksliste i neste rute)"]
[null,"b. Kommentarer til revisoruttalelse"]
[]
[null,"5. Nasjonalt velferdsteknologiprogram - innføring av velferdsteknologiske løsninger\n    * Rapportering for punktene ( fra 5.1. til 5.6.) kan sendes som eget vedlegg"]
[null,"5.1. Følges oppgitt fremdriftsplan i prosjektet?  (Inntil 300 ord)"]
[]
[]
[null,"5.2. Hvem er samarbeidspartnere i prosjektet og hvordan er status med tanke på samarbeid? (Inntil 300 ord)"]
[]
[]
[null,"5.3. Hva er status for implementering av velferdsteknologi i kommunene etter fastsatte måltall, hvilke tjenesteinnovasjoner som er gjennomført og   hvilke endringer dette har resultert i? \n      (Inntil 600 ord)"]
[]
[]
[]
[null,"5.4. Hva er forventede og realiserte gevinster av prosjektet for kommunen (spart tid, unngåtte kostnader, økt kvalitet)?  (Inntil 600 ord)"]
[]
[]
[]
[null,"5.5. Hvordan er kommunens planer for skalering av løsningene og overgang til løpende driftsfase, herunder planer for investering og drift av løsninger? (Inntil 600 ord)"]
[]
[]
[]
[null,"5.6. Hvordan er brukermedvirkning sikret i prosjektet? Angi på hvilken måte pasienter, brukere og pårørende er involvert? Hva er resultater for brukerne?(Inntil 600 ord)"]
[]
[]
[]
[null,"5.7. Regnskap for nasjonalt velferdsteknologiprogram - innføring av velferdsteknologiske løsninger"]
[null,"Inntektekter",null,null,"Merknader"]
[null,"a. Tilskuddsbeløp fra Fylkesmannen",null,0]
[null,"Utgifter"]
[null,"b. Lønnsutgifter med sosiale utgifter ",null,0]
[null,"c. Reiseutgifter, arrangement, møter, konferanser",null,0]
[null,"d. Konsulenttjenester",null,0]
[null,"e. Trykking, publikasjoner, kunngjøringer, utsending og distribusjonskostnader ",null,0]
[null,"f. Investeringer/ inventar/ utstyr",null,0]
[null,"g. Driftsutgifter, forbruksmateriell og kontortjenester inkludert lokaler og energi",null,0]
[null,"h. Andre utgifter (spesifiser i merknadsteltet)",null,0]
[null,"Sum utgifter",null,{"$f":"SUM(D154:D160)","v":0}]
[null,"Ubrukt tilskudd på rapporteringstidspunktet",null,{"$f":"SUM(D152-D161)","v":0}]
[null,"Søkes overført",null,0]
[null,"5.8. Informasjon om inntekter fra andre kilder"]
[null,"a. Inntekter fra andre kilder/statlige prosjekt",null,0]
[null,"b. Egenfinansiering",null,0]
[null,"5.9. Revisoruttalelse"]
[null,"a. Revisoruttalelse (velg ett alternativ fra nedtrekksliste i neste rute)"]
[null,"b. Kommentarer til revisoruttalelse"]
[]
[]
[null,null,null,"Dette er styringsarket. Det kan skjules."]
[null,null,null,"Revisoruttalelse"]
[null,null,null,"Revisoruttalelse foreligger uten merknader"]
[null,null,null,"Revisoruttalelse foreligger med merknader"]
[null,null,null,"I tilskuddsbrevet er det ikke krav til revisoruttalelse"]
[null,null,null,"Revisoruttalelse mangler (rapportering ufullstendig)"]

{"sheet":"GuovdageaidnuKautokeino","index":17,"n_rows":177,"n_cols":9,"rows_kept":177,"cut":false,"hidden":false,"merged":[[12,1,12,8],[13,1,14,1],[13,2,13,3],[13,4,13,7],[13,8,14,8],[15,8,17,8],[1,1,1,8],[2,2,2,8],[3,2,3,8],[4,2,4,8],[5,2,5,8],[11,1,11,8],[28,1,28,8],[29,1,30,1],[29,2,29,3],[29,4,29,7],[29,8,30,8],[31,8,38,8],[18,1,18,8],[19,1,20,1],[19,2,19,3],[19,4,19,7],[19,8,20,8],[21,8,27,8],[51,1,51,8],[52,1,53,1],[52,2,52,3],[52,4,52,7],[52,8,53,8],[54,8,58,8],[39,1,39,8],[40,1,41,1],[40,2,40,3],[40,4,40,7],[40,8,41,8],[42,8,50,8],[67,1,67,8],[68,2,68,7],[68,8,71,8],[69,2,69,7],[70,2,70,7],[71,2,71,7],[59,1,59,8],[60,1,61,1],[60,2,60,3],[60,4,60,7],[60,8,61,8],[62,8,66,8],[83,1,83,8],[84,1,84,8],[85,1,85,2],[85,4,85,8],[86,1,86,2],[86,4,86,8],[72,1,72,8],[73,1,73,8],[75,1,75,8],[76,1,77,1],[76,2,76,4],[76,5,76,8],[90,1,90,2],[90,4,90,8],[91,1,91,2],[91,4,91,8],[92,1,92,2],[92,4,92,8],[87,1,87,2],[87,4,87,8],[88,1,88,2],[88,4,88,8],[89,1,89,2],[89,4,89,8],[98,1,98,8],[99,1,99,8],[100,1,100,8],[101,1,101,8],[102,1,102,8],[103,1,103,8],[93,1,93,2],[93,4,93,8],[94,1,94,8],[95,1,95,8],[96,1,96,8],[97,1,97,8],[112,1,112,2],[113,1,113,2],[114,1,114,2],[115,1,115,2],[116,1,116,2],[117,1,117,2],[104,1,104,8],[105,1,105,8],[106,1,106,3],[106,4,106,8],[107,1,107,2],[107,4,118,8],[108,1,108,3],[109,1,109,2],[110,1,110,2],[111,1,111,2],[122,1,122,8],[123,1,123,2],[123,3,123,8],[124,1,124,2],[124,3,124,8],[126,1,126,7],[118,1,118,2],[119,1,119,8],[120,1,120,2],[120,4,120,8],[121,1,121,2],[121,4,121,8],[137,1,137,8],[138,1,140,8],[141,1,141,8],[142,1,144,8],[145,1,145,8],[146,1,148,8],[127,1,127,8],[128,1,129,8],[130,1,130,8],[131,1,132,8],[133,1,133,8],[134,1,136,8],[157,1,157,2],[158,1,158,2],[159,1,159,2],[160,1,160,2],[161,1,161,2],[162,1,162,2],[149,1,149,8],[150,1,150,3],[150,4,150,8],[151,1,151,2],[151,4,162,8],[152,1,152,3],[153,1,153,2],[154,1,154,2],[155,1,155,2],[156,1,156,2],[167,1,167,2],[167,3,167,8],[168,1,168,2],[168,3,168,8],[163,1,163,8],[164,1,164,2],[164,4,164,8],[165,1,165,2],[165,4,165,8],[166,1,166,8]]}
[]
[null,"1. Informasjon om kommunen "]
[null,"1.1. Navn på kommunen"]
[null,"1.2. Kontaktperson"]
[null,"1.3. E-post"]
[null,"1.4. Telefon"]
[]
[null,"Rapportering fra kommunen til Fylkesmannen"]
[null," - Kap761, post 68 \" Kommunalt kompetanse- og innovasjonstilskudd\""]
[null," - Kap761, post 78 \" Nasjonalt velferdsteknologiprogram - innføring av velferdsteknologiske løsninger\""]
[]
[null,"2. Kompetansetiltak (grunn-, videre- og etterutdanning)"]
[null,"2.1. Videregående skole, fag- og yrkesopplæring innen helse (fagbrev)"]
[null,"Utdanningstype","Måloppnåelse (antall ansatte)",null,"Økonomirapportering",null,null,null,"Merknader\n(nærmere om hvilken annen utdanning)"]
[null,null,"Fullført utdanning\n","Samlet antall fullførte og under utdanning ","Søkt beløp","Innvilget beløp ","Ubrukt \nønkes overført","Ubrukt\nbetales tilbake"]
[null,"a. Helsefagarbeider",0,0,0,0,0,0]
[null,"b. Annen utdanning på videregående skolenivå",0,0,0,0,0,0]
[null,"Sum :",{"$f":"SUM(C16:C17)","v":0},{"$f":"SUM(D16:D17)","v":0},{"$f":"SUM(E16:E17)","v":0},{"$f":"SUM(F16:F17)","v":0},{"$f":"SUM(G16:G17)","v":0},0]
[null,"2.2. Fagskoleutdanning"]
[null,"Utdanningstype","Måloppnåelse (antall ansatte)",null,"Økonomirapportering",null,null,null,"Merknader\n(nærmere om hvilken annen utdanning)"]
[null,null,"Fullført utdanning\n","Samlet antall fullførte og under utdanning","Søkt beløp","Innvilget beløp ","Ubrukt \nønkes overført","Ubrukt\nbetales tilbake"]
[null,"a. Psykisk helsearbeid og rusarbeid",0,0,0,0,0,0]
[null,"b. Eldreomsorg/demens",0,0,0,0,0,0]
[null,"c. Habilitering/rehabilitering",0,0,0,0,0,0]
[null,"d. Kreftomsorg/lindrende behandling",0,0,0,0,0,0]
[null,"e. Veiledning",0,0,0,0,0,0]
[null,"f. Annen fagskoleutdanning",0,0,0,0,0,0]
[null,"Sum :",{"$f":"SUM(C22:C27)","v":0},{"$f":"SUM(D22:D27)","v":0},{"$f":"SUM(E22:E27)","v":0},{"$f":"SUM(F22:F27)","v":0},0,0]
[null,"  2.3. Bachelorutdanning helse- og sosialfag"]
[null,"Utdanningstype","Måloppnåelse (antall ansatte)",null,"Økonomirapportering",null,null,null,"Merknader\n(nærmere om hvilken annen utdanning)"]
[null,null,"Fullført utdanning\n","Samlet antall fullførte og under utdanning","Søkt beløp","Innvilget beløp ","Ubrukt \nønkes overført","Ubrukt\nbetales tilbake"]
[null,"a. Sykepleie",0,0,0,0,0,0]
[null,"b. Vernepleie",0,0,0,0,0,0]
[null,"c. Fysioterapi",0,0,0,0,0,0]
[null,"d. Ergoterapi",0,0,0,0,0,0]
[null,"e. Sosial arbeid (sosionom)",0,0,0,0,0,0]
[null,"f. Barnevernspedagogikk",0,0,0,0,0,0]
[null,"g. Annen bachelorutdanning",0,0,0,0,0,0]
[null,"Sum :",{"$f":"SUM(C32:C38)","v":0},{"$f":"SUM(D32:D38)","v":0},{"$f":"SUM(E32:E38)","v":0},{"$f":"SUM(F32:F38)","v":0},0,0]
[null,"  2.4. Videreutdanning og mastergradutdanning (påbygg bachelorutdanning)"]
[null,"Utdanningstype","Måloppnåelse (antall ansatte)",null,"Økonomirapportering",null,null,null,"Merknader\n(nærmere om hvilken annen utdanning)"]
[null,null,"Fullført utdanning\n","Samlet antall fullførte og under utdanning","Søkt beløp","Innvilget beløp ","Ubrukt \nønkes overført","Ubrukt\nbetales tilbake"]
[null,"a. Psykisk helsearbeid og rusarbeid",0,0,0,0,0,0]
[null,"b. Tverrfaglig videreutdanning \n     i psykososialt arbeid med barn og unge",0,0,0,0,0,0]
[null,"c. Eldreomsorg/demens",0,0,0,0,0,0]
[null,"d. Kreftomsorg/lindrende pleie",0,0,0,0,0,0]
[null,"e. Habilitering/rehabilitering",0,0,0,0,0,0]
[null,"f. Veiledning",0,0,0,0,0,0]
[null,"g. Lederutdanning",0,0,0,0,0,0]
[null,"h. Annen videreutdanning og/eller masterutdanning",0,0,0,0,0,0]
[null,"Sum :",{"$f":"SUM(C43:C50)","v":0},{"$f":"SUM(D43:D50)","v":0},{"$f":"SUM(E43:E50)","v":0},{"$f":"SUM(F43:F50)","v":0},0,0]
[null,"2.5. ABC-opplæring"]
[null,"Opplæringstype","Måloppnåelse (antall ansatte)",null,"Økonomirapportering",null,null,null,"Merknader"]
[null,null,"Fullført opplæring ","Samlet antall fullførte og under opplæring ","Søkt beløp","Innvilget beløp ","Ubrukt \nønkes overført","Ubrukt\nbetales tilbake"]
[null,"a. Demensomsorgens ABC",0,0,0,0,0,0]
[null,"b. Eldreomsorgens ABC",0,0,0,0,0,0]
[null,"c. Mitt livs ABC",0,0,0,0,0,0]
[null,"d. Velferdsteknologien ABC",0,0,0,0,0,0]
[null,"Sum :",{"$f":"SUM(C55:C58)","v":0},{"$f":"SUM(D55:D58)","v":0},{"$f":"SUM(E55:E58)","v":0},{"$f":"SUM(F55:F58)","v":0},{"$f":"SUM(G55:G58)","v":0},{"$f":"SUM(H55:H58)","v":0}]
[null,"2.6. Annen internopplæring / korte etterutdanninger /kurs mv."]
[null,"Opplæringstype","Måloppnåelse (antall ansatte)",null,"Økonomirapportering",null,null,null,"Merknader\n(nærmere om hvilken annen opplæring)"]
[null,null,"Fullført utdanning\n/ opplæring ","Samlet antall fullførte og under utdanning / opplæring ","Søkt beløp","Innvilget beløp ","Ubrukt \nønkes overført","Ubrukt\nbetales tilbake"]
[null,"a.  Innen psykisk helsearbeid og rusfeltet",0,0,0,0,0,0]
[null,"b. Innen eldreomsorg og demensfeltet",0,0,0,0,0,0]
[null,"c. Annet",0,0,0,0,0,0]
[null,"Sum :",{"$f":"SUM(C63:C65)","v":0},0,{"$f":"SUM(E63:E65)","v":0},{"$f":"SUM(F63:F65)","v":0},{"$f":"SUM(G63:G65)","v":0},{"$f":"SUM(H63:H65)","v":0}]
[null,"Total sum (inkludert 2.7.) :",{"$f":"C18+C28+C39+C51+C59+C66","v":0},{"$f":"D18+D28+D39+D51+D59+D66","v":0},{"$f":"E18+E28+E39+E51+E59+E66+C69","v":0},{"$f":"F18+F28+F39+F51+F59+F66+C70","v":0},{"$f":"G18+G28+G39+G51+G59+G66+C71","v":0},{"$f":"H18+H28+H39+H51+H59+H66+C72","v":0}]
[null,"2.7. Andre kompetansehevende tiltak"]
[null,"a. Søkt beløp"]
[null,"b. Innvilget beløp "]
[null,"c. Ubrukt, ønkes overført"]
[null,"d. Ubrukt, betales tilbake"]
[null,"e. Beskrivelse av tiltaket og hva tilskuddet har gått til."]
[]
[]
[null,"3. Opplæringstilskudd BPA (brukerstyrt personlig assistanse)"]
[null,null,"Måloppnåelse (antall personer)",null,null,"Økonomirapportering"]
[null,null,"Søkt ","Innvilget","Gjennomført","Søkt beløp","Utbetalt beløp","Ubrukt \nønkes overført","Ubrukt\nbetales tilbake"]
[null,"a. Arbeidsledere som har fått tilskudd til opplæring",0,0,0,0,0,0,0]
[null,"b. Saksbehandlere som har fått tilskudd til opplæring",0,0,0,0,0,0,0]
[null,"c. Assistenter som har fått tilskudd til opplæring",0,0,0,0,0,0,0]
[null,"Sum :",{"$f":"SUM(C79:C81)","v":0},{"$f":"SUM(D79:D81)","v":0},0,0,0,0,0]
[]
[null,"4. Innovasjonsprosjekter"]
[null,"4.1. Tema for prosjektene det rapporteres på"]
[null,"Tema ",null,"Antall prosjekter","Tittel på prosjekt/merknader"]
[null,"a. Velferdsteknologiske løsninger"]
[null,"b. Samspill med pårørende og frivillige i omsorgssektoren generelt og  \n    demensomsorgen spesielt."]
[null,"c. Legemiddelhåndtering"]
[null,"d. Ernæring"]
[null,"e. Fritidsaktivitet med assistanse"]
[null,"f. Kulturopplevelser"]
[null,"g. Annet"]
[null,"Sum :",null,{"$f":"SUM(D87:D93)","v":0}]
[null,"4.2. Rapportering på kriterier for måloppnåelse \n * Forskningsrapporter og annen dokumentasjon fra innovasjonsprosjekter under denne tilskuddsordningen skal i tillegg sendes Senter for Omsorgsforskning, \n     postmottak@hig.no, Høgskolen i Gjøvik, Postboks 191, 2802 Gjøvik."]
[null,"a. Beskrivelse av brukernes erfaringer og opplevd nytte"]
[]
[null,"b. I hvilken grad har behovet for kompenserende tjenester blitt redusert/vise til redusert behov for kompenserende tjenester?"]
[]
[null,"c. I hvilken grad har nye løsninger gitt kvalitative og økonomiske gevinster for brukerne og kommunen?"]
[]
[null,"d. I hvilken grad har tiltaket overføringsverdi til andre kommuner og betydning for praksis?"]
[]
[null,"e. I hvilken grad og hvordan har innovasjonsmetodikk blitt benyttet i prosjektet?"]
[]
[null,"4.3. Regnskap for innovasjonsprosjekt"]
[null,"Inntektekter",null,null,"Merknader"]
[null,"a. Tilskuddsbeløp fra Fylkesmannen",null,0]
[null,"Utgifter"]
[null,"b. Lønnsutgifter med sosiale utgifter ",null,0]
[null,"c. Reiseutgifter, arrangement, møter, konferanser",null,0]
[null,"d. Konsulenttjenester",null,0]
[null,"e. Trykking, publikasjoner, kunngjøringer, utsending og distribusjonskostnader ",null,0]
[null,"f. Investeringer/ inventar/ utstyr",null,0]
[null,"g. Driftsutgifter, forbruksmateriell og kontortjenester inkludert lokaler og energi",null,0]
[null,"h. Andre utgifter (spesifiser i merknadsteltet)",null,0]
[null,"Sum utgifter",null,{"$f":"SUM(D110:D116)","v":0}]
[null,"Ubrukt tilskudd på rapporteringstidspunktet",null,{"$f":"SUM(D108-D117)","v":0}]
[null,"Søkes overført",null,0]
[null,"4.4. Informasjon om inntekter fra andre kilder"]
[null,"a. Inntekter fra andre kilder/statlige prosjekt",null,0]
[null,"b. Egenfinansiering",null,0]
[null,"4.5. Revisoruttalelse"]
[null,"a. Revisoruttalelse (velg ett alternativ fra nedtrekksliste i neste rute)"]
[null,"b. Kommentarer til revisoruttalelse"]
[]
[null,"5. Nasjonalt velferdsteknologiprogram - innføring av velferdsteknologiske løsninger\n    * Rapportering for punktene ( fra 5.1. til 5.6.) kan sendes som eget vedlegg"]
[null,"5.1. Følges oppgitt fremdriftsplan i prosjektet?  (Inntil 300 ord)"]
[]
[]
[null,"5.2. Hvem er samarbeidspartnere i prosjektet og hvordan er status med tanke på samarbeid? (Inntil 300 ord)"]
[]
[]
[null,"5.3. Hva er status for implementering av velferdsteknologi i kommunene etter fastsatte måltall, hvilke tjenesteinnovasjoner som er gjennomført og   hvilke endringer dette har resultert i? \n      (Inntil 600 ord)"]
[]
[]
[]
[null,"5.4. Hva er forventede og realiserte gevinster av prosjektet for kommunen (spart tid, unngåtte kostnader, økt kvalitet)?  (Inntil 600 ord)"]
[]
[]
[]
[null,"5.5. Hvordan er kommunens planer for skalering av løsningene og overgang til løpende driftsfase, herunder planer for investering og drift av løsninger? (Inntil 600 ord)"]
[]
[]
[]
[null,"5.6. Hvordan er brukermedvirkning sikret i prosjektet? Angi på hvilken måte pasienter, brukere og pårørende er involvert? Hva er resultater for brukerne?(Inntil 600 ord)"]
[]
[]
[]
[null,"5.7. Regnskap for nasjonalt velferdsteknologiprogram - innføring av velferdsteknologiske løsninger"]
[null,"Inntektekter",null,null,"Merknader"]
[null,"a. Tilskuddsbeløp fra Fylkesmannen",null,0]
[null,"Utgifter"]
[null,"b. Lønnsutgifter med sosiale utgifter ",null,0]
[null,"c. Reiseutgifter, arrangement, møter, konferanser",null,0]
[null,"d. Konsulenttjenester",null,0]
[null,"e. Trykking, publikasjoner, kunngjøringer, utsending og distribusjonskostnader ",null,0]
[null,"f. Investeringer/ inventar/ utstyr",null,0]
[null,"g. Driftsutgifter, forbruksmateriell og kontortjenester inkludert lokaler og energi",null,0]
[null,"h. Andre utgifter (spesifiser i merknadsteltet)",null,0]
[null,"Sum utgifter",null,{"$f":"SUM(D154:D160)","v":0}]
[null,"Ubrukt tilskudd på rapporteringstidspunktet",null,{"$f":"SUM(D152-D161)","v":0}]
[null,"Søkes overført",null,0]
[null,"5.8. Informasjon om inntekter fra andre kilder"]
[null,"a. Inntekter fra andre kilder/statlige prosjekt",null,0]
[null,"b. Egenfinansiering",null,0]
[null,"5.9. Revisoruttalelse"]
[null,"a. Revisoruttalelse (velg ett alternativ fra nedtrekksliste i neste rute)"]
[null,"b. Kommentarer til revisoruttalelse"]
[]
[]
[null,null,null,"Dette er styringsarket. Det kan skjules."]
[null,null,null,"Revisoruttalelse"]
[null,null,null,"Revisoruttalelse foreligger uten merknader"]
[null,null,null,"Revisoruttalelse foreligger med merknader"]
[null,null,null,"I tilskuddsbrevet er det ikke krav til revisoruttalelse"]
[null,null,null,"Revisoruttalelse mangler (rapportering ufullstendig)"]

{"sheet":"Hammerfest","index":18,"n_rows":177,"n_cols":9,"rows_kept":177,"cut":false,"hidden":false,"merged":[[12,1,12,8],[13,1,14,1],[13,2,13,3],[13,4,13,7],[13,8,14,8],[15,8,17,8],[1,1,1,8],[2,2,2,8],[3,2,3,8],[4,2,4,8],[5,2,5,8],[11,1,11,8],[28,1,28,8],[29,1,30,1],[29,2,29,3],[29,4,29,7],[29,8,30,8],[31,8,38,8],[18,1,18,8],[19,1,20,1],[19,2,19,3],[19,4,19,7],[19,8,20,8],[21,8,27,8],[51,1,51,8],[52,1,53,1],[52,2,52,3],[52,4,52,7],[52,8,53,8],[54,8,58,8],[39,1,39,8],[40,1,41,1],[40,2,40,3],[40,4,40,7],[40,8,41,8],[42,8,50,8],[67,1,67,8],[68,2,68,7],[68,8,71,8],[69,2,69,7],[70,2,70,7],[71,2,71,7],[59,1,59,8],[60,1,61,1],[60,2,60,3],[60,4,60,7],[60,8,61,8],[62,8,66,8],[83,1,83,8],[84,1,84,8],[85,1,85,2],[85,4,85,8],[86,1,86,2],[86,4,86,8],[72,1,72,8],[73,1,73,8],[75,1,75,8],[76,1,77,1],[76,2,76,4],[76,5,76,8],[90,1,90,2],[90,4,90,8],[91,1,91,2],[91,4,91,8],[92,1,92,2],[92,4,92,8],[87,1,87,2],[87,4,87,8],[88,1,88,2],[88,4,88,8],[89,1,89,2],[89,4,89,8],[98,1,98,8],[99,1,99,8],[100,1,100,8],[101,1,101,8],[102,1,102,8],[103,1,103,8],[93,1,93,2],[93,4,93,8],[94,1,94,8],[95,1,95,8],[96,1,96,8],[97,1,97,8],[112,1,112,2],[113,1,113,2],[114,1,114,2],[115,1,115,2],[116,1,116,2],[117,1,117,2],[104,1,104,8],[105,1,105,8],[106,1,106,3],[106,4,106,8],[107,1,107,2],[107,4,118,8],[108,1,108,3],[109,1,109,2],[110,1,110,2],[111,1,111,2],[122,1,122,8],[123,1,123,2],[123,3,123,8],[124,1,124,2],[124,3,124,8],[126,1,126,7],[118,1,118,2],[119,1,119,8],[120,1,120,2],[120,4,120,8],[121,1,121,2],[121,4,121,8],[137,1,137,8],[138,1,140,8],[141,1,141,8],[142,1,144,8],[145,1,145,8],[146,1,148,8],[127,1,127,8],[128,1,129,8],[130,1,130,8],[131,1,132,8],[133,1,133,8],[134,1,136,8],[157,1,157,2],[158,1,158,2],[159,1,159,2],[160,1,160,2],[161,1,161,2],[162,1,162,2],[149,1,149,8],[150,1,150,3],[150,4,150,8],[151,1,151,2],[151,4,162,8],[152,1,152,3],[153,1,153,2],[154,1,154,2],[155,1,155,2],[156,1,156,2],[167,1,167,2],[167,3,167,8],[168,1,168,2],[168,3,168,8],[163,1,163,8],[164,1,164,2],[164,4,164,8],[165,1,165,2],[165,4,165,8],[166,1,166,8]]}
[]
[null,"1. Informasjon om kommunen "]
[null,"1.1. Navn på kommunen"]
[null,"1.2. Kontaktperson"]
[null,"1.3. E-post"]
[null,"1.4. Telefon"]
[]
[null,"Rapportering fra kommunen til Fylkesmannen"]
[null," - Kap761, post 68 \" Kommunalt kompetanse- og innovasjonstilskudd\""]
[null," - Kap761, post 78 \" Nasjonalt velferdsteknologiprogram - innføring av velferdsteknologiske løsninger\""]
[]
[null,"2. Kompetansetiltak (grunn-, videre- og etterutdanning)"]
[null,"2.1. Videregående skole, fag- og yrkesopplæring innen helse (fagbrev)"]
[null,"Utdanningstype","Måloppnåelse (antall ansatte)",null,"Økonomirapportering",null,null,null,"Merknader\n(nærmere om hvilken annen utdanning)"]
[null,null,"Fullført utdanning\n","Samlet antall fullførte og under utdanning ","Søkt beløp","Innvilget beløp ","Ubrukt \nønkes overført","Ubrukt\nbetales tilbake"]
[null,"a. Helsefagarbeider",0,0,0,0,0,0]
[null,"b. Annen utdanning på videregående skolenivå",0,0,0,0,0,0]
[null,"Sum :",{"$f":"SUM(C16:C17)","v":0},{"$f":"SUM(D16:D17)","v":0},{"$f":"SUM(E16:E17)","v":0},{"$f":"SUM(F16:F17)","v":0},{"$f":"SUM(G16:G17)","v":0},0]
[null,"2.2. Fagskoleutdanning"]
[null,"Utdanningstype","Måloppnåelse (antall ansatte)",null,"Økonomirapportering",null,null,null,"Merknader\n(nærmere om hvilken annen utdanning)"]
[null,null,"Fullført utdanning\n","Samlet antall fullførte og under utdanning","Søkt beløp","Innvilget beløp ","Ubrukt \nønkes overført","Ubrukt\nbetales tilbake"]
[null,"a. Psykisk helsearbeid og rusarbeid",0,0,0,0,0,0]
[null,"b. Eldreomsorg/demens",0,0,0,0,0,0]
[null,"c. Habilitering/rehabilitering",0,0,0,0,0,0]
[null,"d. Kreftomsorg/lindrende behandling",0,0,0,0,0,0]
[null,"e. Veiledning",0,0,0,0,0,0]
[null,"f. Annen fagskoleutdanning",0,0,0,0,0,0]
[null,"Sum :",{"$f":"SUM(C22:C27)","v":0},{"$f":"SUM(D22:D27)","v":0},{"$f":"SUM(E22:E27)","v":0},{"$f":"SUM(F22:F27)","v":0},0,0]
[null,"  2.3. Bachelorutdanning helse- og sosialfag"]
[null,"Utdanningstype","Måloppnåelse (antall ansatte)",null,"Økonomirapportering",null,null,null,"Merknader\n(nærmere om hvilken annen utdanning)"]
[null,null,"Fullført utdanning\n","Samlet antall fullførte og under utdanning","Søkt beløp","Innvilget beløp ","Ubrukt \nønkes overført","Ubrukt\nbetales tilbake"]
[null,"a. Sykepleie",0,0,0,0,0,0]
[null,"b. Vernepleie",0,0,0,0,0,0]
[null,"c. Fysioterapi",0,0,0,0,0,0]
[null,"d. Ergoterapi",0,0,0,0,0,0]
[null,"e. Sosial arbeid (sosionom)",0,0,0,0,0,0]
[null,"f. Barnevernspedagogikk",0,0,0,0,0,0]
[null,"g. Annen bachelorutdanning",0,0,0,0,0,0]
[null,"Sum :",{"$f":"SUM(C32:C38)","v":0},{"$f":"SUM(D32:D38)","v":0},{"$f":"SUM(E32:E38)","v":0},{"$f":"SUM(F32:F38)","v":0},0,0]
[null,"  2.4. Videreutdanning og mastergradutdanning (påbygg bachelorutdanning)"]
[null,"Utdanningstype","Måloppnåelse (antall ansatte)",null,"Økonomirapportering",null,null,null,"Merknader\n(nærmere om hvilken annen utdanning)"]
[null,null,"Fullført utdanning\n","Samlet antall fullførte og under utdanning","Søkt beløp","Innvilget beløp ","Ubrukt \nønkes overført","Ubrukt\nbetales tilbake"]
[null,"a. Psykisk helsearbeid og rusarbeid",0,0,0,0,0,0]
[null,"b. Tverrfaglig videreutdanning \n     i psykososialt arbeid med barn og unge",0,0,0,0,0,0]
[null,"c. Eldreomsorg/demens",0,0,0,0,0,0]
[null,"d. Kreftomsorg/lindrende pleie",0,0,0,0,0,0]
[null,"e. Habilitering/rehabilitering",0,0,0,0,0,0]
[null,"f. Veiledning",0,0,0,0,0,0]
[null,"g. Lederutdanning",0,0,0,0,0,0]
[null,"h. Annen videreutdanning og/eller masterutdanning",0,0,0,0,0,0]
[null,"Sum :",{"$f":"SUM(C43:C50)","v":0},{"$f":"SUM(D43:D50)","v":0},{"$f":"SUM(E43:E50)","v":0},{"$f":"SUM(F43:F50)","v":0},0,0]
[null,"2.5. ABC-opplæring"]
[null,"Opplæringstype","Måloppnåelse (antall ansatte)",null,"Økonomirapportering",null,null,null,"Merknader"]
[null,null,"Fullført opplæring ","Samlet antall fullførte og under opplæring ","Søkt beløp","Innvilget beløp ","Ubrukt \nønkes overført","Ubrukt\nbetales tilbake"]
[null,"a. Demensomsorgens ABC",0,0,0,0,0,0]
[null,"b. Eldreomsorgens ABC",0,0,0,0,0,0]
[null,"c. Mitt livs ABC",0,0,0,0,0,0]
[null,"d. Velferdsteknologien ABC",0,0,0,0,0,0]
[null,"Sum :",{"$f":"SUM(C55:C58)","v":0},{"$f":"SUM(D55:D58)","v":0},{"$f":"SUM(E55:E58)","v":0},{"$f":"SUM(F55:F58)","v":0},{"$f":"SUM(G55:G58)","v":0},{"$f":"SUM(H55:H58)","v":0}]
[null,"2.6. Annen internopplæring / korte etterutdanninger /kurs mv."]
[null,"Opplæringstype","Måloppnåelse (antall ansatte)",null,"Økonomirapportering",null,null,null,"Merknader\n(nærmere om hvilken annen opplæring)"]
[null,null,"Fullført utdanning\n/ opplæring ","Samlet antall fullførte og under utdanning / opplæring ","Søkt beløp","Innvilget beløp ","Ubrukt \nønkes overført","Ubrukt\nbetales tilbake"]
[null,"a.  Innen psykisk helsearbeid og rusfeltet",0,0,0,0,0,0]
[null,"b. Innen eldreomsorg og demensfeltet",0,0,0,0,0,0]
[null,"c. Annet",0,0,0,0,0,0]
[null,"Sum :",{"$f":"SUM(C63:C65)","v":0},0,{"$f":"SUM(E63:E65)","v":0},{"$f":"SUM(F63:F65)","v":0},{"$f":"SUM(G63:G65)","v":0},{"$f":"SUM(H63:H65)","v":0}]
[null,"Total sum (inkludert 2.7.) :",{"$f":"C18+C28+C39+C51+C59+C66","v":0},{"$f":"D18+D28+D39+D51+D59+D66","v":0},{"$f":"E18+E28+E39+E51+E59+E66+C69","v":0},{"$f":"F18+F28+F39+F51+F59+F66+C70","v":0},{"$f":"G18+G28+G39+G51+G59+G66+C71","v":0},{"$f":"H18+H28+H39+H51+H59+H66+C72","v":0}]
[null,"2.7. Andre kompetansehevende tiltak"]
[null,"a. Søkt beløp"]
[null,"b. Innvilget beløp "]
[null,"c. Ubrukt, ønkes overført"]
[null,"d. Ubrukt, betales tilbake"]
[null,"e. Beskrivelse av tiltaket og hva tilskuddet har gått til."]
[]
[]
[null,"3. Opplæringstilskudd BPA (brukerstyrt personlig assistanse)"]
[null,null,"Måloppnåelse (antall personer)",null,null,"Økonomirapportering"]
[null,null,"Søkt ","Innvilget","Gjennomført","Søkt beløp","Utbetalt beløp","Ubrukt \nønkes overført","Ubrukt\nbetales tilbake"]
[null,"a. Arbeidsledere som har fått tilskudd til opplæring",0,0,0,0,0,0,0]
[null,"b. Saksbehandlere som har fått tilskudd til opplæring",0,0,0,0,0,0,0]
[null,"c. Assistenter som har fått tilskudd til opplæring",0,0,0,0,0,0,0]
[null,"Sum :",{"$f":"SUM(C79:C81)","v":0},{"$f":"SUM(D79:D81)","v":0},0,0,0,0,0]
[]
[null,"4. Innovasjonsprosjekter"]
[null,"4.1. Tema for prosjektene det rapporteres på"]
[null,"Tema ",null,"Antall prosjekter","Tittel på prosjekt/merknader"]
[null,"a. Velferdsteknologiske løsninger"]
[null,"b. Samspill med pårørende og frivillige i omsorgssektoren generelt og  \n    demensomsorgen spesielt."]
[null,"c. Legemiddelhåndtering"]
[null,"d. Ernæring"]
[null,"e. Fritidsaktivitet med assistanse"]
[null,"f. Kulturopplevelser"]
[null,"g. Annet"]
[null,"Sum :",null,{"$f":"SUM(D87:D93)","v":0}]
[null,"4.2. Rapportering på kriterier for måloppnåelse \n * Forskningsrapporter og annen dokumentasjon fra innovasjonsprosjekter under denne tilskuddsordningen skal i tillegg sendes Senter for Omsorgsforskning, \n     postmottak@hig.no, Høgskolen i Gjøvik, Postboks 191, 2802 Gjøvik."]
[null,"a. Beskrivelse av brukernes erfaringer og opplevd nytte"]
[]
[null,"b. I hvilken grad har behovet for kompenserende tjenester blitt redusert/vise til redusert behov for kompenserende tjenester?"]
[]
[null,"c. I hvilken grad har nye løsninger gitt kvalitative og økonomiske gevinster for brukerne og kommunen?"]
[]
[null,"d. I hvilken grad har tiltaket overføringsverdi til andre kommuner og betydning for praksis?"]
[]
[null,"e. I hvilken grad og hvordan har innovasjonsmetodikk blitt benyttet i prosjektet?"]
[]
[null,"4.3. Regnskap for innovasjonsprosjekt"]
[null,"Inntektekter",null,null,"Merknader"]
[null,"a. Tilskuddsbeløp fra Fylkesmannen",null,0]
[null,"Utgifter"]
[null,"b. Lønnsutgifter med sosiale utgifter ",null,0]
[null,"c. Reiseutgifter, arrangement, møter, konferanser",null,0]
[null,"d. Konsulenttjenester",null,0]
[null,"e. Trykking, publikasjoner, kunngjøringer, utsending og distribusjonskostnader ",null,0]
[null,"f. Investeringer/ inventar/ utstyr",null,0]
[null,"g. Driftsutgifter, forbruksmateriell og kontortjenester inkludert lokaler og energi",null,0]
[null,"h. Andre utgifter (spesifiser i merknadsteltet)",null,0]
[null,"Sum utgifter",null,{"$f":"SUM(D110:D116)","v":0}]
[null,"Ubrukt tilskudd på rapporteringstidspunktet",null,{"$f":"SUM(D108-D117)","v":0}]
[null,"Søkes overført",null,0]
[null,"4.4. Informasjon om inntekter fra andre kilder"]
[null,"a. Inntekter fra andre kilder/statlige prosjekt",null,0]
[null,"b. Egenfinansiering",null,0]
[null,"4.5. Revisoruttalelse"]
[null,"a. Revisoruttalelse (velg ett alternativ fra nedtrekksliste i neste rute)"]
[null,"b. Kommentarer til revisoruttalelse"]
[]
[null,"5. Nasjonalt velferdsteknologiprogram - innføring av velferdsteknologiske løsninger\n    * Rapportering for punktene ( fra 5.1. til 5.6.) kan sendes som eget vedlegg"]
[null,"5.1. Følges oppgitt fremdriftsplan i prosjektet?  (Inntil 300 ord)"]
[]
[]
[null,"5.2. Hvem er samarbeidspartnere i prosjektet og hvordan er status med tanke på samarbeid? (Inntil 300 ord)"]
[]
[]
[null,"5.3. Hva er status for implementering av velferdsteknologi i kommunene etter fastsatte måltall, hvilke tjenesteinnovasjoner som er gjennomført og   hvilke endringer dette har resultert i? \n      (Inntil 600 ord)"]
[]
[]
[]
[null,"5.4. Hva er forventede og realiserte gevinster av prosjektet for kommunen (spart tid, unngåtte kostnader, økt kvalitet)?  (Inntil 600 ord)"]
[]
[]
[]
[null,"5.5. Hvordan er kommunens planer for skalering av løsningene og overgang til løpende driftsfase, herunder planer for investering og drift av løsninger? (Inntil 600 ord)"]
[]
[]
[]
[null,"5.6. Hvordan er brukermedvirkning sikret i prosjektet? Angi på hvilken måte pasienter, brukere og pårørende er involvert? Hva er resultater for brukerne?(Inntil 600 ord)"]
[]
[]
[]
[null,"5.7. Regnskap for nasjonalt velferdsteknologiprogram - innføring av velferdsteknologiske løsninger"]
[null,"Inntektekter",null,null,"Merknader"]
[null,"a. Tilskuddsbeløp fra Fylkesmannen",null,0]
[null,"Utgifter"]
[null,"b. Lønnsutgifter med sosiale utgifter ",null,0]
[null,"c. Reiseutgifter, arrangement, møter, konferanser",null,0]
[null,"d. Konsulenttjenester",null,0]
[null,"e. Trykking, publikasjoner, kunngjøringer, utsending og distribusjonskostnader ",null,0]
[null,"f. Investeringer/ inventar/ utstyr",null,0]
[null,"g. Driftsutgifter, forbruksmateriell og kontortjenester inkludert lokaler og energi",null,0]
[null,"h. Andre utgifter (spesifiser i merknadsteltet)",null,0]
[null,"Sum utgifter",null,{"$f":"SUM(D154:D160)","v":0}]
[null,"Ubrukt tilskudd på rapporteringstidspunktet",null,{"$f":"SUM(D152-D161)","v":0}]
[null,"Søkes overført",null,0]
[null,"5.8. Informasjon om inntekter fra andre kilder"]
[null,"a. Inntekter fra andre kilder/statlige prosjekt",null,0]
[null,"b. Egenfinansiering",null,0]
[null,"5.9. Revisoruttalelse"]
[null,"a. Revisoruttalelse (velg ett alternativ fra nedtrekksliste i neste rute)"]
[null,"b. Kommentarer til revisoruttalelse"]
[]
[]
[null,null,null,"Dette er styringsarket. Det kan skjules."]
[null,null,null,"Revisoruttalelse"]
[null,null,null,"Revisoruttalelse foreligger uten merknader"]
[null,null,null,"Revisoruttalelse foreligger med merknader"]
[null,null,null,"I tilskuddsbrevet er det ikke krav til revisoruttalelse"]
[null,null,null,"Revisoruttalelse mangler (rapportering ufullstendig)"]

{"sheet":"Vadsø","index":19,"n_rows":177,"n_cols":9,"rows_kept":177,"cut":false,"hidden":false,"merged":[[12,1,12,8],[13,1,14,1],[13,2,13,3],[13,4,13,7],[13,8,14,8],[15,8,17,8],[1,1,1,8],[2,2,2,8],[3,2,3,8],[4,2,4,8],[5,2,5,8],[11,1,11,8],[28,1,28,8],[29,1,30,1],[29,2,29,3],[29,4,29,7],[29,8,30,8],[31,8,38,8],[18,1,18,8],[19,1,20,1],[19,2,19,3],[19,4,19,7],[19,8,20,8],[21,8,27,8],[51,1,51,8],[52,1,53,1],[52,2,52,3],[52,4,52,7],[52,8,53,8],[54,8,58,8],[39,1,39,8],[40,1,41,1],[40,2,40,3],[40,4,40,7],[40,8,41,8],[42,8,50,8],[67,1,67,8],[68,2,68,7],[68,8,71,8],[69,2,69,7],[70,2,70,7],[71,2,71,7],[59,1,59,8],[60,1,61,1],[60,2,60,3],[60,4,60,7],[60,8,61,8],[62,8,66,8],[83,1,83,8],[84,1,84,8],[85,1,85,2],[85,4,85,8],[86,1,86,2],[86,4,86,8],[72,1,72,8],[73,1,73,8],[75,1,75,8],[76,1,77,1],[76,2,76,4],[76,5,76,8],[90,1,90,2],[90,4,90,8],[91,1,91,2],[91,4,91,8],[92,1,92,2],[92,4,92,8],[87,1,87,2],[87,4,87,8],[88,1,88,2],[88,4,88,8],[89,1,89,2],[89,4,89,8],[98,1,98,8],[99,1,99,8],[100,1,100,8],[101,1,101,8],[102,1,102,8],[103,1,103,8],[93,1,93,2],[93,4,93,8],[94,1,94,8],[95,1,95,8],[96,1,96,8],[97,1,97,8],[112,1,112,2],[113,1,113,2],[114,1,114,2],[115,1,115,2],[116,1,116,2],[117,1,117,2],[104,1,104,8],[105,1,105,8],[106,1,106,3],[106,4,106,8],[107,1,107,2],[107,4,118,8],[108,1,108,3],[109,1,109,2],[110,1,110,2],[111,1,111,2],[122,1,122,8],[123,1,123,2],[123,3,123,8],[124,1,124,2],[124,3,124,8],[126,1,126,7],[118,1,118,2],[119,1,119,8],[120,1,120,2],[120,4,120,8],[121,1,121,2],[121,4,121,8],[137,1,137,8],[138,1,140,8],[141,1,141,8],[142,1,144,8],[145,1,145,8],[146,1,148,8],[127,1,127,8],[128,1,129,8],[130,1,130,8],[131,1,132,8],[133,1,133,8],[134,1,136,8],[157,1,157,2],[158,1,158,2],[159,1,159,2],[160,1,160,2],[161,1,161,2],[162,1,162,2],[149,1,149,8],[150,1,150,3],[150,4,150,8],[151,1,151,2],[151,4,162,8],[152,1,152,3],[153,1,153,2],[154,1,154,2],[155,1,155,2],[156,1,156,2],[167,1,167,2],[167,3,167,8],[168,1,168,2],[168,3,168,8],[163,1,163,8],[164,1,164,2],[164,4,164,8],[165,1,165,2],[165,4,165,8],[166,1,166,8]]}
[]
[null,"1. Informasjon om kommunen "]
[null,"1.1. Navn på kommunen"]
[null,"1.2. Kontaktperson"]
[null,"1.3. E-post"]
[null,"1.4. Telefon"]
[]
[null,"Rapportering fra kommunen til Fylkesmannen"]
[null," - Kap761, post 68 \" Kommunalt kompetanse- og innovasjonstilskudd\""]
[null," - Kap761, post 78 \" Nasjonalt velferdsteknologiprogram - innføring av velferdsteknologiske løsninger\""]
[]
[null,"2. Kompetansetiltak (grunn-, videre- og etterutdanning)"]
[null,"2.1. Videregående skole, fag- og yrkesopplæring innen helse (fagbrev)"]
[null,"Utdanningstype","Måloppnåelse (antall ansatte)",null,"Økonomirapportering",null,null,null,"Merknader\n(nærmere om hvilken annen utdanning)"]
[null,null,"Fullført utdanning\n","Samlet antall fullførte og under utdanning ","Søkt beløp","Innvilget beløp ","Ubrukt \nønkes overført","Ubrukt\nbetales tilbake"]
[null,"a. Helsefagarbeider",0,0,0,0,0,0]
[null,"b. Annen utdanning på videregående skolenivå",0,0,0,0,0,0]
[null,"Sum :",{"$f":"SUM(C16:C17)","v":0},{"$f":"SUM(D16:D17)","v":0},{"$f":"SUM(E16:E17)","v":0},{"$f":"SUM(F16:F17)","v":0},{"$f":"SUM(G16:G17)","v":0},0]
[null,"2.2. Fagskoleutdanning"]
[null,"Utdanningstype","Måloppnåelse (antall ansatte)",null,"Økonomirapportering",null,null,null,"Merknader\n(nærmere om hvilken annen utdanning)"]
[null,null,"Fullført utdanning\n","Samlet antall fullførte og under utdanning","Søkt beløp","Innvilget beløp ","Ubrukt \nønkes overført","Ubrukt\nbetales tilbake"]
[null,"a. Psykisk helsearbeid og rusarbeid",0,0,0,0,0,0]
[null,"b. Eldreomsorg/demens",0,0,0,0,0,0]
[null,"c. Habilitering/rehabilitering",0,0,0,0,0,0]
[null,"d. Kreftomsorg/lindrende behandling",0,0,0,0,0,0]
[null,"e. Veiledning",0,0,0,0,0,0]
[null,"f. Annen fagskoleutdanning",0,0,0,0,0,0]
[null,"Sum :",{"$f":"SUM(C22:C27)","v":0},{"$f":"SUM(D22:D27)","v":0},{"$f":"SUM(E22:E27)","v":0},{"$f":"SUM(F22:F27)","v":0},0,0]
[null,"  2.3. Bachelorutdanning helse- og sosialfag"]
[null,"Utdanningstype","Måloppnåelse (antall ansatte)",null,"Økonomirapportering",null,null,null,"Merknader\n(nærmere om hvilken annen utdanning)"]
[null,null,"Fullført utdanning\n","Samlet antall fullførte og under utdanning","Søkt beløp","Innvilget beløp ","Ubrukt \nønkes overført","Ubrukt\nbetales tilbake"]
[null,"a. Sykepleie",0,0,0,0,0,0]
[null,"b. Vernepleie",0,0,0,0,0,0]
[null,"c. Fysioterapi",0,0,0,0,0,0]
[null,"d. Ergoterapi",0,0,0,0,0,0]
[null,"e. Sosial arbeid (sosionom)",0,0,0,0,0,0]
[null,"f. Barnevernspedagogikk",0,0,0,0,0,0]
[null,"g. Annen bachelorutdanning",0,0,0,0,0,0]
[null,"Sum :",{"$f":"SUM(C32:C38)","v":0},{"$f":"SUM(D32:D38)","v":0},{"$f":"SUM(E32:E38)","v":0},{"$f":"SUM(F32:F38)","v":0},0,0]
[null,"  2.4. Videreutdanning og mastergradutdanning (påbygg bachelorutdanning)"]
[null,"Utdanningstype","Måloppnåelse (antall ansatte)",null,"Økonomirapportering",null,null,null,"Merknader\n(nærmere om hvilken annen utdanning)"]
[null,null,"Fullført utdanning\n","Samlet antall fullførte og under utdanning","Søkt beløp","Innvilget beløp ","Ubrukt \nønkes overført","Ubrukt\nbetales tilbake"]
[null,"a. Psykisk helsearbeid og rusarbeid",0,0,0,0,0,0]
[null,"b. Tverrfaglig videreutdanning \n     i psykososialt arbeid med barn og unge",0,0,0,0,0,0]
[null,"c. Eldreomsorg/demens",0,0,0,0,0,0]
[null,"d. Kreftomsorg/lindrende pleie",0,0,0,0,0,0]
[null,"e. Habilitering/rehabilitering",0,0,0,0,0,0]
[null,"f. Veiledning",0,0,0,0,0,0]
[null,"g. Lederutdanning",0,0,0,0,0,0]
[null,"h. Annen videreutdanning og/eller masterutdanning",0,0,0,0,0,0]
[null,"Sum :",{"$f":"SUM(C43:C50)","v":0},{"$f":"SUM(D43:D50)","v":0},{"$f":"SUM(E43:E50)","v":0},{"$f":"SUM(F43:F50)","v":0},0,0]
[null,"2.5. ABC-opplæring"]
[null,"Opplæringstype","Måloppnåelse (antall ansatte)",null,"Økonomirapportering",null,null,null,"Merknader"]
[null,null,"Fullført opplæring ","Samlet antall fullførte og under opplæring ","Søkt beløp","Innvilget beløp ","Ubrukt \nønkes overført","Ubrukt\nbetales tilbake"]
[null,"a. Demensomsorgens ABC",0,0,0,0,0,0]
[null,"b. Eldreomsorgens ABC",0,0,0,0,0,0]
[null,"c. Mitt livs ABC",0,0,0,0,0,0]
[null,"d. Velferdsteknologien ABC",0,0,0,0,0,0]
[null,"Sum :",{"$f":"SUM(C55:C58)","v":0},{"$f":"SUM(D55:D58)","v":0},{"$f":"SUM(E55:E58)","v":0},{"$f":"SUM(F55:F58)","v":0},{"$f":"SUM(G55:G58)","v":0},{"$f":"SUM(H55:H58)","v":0}]
[null,"2.6. Annen internopplæring / korte etterutdanninger /kurs mv."]
[null,"Opplæringstype","Måloppnåelse (antall ansatte)",null,"Økonomirapportering",null,null,null,"Merknader\n(nærmere om hvilken annen opplæring)"]
[null,null,"Fullført utdanning\n/ opplæring ","Samlet antall fullførte og under utdanning / opplæring ","Søkt beløp","Innvilget beløp ","Ubrukt \nønkes overført","Ubrukt\nbetales tilbake"]
[null,"a.  Innen psykisk helsearbeid og rusfeltet",0,0,0,0,0,0]
[null,"b. Innen eldreomsorg og demensfeltet",0,0,0,0,0,0]
[null,"c. Annet",0,0,0,0,0,0]
[null,"Sum :",{"$f":"SUM(C63:C65)","v":0},0,{"$f":"SUM(E63:E65)","v":0},{"$f":"SUM(F63:F65)","v":0},{"$f":"SUM(G63:G65)","v":0},{"$f":"SUM(H63:H65)","v":0}]
[null,"Total sum (inkludert 2.7.) :",{"$f":"C18+C28+C39+C51+C59+C66","v":0},{"$f":"D18+D28+D39+D51+D59+D66","v":0},{"$f":"E18+E28+E39+E51+E59+E66+C69","v":0},{"$f":"F18+F28+F39+F51+F59+F66+C70","v":0},{"$f":"G18+G28+G39+G51+G59+G66+C71","v":0},{"$f":"H18+H28+H39+H51+H59+H66+C72","v":0}]
[null,"2.7. Andre kompetansehevende tiltak"]
[null,"a. Søkt beløp"]
[null,"b. Innvilget beløp "]
[null,"c. Ubrukt, ønkes overført"]
[null,"d. Ubrukt, betales tilbake"]
[null,"e. Beskrivelse av tiltaket og hva tilskuddet har gått til."]
[]
[]
[null,"3. Opplæringstilskudd BPA (brukerstyrt personlig assistanse)"]
[null,null,"Måloppnåelse (antall personer)",null,null,"Økonomirapportering"]
[null,null,"Søkt ","Innvilget","Gjennomført","Søkt beløp","Utbetalt beløp","Ubrukt \nønkes overført","Ubrukt\nbetales tilbake"]
[null,"a. Arbeidsledere som har fått tilskudd til opplæring",0,0,0,0,0,0,0]
[null,"b. Saksbehandlere som har fått tilskudd til opplæring",0,0,0,0,0,0,0]
[null,"c. Assistenter som har fått tilskudd til opplæring",0,0,0,0,0,0,0]
[null,"Sum :",{"$f":"SUM(C79:C81)","v":0},{"$f":"SUM(D79:D81)","v":0},0,0,0,0,0]
[]
[null,"4. Innovasjonsprosjekter"]
[null,"4.1. Tema for prosjektene det rapporteres på"]
[null,"Tema ",null,"Antall prosjekter","Tittel på prosjekt/merknader"]
[null,"a. Velferdsteknologiske løsninger"]
[null,"b. Samspill med pårørende og frivillige i omsorgssektoren generelt og  \n    demensomsorgen spesielt."]
[null,"c. Legemiddelhåndtering"]
[null,"d. Ernæring"]
[null,"e. Fritidsaktivitet med assistanse"]
[null,"f. Kulturopplevelser"]
[null,"g. Annet"]
[null,"Sum :",null,{"$f":"SUM(D87:D93)","v":0}]
[null,"4.2. Rapportering på kriterier for måloppnåelse \n * Forskningsrapporter og annen dokumentasjon fra innovasjonsprosjekter under denne tilskuddsordningen skal i tillegg sendes Senter for Omsorgsforskning, \n     postmottak@hig.no, Høgskolen i Gjøvik, Postboks 191, 2802 Gjøvik."]
[null,"a. Beskrivelse av brukernes erfaringer og opplevd nytte"]
[]
[null,"b. I hvilken grad har behovet for kompenserende tjenester blitt redusert/vise til redusert behov for kompenserende tjenester?"]
[]
[null,"c. I hvilken grad har nye løsninger gitt kvalitative og økonomiske gevinster for brukerne og kommunen?"]
[]
[null,"d. I hvilken grad har tiltaket overføringsverdi til andre kommuner og betydning for praksis?"]
[]
[null,"e. I hvilken grad og hvordan har innovasjonsmetodikk blitt benyttet i prosjektet?"]
[]
[null,"4.3. Regnskap for innovasjonsprosjekt"]
[null,"Inntektekter",null,null,"Merknader"]
[null,"a. Tilskuddsbeløp fra Fylkesmannen",null,0]
[null,"Utgifter"]
[null,"b. Lønnsutgifter med sosiale utgifter ",null,0]
[null,"c. Reiseutgifter, arrangement, møter, konferanser",null,0]
[null,"d. Konsulenttjenester",null,0]
[null,"e. Trykking, publikasjoner, kunngjøringer, utsending og distribusjonskostnader ",null,0]
[null,"f. Investeringer/ inventar/ utstyr",null,0]
[null,"g. Driftsutgifter, forbruksmateriell og kontortjenester inkludert lokaler og energi",null,0]
[null,"h. Andre utgifter (spesifiser i merknadsteltet)",null,0]
[null,"Sum utgifter",null,{"$f":"SUM(D110:D116)","v":0}]
[null,"Ubrukt tilskudd på rapporteringstidspunktet",null,{"$f":"SUM(D108-D117)","v":0}]
[null,"Søkes overført",null,0]
[null,"4.4. Informasjon om inntekter fra andre kilder"]
[null,"a. Inntekter fra andre kilder/statlige prosjekt",null,0]
[null,"b. Egenfinansiering",null,0]
[null,"4.5. Revisoruttalelse"]
[null,"a. Revisoruttalelse (velg ett alternativ fra nedtrekksliste i neste rute)"]
[null,"b. Kommentarer til revisoruttalelse"]
[]
[null,"5. Nasjonalt velferdsteknologiprogram - innføring av velferdsteknologiske løsninger\n    * Rapportering for punktene ( fra 5.1. til 5.6.) kan sendes som eget vedlegg"]
[null,"5.1. Følges oppgitt fremdriftsplan i prosjektet?  (Inntil 300 ord)"]
[]
[]
[null,"5.2. Hvem er samarbeidspartnere i prosjektet og hvordan er status med tanke på samarbeid? (Inntil 300 ord)"]
[]
[]
[null,"5.3. Hva er status for implementering av velferdsteknologi i kommunene etter fastsatte måltall, hvilke tjenesteinnovasjoner som er gjennomført og   hvilke endringer dette har resultert i? \n      (Inntil 600 ord)"]
[]
[]
[]
[null,"5.4. Hva er forventede og realiserte gevinster av prosjektet for kommunen (spart tid, unngåtte kostnader, økt kvalitet)?  (Inntil 600 ord)"]
[]
[]
[]
[null,"5.5. Hvordan er kommunens planer for skalering av løsningene og overgang til løpende driftsfase, herunder planer for investering og drift av løsninger? (Inntil 600 ord)"]
[]
[]
[]
[null,"5.6. Hvordan er brukermedvirkning sikret i prosjektet? Angi på hvilken måte pasienter, brukere og pårørende er involvert? Hva er resultater for brukerne?(Inntil 600 ord)"]
[]
[]
[]
[null,"5.7. Regnskap for nasjonalt velferdsteknologiprogram - innføring av velferdsteknologiske løsninger"]
[null,"Inntektekter",null,null,"Merknader"]
[null,"a. Tilskuddsbeløp fra Fylkesmannen",null,0]
[null,"Utgifter"]
[null,"b. Lønnsutgifter med sosiale utgifter ",null,0]
[null,"c. Reiseutgifter, arrangement, møter, konferanser",null,0]
[null,"d. Konsulenttjenester",null,0]
[null,"e. Trykking, publikasjoner, kunngjøringer, utsending og distribusjonskostnader ",null,0]
[null,"f. Investeringer/ inventar/ utstyr",null,0]
[null,"g. Driftsutgifter, forbruksmateriell og kontortjenester inkludert lokaler og energi",null,0]
[null,"h. Andre utgifter (spesifiser i merknadsteltet)",null,0]
[null,"Sum utgifter",null,{"$f":"SUM(D154:D160)","v":0}]
[null,"Ubrukt tilskudd på rapporteringstidspunktet",null,{"$f":"SUM(D152-D161)","v":0}]
[null,"Søkes overført",null,0]
[null,"5.8. Informasjon om inntekter fra andre kilder"]
[null,"a. Inntekter fra andre kilder/statlige prosjekt",null,0]
[null,"b. Egenfinansiering",null,0]
[null,"5.9. Revisoruttalelse"]
[null,"a. Revisoruttalelse (velg ett alternativ fra nedtrekksliste i neste rute)"]
[null,"b. Kommentarer til revisoruttalelse"]
[]
[]
[null,null,null,"Dette er styringsarket. Det kan skjules."]
[null,null,null,"Revisoruttalelse"]
[null,null,null,"Revisoruttalelse foreligger uten merknader"]
[null,null,null,"Revisoruttalelse foreligger med merknader"]
[null,null,null,"I tilskuddsbrevet er det ikke krav til revisoruttalelse"]
[null,null,null,"Revisoruttalelse mangler (rapportering ufullstendig)"]

{"sheet":"Vardø","index":20,"n_rows":177,"n_cols":9,"rows_kept":177,"cut":false,"hidden":false,"merged":[[12,1,12,8],[13,1,14,1],[13,2,13,3],[13,4,13,7],[13,8,14,8],[15,8,17,8],[1,1,1,8],[2,2,2,8],[3,2,3,8],[4,2,4,8],[5,2,5,8],[11,1,11,8],[28,1,28,8],[29,1,30,1],[29,2,29,3],[29,4,29,7],[29,8,30,8],[31,8,38,8],[18,1,18,8],[19,1,20,1],[19,2,19,3],[19,4,19,7],[19,8,20,8],[21,8,27,8],[51,1,51,8],[52,1,53,1],[52,2,52,3],[52,4,52,7],[52,8,53,8],[54,8,58,8],[39,1,39,8],[40,1,41,1],[40,2,40,3],[40,4,40,7],[40,8,41,8],[42,8,50,8],[67,1,67,8],[68,2,68,7],[68,8,71,8],[69,2,69,7],[70,2,70,7],[71,2,71,7],[59,1,59,8],[60,1,61,1],[60,2,60,3],[60,4,60,7],[60,8,61,8],[62,8,66,8],[83,1,83,8],[84,1,84,8],[85,1,85,2],[85,4,85,8],[86,1,86,2],[86,4,86,8],[72,1,72,8],[73,1,73,8],[75,1,75,8],[76,1,77,1],[76,2,76,4],[76,5,76,8],[90,1,90,2],[90,4,90,8],[91,1,91,2],[91,4,91,8],[92,1,92,2],[92,4,92,8],[87,1,87,2],[87,4,87,8],[88,1,88,2],[88,4,88,8],[89,1,89,2],[89,4,89,8],[98,1,98,8],[99,1,99,8],[100,1,100,8],[101,1,101,8],[102,1,102,8],[103,1,103,8],[93,1,93,2],[93,4,93,8],[94,1,94,8],[95,1,95,8],[96,1,96,8],[97,1,97,8],[112,1,112,2],[113,1,113,2],[114,1,114,2],[115,1,115,2],[116,1,116,2],[117,1,117,2],[104,1,104,8],[105,1,105,8],[106,1,106,3],[106,4,106,8],[107,1,107,2],[107,4,118,8],[108,1,108,3],[109,1,109,2],[110,1,110,2],[111,1,111,2],[122,1,122,8],[123,1,123,2],[123,3,123,8],[124,1,124,2],[124,3,124,8],[126,1,126,7],[118,1,118,2],[119,1,119,8],[120,1,120,2],[120,4,120,8],[121,1,121,2],[121,4,121,8],[137,1,137,8],[138,1,140,8],[141,1,141,8],[142,1,144,8],[145,1,145,8],[146,1,148,8],[127,1,127,8],[128,1,129,8],[130,1,130,8],[131,1,132,8],[133,1,133,8],[134,1,136,8],[157,1,157,2],[158,1,158,2],[159,1,159,2],[160,1,160,2],[161,1,161,2],[162,1,162,2],[149,1,149,8],[150,1,150,3],[150,4,150,8],[151,1,151,2],[151,4,162,8],[152,1,152,3],[153,1,153,2],[154,1,154,2],[155,1,155,2],[156,1,156,2],[167,1,167,2],[167,3,167,8],[168,1,168,2],[168,3,168,8],[163,1,163,8],[164,1,164,2],[164,4,164,8],[165,1,165,2],[165,4,165,8],[166,1,166,8]]}
[]
[null,"1. Informasjon om kommunen "]
[null,"1.1. Navn på kommunen"]
[null,"1.2. Kontaktperson"]
[null,"1.3. E-post"]
[null,"1.4. Telefon"]
[]
[null,"Rapportering fra kommunen til Fylkesmannen"]
[null," - Kap761, post 68 \" Kommunalt kompetanse- og innovasjonstilskudd\""]
[null," - Kap761, post 78 \" Nasjonalt velferdsteknologiprogram - innføring av velferdsteknologiske løsninger\""]
[]
[null,"2. Kompetansetiltak (grunn-, videre- og etterutdanning)"]
[null,"2.1. Videregående skole, fag- og yrkesopplæring innen helse (fagbrev)"]
[null,"Utdanningstype","Måloppnåelse (antall ansatte)",null,"Økonomirapportering",null,null,null,"Merknader\n(nærmere om hvilken annen utdanning)"]
[null,null,"Fullført utdanning\n","Samlet antall fullførte og under utdanning ","Søkt beløp","Innvilget beløp ","Ubrukt \nønkes overført","Ubrukt\nbetales tilbake"]
[null,"a. Helsefagarbeider",0,0,0,0,0,0]
[null,"b. Annen utdanning på videregående skolenivå",0,0,0,0,0,0]
[null,"Sum :",{"$f":"SUM(C16:C17)","v":0},{"$f":"SUM(D16:D17)","v":0},{"$f":"SUM(E16:E17)","v":0},{"$f":"SUM(F16:F17)","v":0},{"$f":"SUM(G16:G17)","v":0},0]
[null,"2.2. Fagskoleutdanning"]
[null,"Utdanningstype","Måloppnåelse (antall ansatte)",null,"Økonomirapportering",null,null,null,"Merknader\n(nærmere om hvilken annen utdanning)"]
[null,null,"Fullført utdanning\n","Samlet antall fullførte og under utdanning","Søkt beløp","Innvilget beløp ","Ubrukt \nønkes overført","Ubrukt\nbetales tilbake"]
[null,"a. Psykisk helsearbeid og rusarbeid",0,0,0,0,0,0]
[null,"b. Eldreomsorg/demens",0,0,0,0,0,0]
[null,"c. Habilitering/rehabilitering",0,0,0,0,0,0]
[null,"d. Kreftomsorg/lindrende behandling",0,0,0,0,0,0]
[null,"e. Veiledning",0,0,0,0,0,0]
[null,"f. Annen fagskoleutdanning",0,0,0,0,0,0]
[null,"Sum :",{"$f":"SUM(C22:C27)","v":0},{"$f":"SUM(D22:D27)","v":0},{"$f":"SUM(E22:E27)","v":0},{"$f":"SUM(F22:F27)","v":0},0,0]
[null,"  2.3. Bachelorutdanning helse- og sosialfag"]
[null,"Utdanningstype","Måloppnåelse (antall ansatte)",null,"Økonomirapportering",null,null,null,"Merknader\n(nærmere om hvilken annen utdanning)"]
[null,null,"Fullført utdanning\n","Samlet antall fullførte og under utdanning","Søkt beløp","Innvilget beløp ","Ubrukt \nønkes overført","Ubrukt\nbetales tilbake"]
[null,"a. Sykepleie",0,0,0,0,0,0]
[null,"b. Vernepleie",0,0,0,0,0,0]
[null,"c. Fysioterapi",0,0,0,0,0,0]
[null,"d. Ergoterapi",0,0,0,0,0,0]
[null,"e. Sosial arbeid (sosionom)",0,0,0,0,0,0]
[null,"f. Barnevernspedagogikk",0,0,0,0,0,0]
[null,"g. Annen bachelorutdanning",0,0,0,0,0,0]
[null,"Sum :",{"$f":"SUM(C32:C38)","v":0},{"$f":"SUM(D32:D38)","v":0},{"$f":"SUM(E32:E38)","v":0},{"$f":"SUM(F32:F38)","v":0},0,0]
[null,"  2.4. Videreutdanning og mastergradutdanning (påbygg bachelorutdanning)"]
[null,"Utdanningstype","Måloppnåelse (antall ansatte)",null,"Økonomirapportering",null,null,null,"Merknader\n(nærmere om hvilken annen utdanning)"]
[null,null,"Fullført utdanning\n","Samlet antall fullførte og under utdanning","Søkt beløp","Innvilget beløp ","Ubrukt \nønkes overført","Ubrukt\nbetales tilbake"]
[null,"a. Psykisk helsearbeid og rusarbeid",0,0,0,0,0,0]
[null,"b. Tverrfaglig videreutdanning \n     i psykososialt arbeid med barn og unge",0,0,0,0,0,0]
[null,"c. Eldreomsorg/demens",0,0,0,0,0,0]
[null,"d. Kreftomsorg/lindrende pleie",0,0,0,0,0,0]
[null,"e. Habilitering/rehabilitering",0,0,0,0,0,0]
[null,"f. Veiledning",0,0,0,0,0,0]
[null,"g. Lederutdanning",0,0,0,0,0,0]
[null,"h. Annen videreutdanning og/eller masterutdanning",0,0,0,0,0,0]
[null,"Sum :",{"$f":"SUM(C43:C50)","v":0},{"$f":"SUM(D43:D50)","v":0},{"$f":"SUM(E43:E50)","v":0},{"$f":"SUM(F43:F50)","v":0},0,0]
[null,"2.5. ABC-opplæring"]
[null,"Opplæringstype","Måloppnåelse (antall ansatte)",null,"Økonomirapportering",null,null,null,"Merknader"]
[null,null,"Fullført opplæring ","Samlet antall fullførte og under opplæring ","Søkt beløp","Innvilget beløp ","Ubrukt \nønkes overført","Ubrukt\nbetales tilbake"]
[null,"a. Demensomsorgens ABC",0,0,0,0,0,0]
[null,"b. Eldreomsorgens ABC",0,0,0,0,0,0]
[null,"c. Mitt livs ABC",0,0,0,0,0,0]
[null,"d. Velferdsteknologien ABC",0,0,0,0,0,0]
[null,"Sum :",{"$f":"SUM(C55:C58)","v":0},{"$f":"SUM(D55:D58)","v":0},{"$f":"SUM(E55:E58)","v":0},{"$f":"SUM(F55:F58)","v":0},{"$f":"SUM(G55:G58)","v":0},{"$f":"SUM(H55:H58)","v":0}]
[null,"2.6. Annen internopplæring / korte etterutdanninger /kurs mv."]
[null,"Opplæringstype","Måloppnåelse (antall ansatte)",null,"Økonomirapportering",null,null,null,"Merknader\n(nærmere om hvilken annen opplæring)"]
[null,null,"Fullført utdanning\n/ opplæring ","Samlet antall fullførte og under utdanning / opplæring ","Søkt beløp","Innvilget beløp ","Ubrukt \nønkes overført","Ubrukt\nbetales tilbake"]
[null,"a.  Innen psykisk helsearbeid og rusfeltet",0,0,0,0,0,0]
[null,"b. Innen eldreomsorg og demensfeltet",0,0,0,0,0,0]
[null,"c. Annet",0,0,0,0,0,0]
[null,"Sum :",{"$f":"SUM(C63:C65)","v":0},0,{"$f":"SUM(E63:E65)","v":0},{"$f":"SUM(F63:F65)","v":0},{"$f":"SUM(G63:G65)","v":0},{"$f":"SUM(H63:H65)","v":0}]
[null,"Total sum (inkludert 2.7.) :",{"$f":"C18+C28+C39+C51+C59+C66","v":0},{"$f":"D18+D28+D39+D51+D59+D66","v":0},{"$f":"E18+E28+E39+E51+E59+E66+C69","v":0},{"$f":"F18+F28+F39+F51+F59+F66+C70","v":0},{"$f":"G18+G28+G39+G51+G59+G66+C71","v":0},{"$f":"H18+H28+H39+H51+H59+H66+C72","v":0}]
[null,"2.7. Andre kompetansehevende tiltak"]
[null,"a. Søkt beløp"]
[null,"b. Innvilget beløp "]
[null,"c. Ubrukt, ønkes overført"]
[null,"d. Ubrukt, betales tilbake"]
[null,"e. Beskrivelse av tiltaket og hva tilskuddet har gått til."]
[]
[]
[null,"3. Opplæringstilskudd BPA (brukerstyrt personlig assistanse)"]
[null,null,"Måloppnåelse (antall personer)",null,null,"Økonomirapportering"]
[null,null,"Søkt ","Innvilget","Gjennomført","Søkt beløp","Utbetalt beløp","Ubrukt \nønkes overført","Ubrukt\nbetales tilbake"]
[null,"a. Arbeidsledere som har fått tilskudd til opplæring",0,0,0,0,0,0,0]
[null,"b. Saksbehandlere som har fått tilskudd til opplæring",0,0,0,0,0,0,0]
[null,"c. Assistenter som har fått tilskudd til opplæring",0,0,0,0,0,0,0]
[null,"Sum :",{"$f":"SUM(C79:C81)","v":0},{"$f":"SUM(D79:D81)","v":0},0,0,0,0,0]
[]
[null,"4. Innovasjonsprosjekter"]
[null,"4.1. Tema for prosjektene det rapporteres på"]
[null,"Tema ",null,"Antall prosjekter","Tittel på prosjekt/merknader"]
[null,"a. Velferdsteknologiske løsninger"]
[null,"b. Samspill med pårørende og frivillige i omsorgssektoren generelt og  \n    demensomsorgen spesielt."]
[null,"c. Legemiddelhåndtering"]
[null,"d. Ernæring"]
[null,"e. Fritidsaktivitet med assistanse"]
[null,"f. Kulturopplevelser"]
[null,"g. Annet"]
[null,"Sum :",null,{"$f":"SUM(D87:D93)","v":0}]
[null,"4.2. Rapportering på kriterier for måloppnåelse \n * Forskningsrapporter og annen dokumentasjon fra innovasjonsprosjekter under denne tilskuddsordningen skal i tillegg sendes Senter for Omsorgsforskning, \n     postmottak@hig.no, Høgskolen i Gjøvik, Postboks 191, 2802 Gjøvik."]
[null,"a. Beskrivelse av brukernes erfaringer og opplevd nytte"]
[]
[null,"b. I hvilken grad har behovet for kompenserende tjenester blitt redusert/vise til redusert behov for kompenserende tjenester?"]
[]
[null,"c. I hvilken grad har nye løsninger gitt kvalitative og økonomiske gevinster for brukerne og kommunen?"]
[]
[null,"d. I hvilken grad har tiltaket overføringsverdi til andre kommuner og betydning for praksis?"]
[]
[null,"e. I hvilken grad og hvordan har innovasjonsmetodikk blitt benyttet i prosjektet?"]
[]
[null,"4.3. Regnskap for innovasjonsprosjekt"]
[null,"Inntektekter",null,null,"Merknader"]
[null,"a. Tilskuddsbeløp fra Fylkesmannen",null,0]
[null,"Utgifter"]
[null,"b. Lønnsutgifter med sosiale utgifter ",null,0]
[null,"c. Reiseutgifter, arrangement, møter, konferanser",null,0]
[null,"d. Konsulenttjenester",null,0]
[null,"e. Trykking, publikasjoner, kunngjøringer, utsending og distribusjonskostnader ",null,0]
[null,"f. Investeringer/ inventar/ utstyr",null,0]
[null,"g. Driftsutgifter, forbruksmateriell og kontortjenester inkludert lokaler og energi",null,0]
[null,"h. Andre utgifter (spesifiser i merknadsteltet)",null,0]
[null,"Sum utgifter",null,{"$f":"SUM(D110:D116)","v":0}]
[null,"Ubrukt tilskudd på rapporteringstidspunktet",null,{"$f":"SUM(D108-D117)","v":0}]
[null,"Søkes overført",null,0]
[null,"4.4. Informasjon om inntekter fra andre kilder"]
[null,"a. Inntekter fra andre kilder/statlige prosjekt",null,0]
[null,"b. Egenfinansiering",null,0]
[null,"4.5. Revisoruttalelse"]
[null,"a. Revisoruttalelse (velg ett alternativ fra nedtrekksliste i neste rute)"]
[null,"b. Kommentarer til revisoruttalelse"]
[]
[null,"5. Nasjonalt velferdsteknologiprogram - innføring av velferdsteknologiske løsninger\n    * Rapportering for punktene ( fra 5.1. til 5.6.) kan sendes som eget vedlegg"]
[null,"5.1. Følges oppgitt fremdriftsplan i prosjektet?  (Inntil 300 ord)"]
[]
[]
[null,"5.2. Hvem er samarbeidspartnere i prosjektet og hvordan er status med tanke på samarbeid? (Inntil 300 ord)"]
[]
[]
[null,"5.3. Hva er status for implementering av velferdsteknologi i kommunene etter fastsatte måltall, hvilke tjenesteinnovasjoner som er gjennomført og   hvilke endringer dette har resultert i? \n      (Inntil 600 ord)"]
[]
[]
[]
[null,"5.4. Hva er forventede og realiserte gevinster av prosjektet for kommunen (spart tid, unngåtte kostnader, økt kvalitet)?  (Inntil 600 ord)"]
[]
[]
[]
[null,"5.5. Hvordan er kommunens planer for skalering av løsningene og overgang til løpende driftsfase, herunder planer for investering og drift av løsninger? (Inntil 600 ord)"]
[]
[]
[]
[null,"5.6. Hvordan er brukermedvirkning sikret i prosjektet? Angi på hvilken måte pasienter, brukere og pårørende er involvert? Hva er resultater for brukerne?(Inntil 600 ord)"]
[]
[]
[]
[null,"5.7. Regnskap for nasjonalt velferdsteknologiprogram - innføring av velferdsteknologiske løsninger"]
[null,"Inntektekter",null,null,"Merknader"]
[null,"a. Tilskuddsbeløp fra Fylkesmannen",null,0]
[null,"Utgifter"]
[null,"b. Lønnsutgifter med sosiale utgifter ",null,0]
[null,"c. Reiseutgifter, arrangement, møter, konferanser",null,0]
[null,"d. Konsulenttjenester",null,0]
[null,"e. Trykking, publikasjoner, kunngjøringer, utsending og distribusjonskostnader ",null,0]
[null,"f. Investeringer/ inventar/ utstyr",null,0]
[null,"g. Driftsutgifter, forbruksmateriell og kontortjenester inkludert lokaler og energi",null,0]
[null,"h. Andre utgifter (spesifiser i merknadsteltet)",null,0]
[null,"Sum utgifter",null,{"$f":"SUM(D154:D160)","v":0}]
[null,"Ubrukt tilskudd på rapporteringstidspunktet",null,{"$f":"SUM(D152-D161)","v":0}]
[null,"Søkes overført",null,0]
[null,"5.8. Informasjon om inntekter fra andre kilder"]
[null,"a. Inntekter fra andre kilder/statlige prosjekt",null,0]
[null,"b. Egenfinansiering",null,0]
[null,"5.9. Revisoruttalelse"]
[null,"a. Revisoruttalelse (velg ett alternativ fra nedtrekksliste i neste rute)"]
[null,"b. Kommentarer til revisoruttalelse"]
[]
[]
[null,null,null,"Dette er styringsarket. Det kan skjules."]
[null,null,null,"Revisoruttalelse"]
[null,null,null,"Revisoruttalelse foreligger uten merknader"]
[null,null,null,"Revisoruttalelse foreligger med merknader"]
[null,null,null,"I tilskuddsbrevet er det ikke krav til revisoruttalelse"]
[null,null,null,"Revisoruttalelse mangler (rapportering ufullstendig)"]